Workbook

Sheet App.2-CA_OldCGAAP_DepExp_2012 (hidden)
K1: File Number: | L1: =EBNUMBER -> 
K2: Exhibit:
K3: Tab:
K4: Schedule:
K5: Page:
K7: Date:
A9: Appendix 2-CA
A10: Depreciation and Amortization Expense
B11: Assumes the applicant made capitalization and depreciation expense accounting policy changes under CGAAP effective January 1, 2012 and will adopt IFRS for financial reporting purposes effective January 1, 2015.
C13: Year | D13: 2012 | E13: Former CGAAP
A15: Account | B15: Description | C15: Opening Regulatory Gross PP&E as at Jan 1, 2012 | D15: Less Fully Depreciated | E15: Net for Depreciation | F15: Additions | G15: Total for Depreciation | H15: Years | I15: Depreciation Rate | J15: Depreciation Expense | K15: 2012 Depreciation Expense per Appendix 2-BA Fixed Assets, Column J (l) | L15: Variance 2
C16: (a) | D16: (b) | E16: (c) | F16: (d) | G16: (e) = (c) + ½ x (d) 1 | H16: (f) | I16: (g) = 1 / (f) | J16: (h) = (e) / (f) | L16: (m) = (h) - (l)
A17: 1611 | B17: Computer Software (Formally known as Account 1925) | E17: =C17-D17 -> 0 | G17: =E17+0.5*F17 -> 0 | I17: =IF(H17=0,0,1/H17) -> 0 | J17: =IF(H17=0,0,G17/H17) -> 0 | L17: =IF(ISERROR(+J17-K17), 0, +J17-K17) -> 0
A18: 1612 | B18: Land Rights (Formally known as Account 1906) | E18: =C18-D18 -> 0 | G18: =E18+0.5*F18 -> 0 | I18: 0 | J18: 0 | L18: 0
A19: 1805 | B19: Land | E19: 0 | G19: 0 | I19: 0 | J19: 0 | L19: 0
A20: 1808 | B20: Buildings | E20: 0 | G20: 0 | I20: 0 | J20: 0 | L20: 0
A21: 1810 | B21: Leasehold Improvements | E21: 0 | G21: 0 | I21: 0 | J21: 0 | L21: 0
A22: 1815 | B22: Transformer Station Equipment >50 kV | E22: 0 | G22: 0 | I22: 0 | J22: 0 | L22: 0
A23: 1820 | B23: Distribution Station Equipment <50 kV | E23: 0 | G23: 0 | I23: 0 | J23: 0 | L23: 0
A24: 1825 | B24: Storage Battery Equipment | E24: 0 | G24: 0 | I24: 0 | J24: 0 | L24: 0
A25: 1830 | B25: Poles, Towers & Fixtures | E25: 0 | G25: 0 | I25: 0 | J25: 0 | L25: 0
A26: 1835 | B26: Overhead Conductors & Devices | E26: 0 | G26: 0 | I26: 0 | J26: 0 | L26: 0
A27: 1840 | B27: Underground Conduit | E27: 0 | G27: 0 | I27: 0 | J27: 0 | L27: 0
A28: 1845 | B28: Underground Conductors & Devices | E28: 0 | G28: 0 | I28: 0 | J28: 0 | L28: 0
A29: 1850 | B29: Line Transformers | E29: 0 | G29: 0 | I29: 0 | J29: 0 | L29: 0
A30: 1855 | B30: Services (Overhead & Underground) | E30: 0 | G30: 0 | I30: 0 | J30: 0 | L30: 0
A31: 1860 | B31: Meters | E31: 0 | G31: 0 | I31: 0 | J31: 0 | L31: 0
A32: 1860 | B32: Meters (Smart Meters) | E32: 0 | G32: 0 | I32: 0 | J32: 0 | L32: 0
A33: 1905 | B33: Land | E33: 0 | G33: 0 | I33: 0 | J33: 0 | L33: 0
A34: 1908 | B34: Buildings & Fixtures | E34: 0 | G34: 0 | I34: 0 | J34: 0 | L34: 0
A35: 1910 | B35: Leasehold Improvements | E35: 0 | G35: 0 | I35: 0 | J35: 0 | L35: 0
A36: 1915 | B36: Office Furniture & Equipment (10 years) | E36: 0 | G36: 0 | I36: 0 | J36: 0 | L36: 0
A37: 1915 | B37: Office Furniture & Equipment (5 years) | E37: 0 | G37: 0 | I37: 0 | J37: 0 | L37: 0
A38: 1920 | B38: Computer Equipment - Hardware | E38: 0 | G38: 0 | I38: 0 | J38: 0 | L38: 0
A39: 1920 | B39: Computer Equip.-Hardware(Post Mar. 22/04) | E39: 0 | G39: 0 | I39: 0 | J39: 0 | L39: 0
A40: 1920 | B40: Computer Equip.-Hardware(Post Mar. 19/07) | E40: 0 | G40: 0 | I40: 0 | J40: 0 | L40: 0
A41: 1930 | B41: Transportation Equipment | E41: 0 | G41: 0 | I41: 0 | J41: 0 | L41: 0
A42: 1935 | B42: Stores Equipment | E42: 0 | G42: 0 | I42: 0 | J42: 0 | L42: 0
A43: 1940 | B43: Tools, Shop & Garage Equipment | E43: 0 | G43: 0 | I43: 0 | J43: 0 | L43: 0
A44: 1945 | B44: Measurement & Testing Equipment | E44: 0 | G44: 0 | I44: 0 | J44: 0 | L44: 0
A45: 1950 | B45: Power Operated Equipment | E45: 0 | G45: 0 | I45: 0 | J45: 0 | L45: 0
A46: 1955 | B46: Communications Equipment | E46: 0 | G46: 0 | I46: 0 | J46: 0 | L46: 0
A47: 1955 | B47: Communication Equipment (Smart Meters) | E47: 0 | G47: 0 | I47: 0 | J47: 0 | L47: 0
A48: 1960 | B48: Miscellaneous Equipment | E48: 0 | G48: 0 | I48: 0 | J48: 0 | L48: 0
A49: 1970 | B49: Load Management Controls Customer Premises | E49: 0 | G49: 0 | I49: 0 | J49: 0 | L49: 0
A50: 1975 | B50: Load Management Controls Utility Premises | E50: 0 | G50: 0 | I50: 0 | J50: 0 | L50: 0
A51: 1980 | B51: System Supervisor Equipment | E51: 0 | G51: 0 | I51: 0 | J51: 0 | L51: 0
A52: 1985 | B52: Miscellaneous Fixed Assets | E52: 0 | G52: 0 | I52: 0 | J52: 0 | L52: 0
A53: 1990 | B53: Other Tangible Property | E53: 0 | G53: 0 | I53: 0 | J53: 0 | L53: 0
A54: 1995 | B54: Contributions & Grants | E54: 0 | G54: 0 | I54: 0 | J54: 0 | L54: 0
B55: Total | C55: =SUM(C17:C54) -> 0 | D55: =SUM(D17:D54) -> 0 | E55: =SUM(E17:E54) -> 0 | F55: =SUM(F17:F54) -> 0 | G55: =SUM(G17:G54) -> 0 | J55: =SUM(J17:J54) -> 0 | K55: =SUM(K17:K54) -> 0 | L55: =SUM(L17:L54) -> 0
A57: Notes:
A59: 1 | B59: Board policy of the "half-year" rule - the applicant must ensure that additions in the year attract a half-year depreciation expense in the first year. Deviations from this standard practice must be supported in the application.
A60: 2 | B60: The applicant must provide an explanation of material variances in evidence.
A62: General | B62: Applicants must provide a breakdown of depreciation and amortization expense in the above format for all relevant accounts. Asset Retirement Obligations (AROs), depreciation and accretion expense should be disclosed separately consistent with the Notes of historical Audited Financial Statements.

Sheet App.2-CB_NewCGAAP_DepExp_2012 (hidden)
N1: File Number: | O1: =EBNUMBER -> 
N2: Exhibit:
N3: Tab:
N4: Schedule:
N5: Page:
N7: Date:
A9: Appendix 2-CB
A10: Depreciation and Amortization Expense
A11: Assumes the applicant made capitalization and depreciation expense accounting policy changes under CGAAP effective January 1, 2012 and will adopt IFRS for financial reporting purposes effective January 1, 2015.
C13: Year | D13: 2012 | E13: Revised CGAAP
A15: Account | B15: Description | C15: Opening NBV as at Jan 1, 2012 5 | D15: Additions | E15: Average Remaining Life of Opening NBV 4 | F15: Years (new additions only) 3 | G15: Depreciation Rate on New Additions | H15: Depreciation Expense on Opening NBV | I15: Depreciation Expense on Additions 1 | J15: 2012 Depreciation Expense | K15: 2012 Depreciation Expense per Appendix 2-BA Fixed Assets, Column J (l) | L15: Variance 2 | M15: Depreciation Expense on 2012 Full Year Additions | N15: Less Depreciation Expense on Assets Fully Depreciated during the year (o) | O15: 2012 Full Year Depreciation 6
C16: (a) | D16: (d) | E16: (i) | F16: (f) | G16: (g) = 1 / (f) | H16: (j) = (a) / (i) | I16: (h)=((d)*0.5)/(f) | J16: (k) = (j) + (h) | L16: (m) = (k) - (l) | M16: (n) = (d)/(f) | O16: (p) = (j) + (n) - (o)
A17: 1611 | B17: Computer Software (Formally known as Account 1925) | G17: =IF(F17=0,0,1/F17) -> 0 | H17: =IF(E17=0,0,+C17/E17) -> 0 | I17: =IF(F17=0,0,+(D17*0.5)/F17) -> 0 | J17: =IF(ISERROR(+H17+I17), 0, +H17+I17) -> 0 | L17: =IF(ISERROR(+J17-K17), 0, +J17-K17) -> 0 | M17: =IF(F17=0,0,+(D17)/F17) -> 0 | O17: =IF(ISERROR(+M17+H17-N17), 0, +M17+H17-N17) -> 0
A18: 1612 | B18: Land Rights (Formally known as Account 1906) | G18: 0 | H18: 0 | I18: 0 | J18: 0 | L18: 0 | M18: 0 | O18: =IF(ISERROR(+M18+H18-N18), 0, +M18+H18-N18) -> 0
A19: 1805 | B19: Land | G19: 0 | H19: 0 | I19: 0 | J19: 0 | L19: 0 | M19: 0 | O19: 0
A20: 1808 | B20: Buildings | G20: 0 | H20: 0 | I20: 0 | J20: 0 | L20: 0 | M20: 0 | O20: 0
A21: 1810 | B21: Leasehold Improvements | G21: 0 | H21: 0 | I21: 0 | J21: 0 | L21: 0 | M21: 0 | O21: 0
A22: 1815 | B22: Transformer Station Equipment >50 kV | G22: 0 | H22: 0 | I22: 0 | J22: 0 | L22: 0 | M22: 0 | O22: 0
A23: 1820 | B23: Distribution Station Equipment <50 kV | G23: 0 | H23: 0 | I23: 0 | J23: 0 | L23: 0 | M23: 0 | O23: 0
A24: 1825 | B24: Storage Battery Equipment | G24: 0 | H24: 0 | I24: 0 | J24: 0 | L24: 0 | M24: 0 | O24: 0
A25: 1830 | B25: Poles, Towers & Fixtures | G25: 0 | H25: 0 | I25: 0 | J25: 0 | L25: 0 | M25: 0 | O25: 0
A26: 1835 | B26: Overhead Conductors & Devices | G26: 0 | H26: 0 | I26: 0 | J26: 0 | L26: 0 | M26: 0 | O26: 0
A27: 1840 | B27: Underground Conduit | G27: 0 | H27: 0 | I27: 0 | J27: 0 | L27: 0 | M27: 0 | O27: 0
A28: 1845 | B28: Underground Conductors & Devices | G28: 0 | H28: 0 | I28: 0 | J28: 0 | L28: 0 | M28: 0 | O28: 0
A29: 1850 | B29: Line Transformers | G29: 0 | H29: 0 | I29: 0 | J29: 0 | L29: 0 | M29: 0 | O29: 0
A30: 1855 | B30: Services (Overhead & Underground) | G30: 0 | H30: 0 | I30: 0 | J30: 0 | L30: 0 | M30: 0 | O30: 0
A31: 1860 | B31: Meters | G31: 0 | H31: 0 | I31: 0 | J31: 0 | L31: 0 | M31: 0 | O31: 0
A32: 1860 | B32: Meters (Smart Meters) | G32: 0 | H32: 0 | I32: 0 | J32: 0 | L32: 0 | M32: 0 | O32: 0
A33: 1905 | B33: Land | G33: 0 | H33: 0 | I33: 0 | J33: 0 | L33: 0 | M33: 0 | O33: 0
A34: 1908 | B34: Buildings & Fixtures | G34: 0 | H34: 0 | I34: 0 | J34: 0 | L34: 0 | M34: 0 | O34: 0
A35: 1910 | B35: Leasehold Improvements | G35: 0 | H35: 0 | I35: 0 | J35: 0 | L35: 0 | M35: 0 | O35: 0
A36: 1915 | B36: Office Furniture & Equipment (10 years) | G36: 0 | H36: 0 | I36: 0 | J36: 0 | L36: 0 | M36: 0 | O36: 0
A37: 1915 | B37: Office Furniture & Equipment (5 years) | G37: 0 | H37: 0 | I37: 0 | J37: 0 | L37: 0 | M37: 0 | O37: 0
A38: 1920 | B38: Computer Equipment - Hardware | G38: 0 | H38: 0 | I38: 0 | J38: 0 | L38: 0 | M38: 0 | O38: 0
A39: 1920 | B39: Computer Equip.-Hardware(Post Mar. 22/04) | G39: 0 | H39: 0 | I39: 0 | J39: 0 | L39: 0 | M39: 0 | O39: 0
A40: 1920 | B40: Computer Equip.-Hardware(Post Mar. 19/07) | G40: 0 | H40: 0 | I40: 0 | J40: 0 | L40: 0 | M40: 0 | O40: 0
A41: 1930 | B41: Transportation Equipment | G41: 0 | H41: 0 | I41: 0 | J41: 0 | L41: 0 | M41: 0 | O41: 0
A42: 1935 | B42: Stores Equipment | G42: 0 | H42: 0 | I42: 0 | J42: 0 | L42: 0 | M42: 0 | O42: 0
A43: 1940 | B43: Tools, Shop & Garage Equipment | G43: 0 | H43: 0 | I43: 0 | J43: 0 | L43: 0 | M43: 0 | O43: 0
A44: 1945 | B44: Measurement & Testing Equipment | G44: 0 | H44: 0 | I44: 0 | J44: 0 | L44: 0 | M44: 0 | O44: 0
A45: 1950 | B45: Power Operated Equipment | G45: 0 | H45: 0 | I45: 0 | J45: 0 | L45: 0 | M45: 0 | O45: 0
A46: 1955 | B46: Communications Equipment | G46: 0 | H46: 0 | I46: 0 | J46: 0 | L46: 0 | M46: 0 | O46: 0
A47: 1955 | B47: Communication Equipment (Smart Meters) | G47: 0 | H47: 0 | I47: 0 | J47: 0 | L47: 0 | M47: 0 | O47: 0
A48: 1960 | B48: Miscellaneous Equipment | G48: 0 | H48: 0 | I48: 0 | J48: 0 | L48: 0 | M48: 0 | O48: 0
A49: 1970 | B49: Load Management Controls Customer Premises | G49: 0 | H49: 0 | I49: 0 | J49: 0 | L49: 0 | M49: 0 | O49: 0
A50: 1975 | B50: Load Management Controls Utility Premises | G50: 0 | H50: 0 | I50: 0 | J50: 0 | L50: 0 | M50: 0 | O50: 0
A51: 1980 | B51: System Supervisor Equipment | G51: 0 | H51: 0 | I51: 0 | J51: 0 | L51: 0 | M51: 0 | O51: 0
A52: 1985 | B52: Miscellaneous Fixed Assets | G52: 0 | H52: 0 | I52: 0 | J52: 0 | L52: 0 | M52: 0 | O52: 0
A53: 1990 | B53: Other Tangible Property | G53: 0 | H53: 0 | I53: 0 | J53: 0 | L53: 0 | M53: 0 | O53: 0
A54: 1995 | B54: Contributions & Grants | G54: 0 | H54: 0 | I54: 0 | J54: 0 | L54: 0 | M54: 0 | O54: 0
B55: Total | C55: =SUM(C17:C54) -> 0 | D55: =SUM(D17:D54) -> 0 | H55: =SUM(H17:H54) -> 0 | I55: 0 | J55: 0 | K55: 0 | L55: 0 | M55: 0 | N55: 0 | O55: 0
A57: Notes:
A59: 1 | B59: Board policy of the "half-year" rule - the applicant must ensure that additions in the year attract a half-year depreciation expense in the first year. Deviations from this standard practice must be supported in the application.
A60: 2 | B60: The applicant must provide an explanation of material variances in evidence.
A61: 3 | B61: The applicant should ensure that the years for new additions of assets are the asset useful lives determined by management in accordance with the Board's regulatory accounting policies. The capitalization and depreciation expense accounting changes should be implemented consistent with the Board’s regulatory accounting policies as set out for modified IFRS as contained in the Report of the Board, Transition to International Financial Reporting Standards, EB-2008-0408, the Kinectrics Report, and the Revised 2012 Accounting Procedures Handbook for Electricity Distributors (“APH”).
A62: 4 | B62: A recalculation should be performed to determine the average remaining life of opening balance of assets (i.e. excluding 2012 additions) under the change in policies under CGAAP. For example, Asset A had a useful life of 20 years under CGAAP without the change in policies. On January 1, 2012, the effective date of the changes in policies, Asset A was 3 years depreciated. As a result, Asset A would have a remaining service life of 17 years (20 years less 3 years) as of January 1, 2012. Due to making the change in policies under CGAAP, management re-assessed the asset useful lives and concluded that the revised useful life of Asset A is now 30 years. Therefore, the average remaining useful life of the opening balance of Asset A is determined to be 27 years (30 years less 3 years) under the revised CGAAP as of January 1, 2012.
A63: 5 | B63: NBV must exclude assets still on the books but which have been fully amortized or depreciated.
A64: 6 | B64: This column refers to the calculated full year depreciation but excludes the depreciation expense on assets fully depreciated during the year. This column is used for the purpose of calculating depreciation expense in the following year on the next worksheet.
A66: General: | B66: Applicants must provide a breakdown of depreciation and amortization expense in the above format for all relevant accounts. Asset Retirement Obligations (AROs), depreciation and accretion expense should be disclosed separately consistent with the Notes of historical Audited Financial Statements.

Sheet App.2-CC_NewCGAAP_DepExp_2013 (hidden)
J1: File Number: | K1: =EBNUMBER -> 
J2: Exhibit:
J3: Tab:
J4: Schedule:
J5: Page:
J7: Date:
A9: Appendix 2-CC
A10: Depreciation and Amortization Expense
A11: Assumes the applicant made capitalization and depreciation expense accounting policy changes under CGAAP effective January 1, 2012 and will adopt IFRS for financial reporting purposes effective January 1, 2015.
C13: 2013 | D13: Revised CGAAP
A15: Account | B15: Description | C15: Additions | D15: Years (new additions only) | E15: Depreciation Rate on New Additions | F15: 2013 Depreciation Expense 1 | G15: 2013 Depreciation Expense per Apppendix 2-BA Fixed Assets, Column J (l) | H15: Variance 2 | I15: Depreciation Expense on 2013 Full Year Additions | J15: Less Depreciation Expense on Assets Fully Depreciated during the year (o) | K15: 2013 Full Year Depreciation 3
C16: (d) | D16: (f) | E16: (g) = 1 / (f) | F16: (h)=2012 Full Year Deprecation + ((d)*0.5)/(f) | H16: (m) = (h) - (l) | I16: (n)=((d))/(f) | K16: (p) = 2012 Full Year Depreciation + (n) - (o)
A17: 1611 | B17: Computer Software (Formally known as Account 1925) | E17: =IF(D17=0,0,1/D17) -> 0 | F17: =IF(D17=0,+'App.2-CB_NewCGAAP_DepExp_2012'!O17,+'App.2-CB_NewCGAAP_DepExp_2012'!O17+((C17*0.5)/D17)) -> 0 | H17: =IF(ISERROR(+F17-G17), 0, +F17-G17) -> 0 | I17: =IF(D17=0,0,+(C17)/D17) -> 0 | K17: =IF(ISERROR(+I17+'App.2-CB_NewCGAAP_DepExp_2012'!O17-J17), 0, +I17+'App.2-CB_NewCGAAP_DepExp_2012'!O17-J17) -> 0
A18: 1612 | B18: Land Rights (Formally known as Account 1906) | E18: 0 | F18: =IF(D18=0,+'App.2-CB_NewCGAAP_DepExp_2012'!O18,+'App.2-CB_NewCGAAP_DepExp_2012'!O18+((C18*0.5)/D18)) -> 0 | H18: 0 | I18: 0 | K18: =IF(ISERROR(+I18+'App.2-CB_NewCGAAP_DepExp_2012'!O18-J18), 0, +I18+'App.2-CB_NewCGAAP_DepExp_2012'!O18-J18) -> 0
A19: 1805 | B19: Land | E19: 0 | F19: =IF(D19=0,+'App.2-CB_NewCGAAP_DepExp_2012'!O19,+'App.2-CB_NewCGAAP_DepExp_2012'!O19+((C19*0.5)/D19)) -> 0 | H19: 0 | I19: 0 | K19: =IF(ISERROR(+I19+'App.2-CB_NewCGAAP_DepExp_2012'!O19-J19), 0, +I19+'App.2-CB_NewCGAAP_DepExp_2012'!O19-J19) -> 0
A20: 1808 | B20: Buildings | E20: 0 | F20: =IF(D20=0,+'App.2-CB_NewCGAAP_DepExp_2012'!O20,+'App.2-CB_NewCGAAP_DepExp_2012'!O20+((C20*0.5)/D20)) -> 0 | H20: 0 | I20: 0 | K20: =IF(ISERROR(+I20+'App.2-CB_NewCGAAP_DepExp_2012'!O20-J20), 0, +I20+'App.2-CB_NewCGAAP_DepExp_2012'!O20-J20) -> 0
A21: 1810 | B21: Leasehold Improvements | E21: 0 | F21: =IF(D21=0,+'App.2-CB_NewCGAAP_DepExp_2012'!O21,+'App.2-CB_NewCGAAP_DepExp_2012'!O21+((C21*0.5)/D21)) -> 0 | H21: 0 | I21: 0 | K21: =IF(ISERROR(+I21+'App.2-CB_NewCGAAP_DepExp_2012'!O21-J21), 0, +I21+'App.2-CB_NewCGAAP_DepExp_2012'!O21-J21) -> 0
A22: 1815 | B22: Transformer Station Equipment >50 kV | E22: 0 | F22: =IF(D22=0,+'App.2-CB_NewCGAAP_DepExp_2012'!O22,+'App.2-CB_NewCGAAP_DepExp_2012'!O22+((C22*0.5)/D22)) -> 0 | H22: 0 | I22: 0 | K22: =IF(ISERROR(+I22+'App.2-CB_NewCGAAP_DepExp_2012'!O22-J22), 0, +I22+'App.2-CB_NewCGAAP_DepExp_2012'!O22-J22) -> 0
A23: 1820 | B23: Distribution Station Equipment <50 kV | E23: 0 | F23: =IF(D23=0,+'App.2-CB_NewCGAAP_DepExp_2012'!O23,+'App.2-CB_NewCGAAP_DepExp_2012'!O23+((C23*0.5)/D23)) -> 0 | H23: 0 | I23: 0 | K23: =IF(ISERROR(+I23+'App.2-CB_NewCGAAP_DepExp_2012'!O23-J23), 0, +I23+'App.2-CB_NewCGAAP_DepExp_2012'!O23-J23) -> 0
A24: 1825 | B24: Storage Battery Equipment | E24: 0 | F24: =IF(D24=0,+'App.2-CB_NewCGAAP_DepExp_2012'!O24,+'App.2-CB_NewCGAAP_DepExp_2012'!O24+((C24*0.5)/D24)) -> 0 | H24: 0 | I24: 0 | K24: =IF(ISERROR(+I24+'App.2-CB_NewCGAAP_DepExp_2012'!O24-J24), 0, +I24+'App.2-CB_NewCGAAP_DepExp_2012'!O24-J24) -> 0
A25: 1830 | B25: Poles, Towers & Fixtures | E25: 0 | F25: =IF(D25=0,+'App.2-CB_NewCGAAP_DepExp_2012'!O25,+'App.2-CB_NewCGAAP_DepExp_2012'!O25+((C25*0.5)/D25)) -> 0 | H25: 0 | I25: 0 | K25: =IF(ISERROR(+I25+'App.2-CB_NewCGAAP_DepExp_2012'!O25-J25), 0, +I25+'App.2-CB_NewCGAAP_DepExp_2012'!O25-J25) -> 0
A26: 1835 | B26: Overhead Conductors & Devices | E26: 0 | F26: =IF(D26=0,+'App.2-CB_NewCGAAP_DepExp_2012'!O26,+'App.2-CB_NewCGAAP_DepExp_2012'!O26+((C26*0.5)/D26)) -> 0 | H26: 0 | I26: 0 | K26: =IF(ISERROR(+I26+'App.2-CB_NewCGAAP_DepExp_2012'!O26-J26), 0, +I26+'App.2-CB_NewCGAAP_DepExp_2012'!O26-J26) -> 0
A27: 1840 | B27: Underground Conduit | E27: 0 | F27: =IF(D27=0,+'App.2-CB_NewCGAAP_DepExp_2012'!O27,+'App.2-CB_NewCGAAP_DepExp_2012'!O27+((C27*0.5)/D27)) -> 0 | H27: 0 | I27: 0 | K27: =IF(ISERROR(+I27+'App.2-CB_NewCGAAP_DepExp_2012'!O27-J27), 0, +I27+'App.2-CB_NewCGAAP_DepExp_2012'!O27-J27) -> 0
A28: 1845 | B28: Underground Conductors & Devices | E28: 0 | F28: =IF(D28=0,+'App.2-CB_NewCGAAP_DepExp_2012'!O28,+'App.2-CB_NewCGAAP_DepExp_2012'!O28+((C28*0.5)/D28)) -> 0 | H28: 0 | I28: 0 | K28: =IF(ISERROR(+I28+'App.2-CB_NewCGAAP_DepExp_2012'!O28-J28), 0, +I28+'App.2-CB_NewCGAAP_DepExp_2012'!O28-J28) -> 0
A29: 1850 | B29: Line Transformers | E29: 0 | F29: =IF(D29=0,+'App.2-CB_NewCGAAP_DepExp_2012'!O29,+'App.2-CB_NewCGAAP_DepExp_2012'!O29+((C29*0.5)/D29)) -> 0 | H29: 0 | I29: 0 | K29: =IF(ISERROR(+I29+'App.2-CB_NewCGAAP_DepExp_2012'!O29-J29), 0, +I29+'App.2-CB_NewCGAAP_DepExp_2012'!O29-J29) -> 0
A30: 1855 | B30: Services (Overhead & Underground) | E30: 0 | F30: =IF(D30=0,+'App.2-CB_NewCGAAP_DepExp_2012'!O30,+'App.2-CB_NewCGAAP_DepExp_2012'!O30+((C30*0.5)/D30)) -> 0 | H30: 0 | I30: 0 | K30: =IF(ISERROR(+I30+'App.2-CB_NewCGAAP_DepExp_2012'!O30-J30), 0, +I30+'App.2-CB_NewCGAAP_DepExp_2012'!O30-J30) -> 0
A31: 1860 | B31: Meters | E31: 0 | F31: =IF(D31=0,+'App.2-CB_NewCGAAP_DepExp_2012'!O31,+'App.2-CB_NewCGAAP_DepExp_2012'!O31+((C31*0.5)/D31)) -> 0 | H31: 0 | I31: 0 | K31: =IF(ISERROR(+I31+'App.2-CB_NewCGAAP_DepExp_2012'!O31-J31), 0, +I31+'App.2-CB_NewCGAAP_DepExp_2012'!O31-J31) -> 0
A32: 1860 | B32: Meters (Smart Meters) | E32: 0 | F32: =IF(D32=0,+'App.2-CB_NewCGAAP_DepExp_2012'!O32,+'App.2-CB_NewCGAAP_DepExp_2012'!O32+((C32*0.5)/D32)) -> 0 | H32: 0 | I32: 0 | K32: =IF(ISERROR(+I32+'App.2-CB_NewCGAAP_DepExp_2012'!O32-J32), 0, +I32+'App.2-CB_NewCGAAP_DepExp_2012'!O32-J32) -> 0
A33: 1905 | B33: Land | E33: 0 | F33: =IF(D33=0,+'App.2-CB_NewCGAAP_DepExp_2012'!O33,+'App.2-CB_NewCGAAP_DepExp_2012'!O33+((C33*0.5)/D33)) -> 0 | H33: 0 | I33: 0 | K33: =IF(ISERROR(+I33+'App.2-CB_NewCGAAP_DepExp_2012'!O33-J33), 0, +I33+'App.2-CB_NewCGAAP_DepExp_2012'!O33-J33) -> 0
A34: 1908 | B34: Buildings & Fixtures | E34: 0 | F34: =IF(D34=0,+'App.2-CB_NewCGAAP_DepExp_2012'!O34,+'App.2-CB_NewCGAAP_DepExp_2012'!O34+((C34*0.5)/D34)) -> 0 | H34: 0 | I34: 0 | K34: =IF(ISERROR(+I34+'App.2-CB_NewCGAAP_DepExp_2012'!O34-J34), 0, +I34+'App.2-CB_NewCGAAP_DepExp_2012'!O34-J34) -> 0
A35: 1910 | B35: Leasehold Improvements | E35: 0 | F35: =IF(D35=0,+'App.2-CB_NewCGAAP_DepExp_2012'!O35,+'App.2-CB_NewCGAAP_DepExp_2012'!O35+((C35*0.5)/D35)) -> 0 | H35: 0 | I35: 0 | K35: =IF(ISERROR(+I35+'App.2-CB_NewCGAAP_DepExp_2012'!O35-J35), 0, +I35+'App.2-CB_NewCGAAP_DepExp_2012'!O35-J35) -> 0
A36: 1915 | B36: Office Furniture & Equipment (10 years) | E36: 0 | F36: =IF(D36=0,+'App.2-CB_NewCGAAP_DepExp_2012'!O36,+'App.2-CB_NewCGAAP_DepExp_2012'!O36+((C36*0.5)/D36)) -> 0 | H36: 0 | I36: 0 | K36: =IF(ISERROR(+I36+'App.2-CB_NewCGAAP_DepExp_2012'!O36-J36), 0, +I36+'App.2-CB_NewCGAAP_DepExp_2012'!O36-J36) -> 0
A37: 1915 | B37: Office Furniture & Equipment (5 years) | E37: 0 | F37: =IF(D37=0,+'App.2-CB_NewCGAAP_DepExp_2012'!O37,+'App.2-CB_NewCGAAP_DepExp_2012'!O37+((C37*0.5)/D37)) -> 0 | H37: 0 | I37: 0 | K37: =IF(ISERROR(+I37+'App.2-CB_NewCGAAP_DepExp_2012'!O37-J37), 0, +I37+'App.2-CB_NewCGAAP_DepExp_2012'!O37-J37) -> 0
A38: 1920 | B38: Computer Equipment - Hardware | E38: 0 | F38: =IF(D38=0,+'App.2-CB_NewCGAAP_DepExp_2012'!O38,+'App.2-CB_NewCGAAP_DepExp_2012'!O38+((C38*0.5)/D38)) -> 0 | H38: 0 | I38: 0 | K38: =IF(ISERROR(+I38+'App.2-CB_NewCGAAP_DepExp_2012'!O38-J38), 0, +I38+'App.2-CB_NewCGAAP_DepExp_2012'!O38-J38) -> 0
A39: 1920 | B39: Computer Equip.-Hardware(Post Mar. 22/04) | E39: 0 | F39: =IF(D39=0,+'App.2-CB_NewCGAAP_DepExp_2012'!O39,+'App.2-CB_NewCGAAP_DepExp_2012'!O39+((C39*0.5)/D39)) -> 0 | H39: 0 | I39: 0 | K39: =IF(ISERROR(+I39+'App.2-CB_NewCGAAP_DepExp_2012'!O39-J39), 0, +I39+'App.2-CB_NewCGAAP_DepExp_2012'!O39-J39) -> 0
A40: 1920 | B40: Computer Equip.-Hardware(Post Mar. 19/07) | E40: 0 | F40: =IF(D40=0,+'App.2-CB_NewCGAAP_DepExp_2012'!O40,+'App.2-CB_NewCGAAP_DepExp_2012'!O40+((C40*0.5)/D40)) -> 0 | H40: 0 | I40: 0 | K40: =IF(ISERROR(+I40+'App.2-CB_NewCGAAP_DepExp_2012'!O40-J40), 0, +I40+'App.2-CB_NewCGAAP_DepExp_2012'!O40-J40) -> 0
A41: 1930 | B41: Transportation Equipment | E41: 0 | F41: =IF(D41=0,+'App.2-CB_NewCGAAP_DepExp_2012'!O41,+'App.2-CB_NewCGAAP_DepExp_2012'!O41+((C41*0.5)/D41)) -> 0 | H41: 0 | I41: 0 | K41: =IF(ISERROR(+I41+'App.2-CB_NewCGAAP_DepExp_2012'!O41-J41), 0, +I41+'App.2-CB_NewCGAAP_DepExp_2012'!O41-J41) -> 0
A42: 1935 | B42: Stores Equipment | E42: 0 | F42: =IF(D42=0,+'App.2-CB_NewCGAAP_DepExp_2012'!O42,+'App.2-CB_NewCGAAP_DepExp_2012'!O42+((C42*0.5)/D42)) -> 0 | H42: 0 | I42: 0 | K42: =IF(ISERROR(+I42+'App.2-CB_NewCGAAP_DepExp_2012'!O42-J42), 0, +I42+'App.2-CB_NewCGAAP_DepExp_2012'!O42-J42) -> 0
A43: 1940 | B43: Tools, Shop & Garage Equipment | E43: 0 | F43: =IF(D43=0,+'App.2-CB_NewCGAAP_DepExp_2012'!O43,+'App.2-CB_NewCGAAP_DepExp_2012'!O43+((C43*0.5)/D43)) -> 0 | H43: 0 | I43: 0 | K43: =IF(ISERROR(+I43+'App.2-CB_NewCGAAP_DepExp_2012'!O43-J43), 0, +I43+'App.2-CB_NewCGAAP_DepExp_2012'!O43-J43) -> 0
A44: 1945 | B44: Measurement & Testing Equipment | E44: 0 | F44: =IF(D44=0,+'App.2-CB_NewCGAAP_DepExp_2012'!O44,+'App.2-CB_NewCGAAP_DepExp_2012'!O44+((C44*0.5)/D44)) -> 0 | H44: 0 | I44: 0 | K44: =IF(ISERROR(+I44+'App.2-CB_NewCGAAP_DepExp_2012'!O44-J44), 0, +I44+'App.2-CB_NewCGAAP_DepExp_2012'!O44-J44) -> 0
A45: 1950 | B45: Power Operated Equipment | E45: 0 | F45: =IF(D45=0,+'App.2-CB_NewCGAAP_DepExp_2012'!O45,+'App.2-CB_NewCGAAP_DepExp_2012'!O45+((C45*0.5)/D45)) -> 0 | H45: 0 | I45: 0 | K45: =IF(ISERROR(+I45+'App.2-CB_NewCGAAP_DepExp_2012'!O45-J45), 0, +I45+'App.2-CB_NewCGAAP_DepExp_2012'!O45-J45) -> 0
A46: 1955 | B46: Communications Equipment | E46: 0 | F46: =IF(D46=0,+'App.2-CB_NewCGAAP_DepExp_2012'!O46,+'App.2-CB_NewCGAAP_DepExp_2012'!O46+((C46*0.5)/D46)) -> 0 | H46: 0 | I46: 0 | K46: =IF(ISERROR(+I46+'App.2-CB_NewCGAAP_DepExp_2012'!O46-J46), 0, +I46+'App.2-CB_NewCGAAP_DepExp_2012'!O46-J46) -> 0
A47: 1955 | B47: Communication Equipment (Smart Meters) | E47: 0 | F47: =IF(D47=0,+'App.2-CB_NewCGAAP_DepExp_2012'!O47,+'App.2-CB_NewCGAAP_DepExp_2012'!O47+((C47*0.5)/D47)) -> 0 | H47: 0 | I47: 0 | K47: =IF(ISERROR(+I47+'App.2-CB_NewCGAAP_DepExp_2012'!O47-J47), 0, +I47+'App.2-CB_NewCGAAP_DepExp_2012'!O47-J47) -> 0
A48: 1960 | B48: Miscellaneous Equipment | E48: 0 | F48: =IF(D48=0,+'App.2-CB_NewCGAAP_DepExp_2012'!O48,+'App.2-CB_NewCGAAP_DepExp_2012'!O48+((C48*0.5)/D48)) -> 0 | H48: 0 | I48: 0 | K48: =IF(ISERROR(+I48+'App.2-CB_NewCGAAP_DepExp_2012'!O48-J48), 0, +I48+'App.2-CB_NewCGAAP_DepExp_2012'!O48-J48) -> 0
A49: 1970 | B49: Load Management Controls Customer Premises | E49: 0 | F49: =IF(D49=0,+'App.2-CB_NewCGAAP_DepExp_2012'!O49,+'App.2-CB_NewCGAAP_DepExp_2012'!O49+((C49*0.5)/D49)) -> 0 | H49: 0 | I49: 0 | K49: =IF(ISERROR(+I49+'App.2-CB_NewCGAAP_DepExp_2012'!O49-J49), 0, +I49+'App.2-CB_NewCGAAP_DepExp_2012'!O49-J49) -> 0
A50: 1975 | B50: Load Management Controls Utility Premises | E50: 0 | F50: =IF(D50=0,+'App.2-CB_NewCGAAP_DepExp_2012'!O50,+'App.2-CB_NewCGAAP_DepExp_2012'!O50+((C50*0.5)/D50)) -> 0 | H50: 0 | I50: 0 | K50: =IF(ISERROR(+I50+'App.2-CB_NewCGAAP_DepExp_2012'!O50-J50), 0, +I50+'App.2-CB_NewCGAAP_DepExp_2012'!O50-J50) -> 0
A51: 1980 | B51: System Supervisor Equipment | E51: 0 | F51: =IF(D51=0,+'App.2-CB_NewCGAAP_DepExp_2012'!O51,+'App.2-CB_NewCGAAP_DepExp_2012'!O51+((C51*0.5)/D51)) -> 0 | H51: 0 | I51: 0 | K51: =IF(ISERROR(+I51+'App.2-CB_NewCGAAP_DepExp_2012'!O51-J51), 0, +I51+'App.2-CB_NewCGAAP_DepExp_2012'!O51-J51) -> 0
A52: 1985 | B52: Miscellaneous Fixed Assets | E52: 0 | F52: =IF(D52=0,+'App.2-CB_NewCGAAP_DepExp_2012'!O52,+'App.2-CB_NewCGAAP_DepExp_2012'!O52+((C52*0.5)/D52)) -> 0 | H52: 0 | I52: 0 | K52: =IF(ISERROR(+I52+'App.2-CB_NewCGAAP_DepExp_2012'!O52-J52), 0, +I52+'App.2-CB_NewCGAAP_DepExp_2012'!O52-J52) -> 0
A53: 1990 | B53: Other Tangible Property | E53: 0 | F53: =IF(D53=0,+'App.2-CB_NewCGAAP_DepExp_2012'!O53,+'App.2-CB_NewCGAAP_DepExp_2012'!O53+((C53*0.5)/D53)) -> 0 | H53: 0 | I53: 0 | K53: =IF(ISERROR(+I53+'App.2-CB_NewCGAAP_DepExp_2012'!O53-J53), 0, +I53+'App.2-CB_NewCGAAP_DepExp_2012'!O53-J53) -> 0
A54: 1995 | B54: Contributions & Grants | E54: 0 | F54: =IF(D54=0,+'App.2-CB_NewCGAAP_DepExp_2012'!O54,+'App.2-CB_NewCGAAP_DepExp_2012'!O54+((C54*0.5)/D54)) -> 0 | H54: 0 | I54: 0 | K54: =IF(ISERROR(+I54+'App.2-CB_NewCGAAP_DepExp_2012'!O54-J54), 0, +I54+'App.2-CB_NewCGAAP_DepExp_2012'!O54-J54) -> 0
B55: Total | C55: =SUM(C17:C54) -> 0 | F55: =SUM(F17:F54) -> 0 | G55: 0 | H55: 0 | I55: 0 | J55: 0 | K55: 0
A57: Notes:
A58: 1 | B58: Board policy of the "half-year" rule - the applicant must ensure that additions in the year attract a half-year depreciation expense in the first year. Deviations from this standard practice must be supported in the application.
A59: 2 | B59: The applicant must provide an explanation of material variances in evidence.
A60: 3 | B60: This column refers to the calculated full year depreciation but excludes the depreciation expense on assets fully depreciated during the year. This column is used for the purpose of calculating depreciation expense in the following year on the next worksheet.
A62: General: | B62: Applicants must provide a breakdown of depreciation and amortization expense in the above format for all relevant accounts. Asset Retirement Obligations (AROs), depreciation and accretion expense should be disclosed separately consistent with the Notes of historical Audited Financial Statements.

Sheet App.2-CD_MIFRS_DepExp_2014 (hidden)
J1: File Number: | K1: =EBNUMBER -> 
J2: Exhibit:
J3: Tab:
J4: Schedule:
J5: Page:
J7: Date:
A9: Appendix 2-CD
A10: Depreciation and Amortization Expense
A11: Assumes the applicant made capitalization and depreciation expense accounting policy changes under CGAAP effective January 1, 2012 and will adopt IFRS for financial reporting purposes effective January 1, 2015.
E13: 2014 | F13: MIFRS
A15: Account | B15: Description | C15: Additions | D15: Years (new additions only) | E15: Depreciation Rate on New Additions | F15: 2014 Depreciation Expense 1 | G15: 2014 Depreciation Expense per Apppendix 2-BA Fixed Assets, Column J (l) | H15: Variance 2 | I15: Depreciation Expense on 2014 Full Year Additions | J15: Less Depreciation Expense on Assets Fully Depreciated during the year (o) | K15: 2014 Full Year Depreciation 3
C16: (d) | D16: (f) | E16: (g) = 1 / (f) | F16: (h)=2013 Full Year Deprecation + ((d)*0.5)/(f) | H16: (m) = (h) - (l) | I16: (n)=((d))/(f) | K16: (p) = 2013 Full Year Depreciation + (n) - (o)
A17: 1611 | B17: Computer Software (Formally known as Account 1925) | E17: =IF(D17=0,0,1/D17) -> 0 | F17: =IF(D17=0,+'App.2-CC_NewCGAAP_DepExp_2013'!K17,+'App.2-CC_NewCGAAP_DepExp_2013'!K17+((C17*0.5)/D17)) -> 0 | H17: =IF(ISERROR(+F17-G17), 0, +F17-G17) -> 0 | I17: =IF(D17=0,0,+(C17)/D17) -> 0 | K17: =IF(ISERROR(+I17+'App.2-CC_NewCGAAP_DepExp_2013'!K17-J17), 0, +I17+'App.2-CC_NewCGAAP_DepExp_2013'!K17-J17) -> 0
A18: 1612 | B18: Land Rights (Formally known as Account 1906) | E18: 0 | F18: =IF(D18=0,+'App.2-CC_NewCGAAP_DepExp_2013'!K18,+'App.2-CC_NewCGAAP_DepExp_2013'!K18+((C18*0.5)/D18)) -> 0 | H18: 0 | I18: 0 | K18: =IF(ISERROR(+I18+'App.2-CC_NewCGAAP_DepExp_2013'!K18-J18), 0, +I18+'App.2-CC_NewCGAAP_DepExp_2013'!K18-J18) -> 0
A19: 1805 | B19: Land | E19: 0 | F19: =IF(D19=0,+'App.2-CC_NewCGAAP_DepExp_2013'!K19,+'App.2-CC_NewCGAAP_DepExp_2013'!K19+((C19*0.5)/D19)) -> 0 | H19: 0 | I19: 0 | K19: =IF(ISERROR(+I19+'App.2-CC_NewCGAAP_DepExp_2013'!K19-J19), 0, +I19+'App.2-CC_NewCGAAP_DepExp_2013'!K19-J19) -> 0
A20: 1808 | B20: Buildings | E20: 0 | F20: =IF(D20=0,+'App.2-CC_NewCGAAP_DepExp_2013'!K20,+'App.2-CC_NewCGAAP_DepExp_2013'!K20+((C20*0.5)/D20)) -> 0 | H20: 0 | I20: 0 | K20: =IF(ISERROR(+I20+'App.2-CC_NewCGAAP_DepExp_2013'!K20-J20), 0, +I20+'App.2-CC_NewCGAAP_DepExp_2013'!K20-J20) -> 0
A21: 1810 | B21: Leasehold Improvements | E21: 0 | F21: =IF(D21=0,+'App.2-CC_NewCGAAP_DepExp_2013'!K21,+'App.2-CC_NewCGAAP_DepExp_2013'!K21+((C21*0.5)/D21)) -> 0 | H21: 0 | I21: 0 | K21: =IF(ISERROR(+I21+'App.2-CC_NewCGAAP_DepExp_2013'!K21-J21), 0, +I21+'App.2-CC_NewCGAAP_DepExp_2013'!K21-J21) -> 0
A22: 1815 | B22: Transformer Station Equipment >50 kV | E22: 0 | F22: =IF(D22=0,+'App.2-CC_NewCGAAP_DepExp_2013'!K22,+'App.2-CC_NewCGAAP_DepExp_2013'!K22+((C22*0.5)/D22)) -> 0 | H22: 0 | I22: 0 | K22: =IF(ISERROR(+I22+'App.2-CC_NewCGAAP_DepExp_2013'!K22-J22), 0, +I22+'App.2-CC_NewCGAAP_DepExp_2013'!K22-J22) -> 0
A23: 1820 | B23: Distribution Station Equipment <50 kV | E23: 0 | F23: =IF(D23=0,+'App.2-CC_NewCGAAP_DepExp_2013'!K23,+'App.2-CC_NewCGAAP_DepExp_2013'!K23+((C23*0.5)/D23)) -> 0 | H23: 0 | I23: 0 | K23: =IF(ISERROR(+I23+'App.2-CC_NewCGAAP_DepExp_2013'!K23-J23), 0, +I23+'App.2-CC_NewCGAAP_DepExp_2013'!K23-J23) -> 0
A24: 1825 | B24: Storage Battery Equipment | E24: 0 | F24: =IF(D24=0,+'App.2-CC_NewCGAAP_DepExp_2013'!K24,+'App.2-CC_NewCGAAP_DepExp_2013'!K24+((C24*0.5)/D24)) -> 0 | H24: 0 | I24: 0 | K24: =IF(ISERROR(+I24+'App.2-CC_NewCGAAP_DepExp_2013'!K24-J24), 0, +I24+'App.2-CC_NewCGAAP_DepExp_2013'!K24-J24) -> 0
A25: 1830 | B25: Poles, Towers & Fixtures | E25: 0 | F25: =IF(D25=0,+'App.2-CC_NewCGAAP_DepExp_2013'!K25,+'App.2-CC_NewCGAAP_DepExp_2013'!K25+((C25*0.5)/D25)) -> 0 | H25: 0 | I25: 0 | K25: =IF(ISERROR(+I25+'App.2-CC_NewCGAAP_DepExp_2013'!K25-J25), 0, +I25+'App.2-CC_NewCGAAP_DepExp_2013'!K25-J25) -> 0
A26: 1835 | B26: Overhead Conductors & Devices | E26: 0 | F26: =IF(D26=0,+'App.2-CC_NewCGAAP_DepExp_2013'!K26,+'App.2-CC_NewCGAAP_DepExp_2013'!K26+((C26*0.5)/D26)) -> 0 | H26: 0 | I26: 0 | K26: =IF(ISERROR(+I26+'App.2-CC_NewCGAAP_DepExp_2013'!K26-J26), 0, +I26+'App.2-CC_NewCGAAP_DepExp_2013'!K26-J26) -> 0
A27: 1840 | B27: Underground Conduit | E27: 0 | F27: =IF(D27=0,+'App.2-CC_NewCGAAP_DepExp_2013'!K27,+'App.2-CC_NewCGAAP_DepExp_2013'!K27+((C27*0.5)/D27)) -> 0 | H27: 0 | I27: 0 | K27: =IF(ISERROR(+I27+'App.2-CC_NewCGAAP_DepExp_2013'!K27-J27), 0, +I27+'App.2-CC_NewCGAAP_DepExp_2013'!K27-J27) -> 0
A28: 1845 | B28: Underground Conductors & Devices | E28: 0 | F28: =IF(D28=0,+'App.2-CC_NewCGAAP_DepExp_2013'!K28,+'App.2-CC_NewCGAAP_DepExp_2013'!K28+((C28*0.5)/D28)) -> 0 | H28: 0 | I28: 0 | K28: =IF(ISERROR(+I28+'App.2-CC_NewCGAAP_DepExp_2013'!K28-J28), 0, +I28+'App.2-CC_NewCGAAP_DepExp_2013'!K28-J28) -> 0
A29: 1850 | B29: Line Transformers | E29: 0 | F29: =IF(D29=0,+'App.2-CC_NewCGAAP_DepExp_2013'!K29,+'App.2-CC_NewCGAAP_DepExp_2013'!K29+((C29*0.5)/D29)) -> 0 | H29: 0 | I29: 0 | K29: =IF(ISERROR(+I29+'App.2-CC_NewCGAAP_DepExp_2013'!K29-J29), 0, +I29+'App.2-CC_NewCGAAP_DepExp_2013'!K29-J29) -> 0
A30: 1855 | B30: Services (Overhead & Underground) | E30: 0 | F30: =IF(D30=0,+'App.2-CC_NewCGAAP_DepExp_2013'!K30,+'App.2-CC_NewCGAAP_DepExp_2013'!K30+((C30*0.5)/D30)) -> 0 | H30: 0 | I30: 0 | K30: =IF(ISERROR(+I30+'App.2-CC_NewCGAAP_DepExp_2013'!K30-J30), 0, +I30+'App.2-CC_NewCGAAP_DepExp_2013'!K30-J30) -> 0
A31: 1860 | B31: Meters | E31: 0 | F31: =IF(D31=0,+'App.2-CC_NewCGAAP_DepExp_2013'!K31,+'App.2-CC_NewCGAAP_DepExp_2013'!K31+((C31*0.5)/D31)) -> 0 | H31: 0 | I31: 0 | K31: =IF(ISERROR(+I31+'App.2-CC_NewCGAAP_DepExp_2013'!K31-J31), 0, +I31+'App.2-CC_NewCGAAP_DepExp_2013'!K31-J31) -> 0
A32: 1860 | B32: Meters (Smart Meters) | E32: 0 | F32: =IF(D32=0,+'App.2-CC_NewCGAAP_DepExp_2013'!K32,+'App.2-CC_NewCGAAP_DepExp_2013'!K32+((C32*0.5)/D32)) -> 0 | H32: 0 | I32: 0 | K32: =IF(ISERROR(+I32+'App.2-CC_NewCGAAP_DepExp_2013'!K32-J32), 0, +I32+'App.2-CC_NewCGAAP_DepExp_2013'!K32-J32) -> 0
A33: 1905 | B33: Land | E33: 0 | F33: =IF(D33=0,+'App.2-CC_NewCGAAP_DepExp_2013'!K33,+'App.2-CC_NewCGAAP_DepExp_2013'!K33+((C33*0.5)/D33)) -> 0 | H33: 0 | I33: 0 | K33: =IF(ISERROR(+I33+'App.2-CC_NewCGAAP_DepExp_2013'!K33-J33), 0, +I33+'App.2-CC_NewCGAAP_DepExp_2013'!K33-J33) -> 0
A34: 1908 | B34: Buildings & Fixtures | E34: 0 | F34: =IF(D34=0,+'App.2-CC_NewCGAAP_DepExp_2013'!K34,+'App.2-CC_NewCGAAP_DepExp_2013'!K34+((C34*0.5)/D34)) -> 0 | H34: 0 | I34: 0 | K34: =IF(ISERROR(+I34+'App.2-CC_NewCGAAP_DepExp_2013'!K34-J34), 0, +I34+'App.2-CC_NewCGAAP_DepExp_2013'!K34-J34) -> 0
A35: 1910 | B35: Leasehold Improvements | E35: 0 | F35: =IF(D35=0,+'App.2-CC_NewCGAAP_DepExp_2013'!K35,+'App.2-CC_NewCGAAP_DepExp_2013'!K35+((C35*0.5)/D35)) -> 0 | H35: 0 | I35: 0 | K35: =IF(ISERROR(+I35+'App.2-CC_NewCGAAP_DepExp_2013'!K35-J35), 0, +I35+'App.2-CC_NewCGAAP_DepExp_2013'!K35-J35) -> 0
A36: 1915 | B36: Office Furniture & Equipment (10 years) | E36: 0 | F36: =IF(D36=0,+'App.2-CC_NewCGAAP_DepExp_2013'!K36,+'App.2-CC_NewCGAAP_DepExp_2013'!K36+((C36*0.5)/D36)) -> 0 | H36: 0 | I36: 0 | K36: =IF(ISERROR(+I36+'App.2-CC_NewCGAAP_DepExp_2013'!K36-J36), 0, +I36+'App.2-CC_NewCGAAP_DepExp_2013'!K36-J36) -> 0
A37: 1915 | B37: Office Furniture & Equipment (5 years) | E37: 0 | F37: =IF(D37=0,+'App.2-CC_NewCGAAP_DepExp_2013'!K37,+'App.2-CC_NewCGAAP_DepExp_2013'!K37+((C37*0.5)/D37)) -> 0 | H37: 0 | I37: 0 | K37: =IF(ISERROR(+I37+'App.2-CC_NewCGAAP_DepExp_2013'!K37-J37), 0, +I37+'App.2-CC_NewCGAAP_DepExp_2013'!K37-J37) -> 0
A38: 1920 | B38: Computer Equipment - Hardware | E38: 0 | F38: =IF(D38=0,+'App.2-CC_NewCGAAP_DepExp_2013'!K38,+'App.2-CC_NewCGAAP_DepExp_2013'!K38+((C38*0.5)/D38)) -> 0 | H38: 0 | I38: 0 | K38: =IF(ISERROR(+I38+'App.2-CC_NewCGAAP_DepExp_2013'!K38-J38), 0, +I38+'App.2-CC_NewCGAAP_DepExp_2013'!K38-J38) -> 0
A39: 1920 | B39: Computer Equip.-Hardware(Post Mar. 22/04) | E39: 0 | F39: =IF(D39=0,+'App.2-CC_NewCGAAP_DepExp_2013'!K39,+'App.2-CC_NewCGAAP_DepExp_2013'!K39+((C39*0.5)/D39)) -> 0 | H39: 0 | I39: 0 | K39: =IF(ISERROR(+I39+'App.2-CC_NewCGAAP_DepExp_2013'!K39-J39), 0, +I39+'App.2-CC_NewCGAAP_DepExp_2013'!K39-J39) -> 0
A40: 1920 | B40: Computer Equip.-Hardware(Post Mar. 19/07) | E40: 0 | F40: =IF(D40=0,+'App.2-CC_NewCGAAP_DepExp_2013'!K40,+'App.2-CC_NewCGAAP_DepExp_2013'!K40+((C40*0.5)/D40)) -> 0 | H40: 0 | I40: 0 | K40: =IF(ISERROR(+I40+'App.2-CC_NewCGAAP_DepExp_2013'!K40-J40), 0, +I40+'App.2-CC_NewCGAAP_DepExp_2013'!K40-J40) -> 0
A41: 1930 | B41: Transportation Equipment | E41: 0 | F41: =IF(D41=0,+'App.2-CC_NewCGAAP_DepExp_2013'!K41,+'App.2-CC_NewCGAAP_DepExp_2013'!K41+((C41*0.5)/D41)) -> 0 | H41: 0 | I41: 0 | K41: =IF(ISERROR(+I41+'App.2-CC_NewCGAAP_DepExp_2013'!K41-J41), 0, +I41+'App.2-CC_NewCGAAP_DepExp_2013'!K41-J41) -> 0
A42: 1935 | B42: Stores Equipment | E42: 0 | F42: =IF(D42=0,+'App.2-CC_NewCGAAP_DepExp_2013'!K42,+'App.2-CC_NewCGAAP_DepExp_2013'!K42+((C42*0.5)/D42)) -> 0 | H42: 0 | I42: 0 | K42: =IF(ISERROR(+I42+'App.2-CC_NewCGAAP_DepExp_2013'!K42-J42), 0, +I42+'App.2-CC_NewCGAAP_DepExp_2013'!K42-J42) -> 0
A43: 1940 | B43: Tools, Shop & Garage Equipment | E43: 0 | F43: =IF(D43=0,+'App.2-CC_NewCGAAP_DepExp_2013'!K43,+'App.2-CC_NewCGAAP_DepExp_2013'!K43+((C43*0.5)/D43)) -> 0 | H43: 0 | I43: 0 | K43: =IF(ISERROR(+I43+'App.2-CC_NewCGAAP_DepExp_2013'!K43-J43), 0, +I43+'App.2-CC_NewCGAAP_DepExp_2013'!K43-J43) -> 0
A44: 1945 | B44: Measurement & Testing Equipment | E44: 0 | F44: =IF(D44=0,+'App.2-CC_NewCGAAP_DepExp_2013'!K44,+'App.2-CC_NewCGAAP_DepExp_2013'!K44+((C44*0.5)/D44)) -> 0 | H44: 0 | I44: 0 | K44: =IF(ISERROR(+I44+'App.2-CC_NewCGAAP_DepExp_2013'!K44-J44), 0, +I44+'App.2-CC_NewCGAAP_DepExp_2013'!K44-J44) -> 0
A45: 1950 | B45: Power Operated Equipment | E45: 0 | F45: =IF(D45=0,+'App.2-CC_NewCGAAP_DepExp_2013'!K45,+'App.2-CC_NewCGAAP_DepExp_2013'!K45+((C45*0.5)/D45)) -> 0 | H45: 0 | I45: 0 | K45: =IF(ISERROR(+I45+'App.2-CC_NewCGAAP_DepExp_2013'!K45-J45), 0, +I45+'App.2-CC_NewCGAAP_DepExp_2013'!K45-J45) -> 0
A46: 1955 | B46: Communications Equipment | E46: 0 | F46: =IF(D46=0,+'App.2-CC_NewCGAAP_DepExp_2013'!K46,+'App.2-CC_NewCGAAP_DepExp_2013'!K46+((C46*0.5)/D46)) -> 0 | H46: 0 | I46: 0 | K46: =IF(ISERROR(+I46+'App.2-CC_NewCGAAP_DepExp_2013'!K46-J46), 0, +I46+'App.2-CC_NewCGAAP_DepExp_2013'!K46-J46) -> 0
A47: 1955 | B47: Communication Equipment (Smart Meters) | E47: 0 | F47: =IF(D47=0,+'App.2-CC_NewCGAAP_DepExp_2013'!K47,+'App.2-CC_NewCGAAP_DepExp_2013'!K47+((C47*0.5)/D47)) -> 0 | H47: 0 | I47: 0 | K47: =IF(ISERROR(+I47+'App.2-CC_NewCGAAP_DepExp_2013'!K47-J47), 0, +I47+'App.2-CC_NewCGAAP_DepExp_2013'!K47-J47) -> 0
A48: 1960 | B48: Miscellaneous Equipment | E48: 0 | F48: =IF(D48=0,+'App.2-CC_NewCGAAP_DepExp_2013'!K48,+'App.2-CC_NewCGAAP_DepExp_2013'!K48+((C48*0.5)/D48)) -> 0 | H48: 0 | I48: 0 | K48: =IF(ISERROR(+I48+'App.2-CC_NewCGAAP_DepExp_2013'!K48-J48), 0, +I48+'App.2-CC_NewCGAAP_DepExp_2013'!K48-J48) -> 0
A49: 1970 | B49: Load Management Controls Customer Premises | E49: 0 | F49: =IF(D49=0,+'App.2-CC_NewCGAAP_DepExp_2013'!K49,+'App.2-CC_NewCGAAP_DepExp_2013'!K49+((C49*0.5)/D49)) -> 0 | H49: 0 | I49: 0 | K49: =IF(ISERROR(+I49+'App.2-CC_NewCGAAP_DepExp_2013'!K49-J49), 0, +I49+'App.2-CC_NewCGAAP_DepExp_2013'!K49-J49) -> 0
A50: 1975 | B50: Load Management Controls Utility Premises | E50: 0 | F50: =IF(D50=0,+'App.2-CC_NewCGAAP_DepExp_2013'!K50,+'App.2-CC_NewCGAAP_DepExp_2013'!K50+((C50*0.5)/D50)) -> 0 | H50: 0 | I50: 0 | K50: =IF(ISERROR(+I50+'App.2-CC_NewCGAAP_DepExp_2013'!K50-J50), 0, +I50+'App.2-CC_NewCGAAP_DepExp_2013'!K50-J50) -> 0
A51: 1980 | B51: System Supervisor Equipment | E51: 0 | F51: =IF(D51=0,+'App.2-CC_NewCGAAP_DepExp_2013'!K51,+'App.2-CC_NewCGAAP_DepExp_2013'!K51+((C51*0.5)/D51)) -> 0 | H51: 0 | I51: 0 | K51: =IF(ISERROR(+I51+'App.2-CC_NewCGAAP_DepExp_2013'!K51-J51), 0, +I51+'App.2-CC_NewCGAAP_DepExp_2013'!K51-J51) -> 0
A52: 1985 | B52: Miscellaneous Fixed Assets | E52: 0 | F52: =IF(D52=0,+'App.2-CC_NewCGAAP_DepExp_2013'!K52,+'App.2-CC_NewCGAAP_DepExp_2013'!K52+((C52*0.5)/D52)) -> 0 | H52: 0 | I52: 0 | K52: =IF(ISERROR(+I52+'App.2-CC_NewCGAAP_DepExp_2013'!K52-J52), 0, +I52+'App.2-CC_NewCGAAP_DepExp_2013'!K52-J52) -> 0
A53: 1990 | B53: Other Tangible Property | E53: 0 | F53: =IF(D53=0,+'App.2-CC_NewCGAAP_DepExp_2013'!K53,+'App.2-CC_NewCGAAP_DepExp_2013'!K53+((C53*0.5)/D53)) -> 0 | H53: 0 | I53: 0 | K53: =IF(ISERROR(+I53+'App.2-CC_NewCGAAP_DepExp_2013'!K53-J53), 0, +I53+'App.2-CC_NewCGAAP_DepExp_2013'!K53-J53) -> 0
E54: 0 | F54: =IF(D54=0,+'App.2-CC_NewCGAAP_DepExp_2013'!K54,+'App.2-CC_NewCGAAP_DepExp_2013'!K54+((C54*0.5)/D54)) -> 0 | H54: 0 | I54: 0 | K54: =IF(ISERROR(+I54+'App.2-CC_NewCGAAP_DepExp_2013'!K54-J54), 0, +I54+'App.2-CC_NewCGAAP_DepExp_2013'!K54-J54) -> 0
B55: Total | C55: =SUM(C17:C54) -> 0 | F55: =SUM(F17:F54) -> 0 | G55: 0 | H55: 0 | I55: 0 | J55: 0 | K55: 0
B56: Depreciation exp. adj. from gain or loss on the retirement of assets (pool of like assets) | F56: 0
B57: Total Depreciation Expense | F57: =+F56+F55 -> 0
A59: Notes:
A60: 1 | B60: Board policy of the "half-year" rule - the applicant must ensure that additions in the year attract a half-year depreciation expense in the first year. Deviations from this standard practice must be supported in the application.
A61: 2 | B61: The applicant must provide an explanation of material variances in evidence.
A62: 3 | B62: This column refers to the calculated full year depreciation but excludes the depreciation expense on assets fully depreciated during the year. This column is used for the purpose of calculating depreciation expense in the following year on the next worksheet.
A64: General: | B64: Applicants must provide a breakdown of depreciation and amortization expense in the above format for all relevant accounts. Asset Retirement Obligations (AROs), depreciation and accretion expense should be disclosed separately consistent with the Notes of historical Audited Financial Statements.

Sheet App.2-CE_MIFRS_DepExp_2015 (hidden)
G1: File Number: | H1: =EBNUMBER -> 
G2: Exhibit:
G3: Tab:
G4: Schedule:
G5: Page:
G7: Date:
A9: Appendix 2-CE
A10: Depreciation and Amortization Expense
A11: Assumes the applicant made capitalization and depreciation expense accounting policy changes under CGAAP effective January 1, 2012 and will adopt IFRS for financial reporting purposes effective January 1, 2015.
C13: 2015 | D13: MIFRS
A15: Account | B15: Description | C15: Additions | D15: Years (new additions only) | E15: Depreciation Rate on New Additions | F15: 2015 Depreciation Expense 1 | G15: 2015 Depreciation Expense per Appendix 2-BA Fixed Assets, Column J (l) | H15: Variance 2
C16: (d) | D16: (f) | E16: (g) = 1 / (f) | F16: (h)=2014 Full Year Depreciation + ((d)*0.5)/(f) | H16: (m) = (h) - (l)
A17: 1611 | B17: Computer Software (Formally known as Account 1925) | E17: =IF(D17=0,0,1/D17) -> 0 | F17: =IF(D17=0,'App.2-CD_MIFRS_DepExp_2014'!K17,+'App.2-CD_MIFRS_DepExp_2014'!K17+((C17*0.5)/D17)) -> 0 | H17: =IF(ISERROR(+F17-G17), 0, +F17-G17) -> 0
A18: 1612 | B18: Land Rights (Formally known as Account 1906) | E18: 0 | F18: =IF(D18=0,'App.2-CD_MIFRS_DepExp_2014'!K18,+'App.2-CD_MIFRS_DepExp_2014'!K18+((C18*0.5)/D18)) -> 0 | H18: 0
A19: 1805 | B19: Land | E19: 0 | F19: =IF(D19=0,'App.2-CD_MIFRS_DepExp_2014'!K19,+'App.2-CD_MIFRS_DepExp_2014'!K19+((C19*0.5)/D19)) -> 0 | H19: 0
A20: 1808 | B20: Buildings | E20: 0 | F20: =IF(D20=0,'App.2-CD_MIFRS_DepExp_2014'!K20,+'App.2-CD_MIFRS_DepExp_2014'!K20+((C20*0.5)/D20)) -> 0 | H20: 0
A21: 1810 | B21: Leasehold Improvements | E21: 0 | F21: =IF(D21=0,'App.2-CD_MIFRS_DepExp_2014'!K21,+'App.2-CD_MIFRS_DepExp_2014'!K21+((C21*0.5)/D21)) -> 0 | H21: 0
A22: 1815 | B22: Transformer Station Equipment >50 kV | E22: 0 | F22: =IF(D22=0,'App.2-CD_MIFRS_DepExp_2014'!K22,+'App.2-CD_MIFRS_DepExp_2014'!K22+((C22*0.5)/D22)) -> 0 | H22: 0
A23: 1820 | B23: Distribution Station Equipment <50 kV | E23: 0 | F23: =IF(D23=0,'App.2-CD_MIFRS_DepExp_2014'!K23,+'App.2-CD_MIFRS_DepExp_2014'!K23+((C23*0.5)/D23)) -> 0 | H23: 0
A24: 1825 | B24: Storage Battery Equipment | E24: 0 | F24: =IF(D24=0,'App.2-CD_MIFRS_DepExp_2014'!K24,+'App.2-CD_MIFRS_DepExp_2014'!K24+((C24*0.5)/D24)) -> 0 | H24: 0
A25: 1830 | B25: Poles, Towers & Fixtures | E25: 0 | F25: =IF(D25=0,'App.2-CD_MIFRS_DepExp_2014'!K25,+'App.2-CD_MIFRS_DepExp_2014'!K25+((C25*0.5)/D25)) -> 0 | H25: 0
A26: 1835 | B26: Overhead Conductors & Devices | E26: 0 | F26: =IF(D26=0,'App.2-CD_MIFRS_DepExp_2014'!K26,+'App.2-CD_MIFRS_DepExp_2014'!K26+((C26*0.5)/D26)) -> 0 | H26: 0
A27: 1840 | B27: Underground Conduit | E27: 0 | F27: =IF(D27=0,'App.2-CD_MIFRS_DepExp_2014'!K27,+'App.2-CD_MIFRS_DepExp_2014'!K27+((C27*0.5)/D27)) -> 0 | H27: 0
A28: 1845 | B28: Underground Conductors & Devices | E28: 0 | F28: =IF(D28=0,'App.2-CD_MIFRS_DepExp_2014'!K28,+'App.2-CD_MIFRS_DepExp_2014'!K28+((C28*0.5)/D28)) -> 0 | H28: 0
A29: 1850 | B29: Line Transformers | E29: 0 | F29: =IF(D29=0,'App.2-CD_MIFRS_DepExp_2014'!K29,+'App.2-CD_MIFRS_DepExp_2014'!K29+((C29*0.5)/D29)) -> 0 | H29: 0
A30: 1855 | B30: Services (Overhead & Underground) | E30: 0 | F30: =IF(D30=0,'App.2-CD_MIFRS_DepExp_2014'!K30,+'App.2-CD_MIFRS_DepExp_2014'!K30+((C30*0.5)/D30)) -> 0 | H30: 0
A31: 1860 | B31: Meters | E31: 0 | F31: =IF(D31=0,'App.2-CD_MIFRS_DepExp_2014'!K31,+'App.2-CD_MIFRS_DepExp_2014'!K31+((C31*0.5)/D31)) -> 0 | H31: 0
A32: 1860 | B32: Meters (Smart Meters) | E32: 0 | F32: =IF(D32=0,'App.2-CD_MIFRS_DepExp_2014'!K32,+'App.2-CD_MIFRS_DepExp_2014'!K32+((C32*0.5)/D32)) -> 0 | H32: 0
A33: 1905 | B33: Land | E33: 0 | F33: =IF(D33=0,'App.2-CD_MIFRS_DepExp_2014'!K33,+'App.2-CD_MIFRS_DepExp_2014'!K33+((C33*0.5)/D33)) -> 0 | H33: 0
A34: 1908 | B34: Buildings & Fixtures | E34: 0 | F34: =IF(D34=0,'App.2-CD_MIFRS_DepExp_2014'!K34,+'App.2-CD_MIFRS_DepExp_2014'!K34+((C34*0.5)/D34)) -> 0 | H34: 0
A35: 1910 | B35: Leasehold Improvements | E35: 0 | F35: =IF(D35=0,'App.2-CD_MIFRS_DepExp_2014'!K35,+'App.2-CD_MIFRS_DepExp_2014'!K35+((C35*0.5)/D35)) -> 0 | H35: 0
A36: 1915 | B36: Office Furniture & Equipment (10 years) | E36: 0 | F36: =IF(D36=0,'App.2-CD_MIFRS_DepExp_2014'!K36,+'App.2-CD_MIFRS_DepExp_2014'!K36+((C36*0.5)/D36)) -> 0 | H36: 0
A37: 1915 | B37: Office Furniture & Equipment (5 years) | E37: 0 | F37: =IF(D37=0,'App.2-CD_MIFRS_DepExp_2014'!K37,+'App.2-CD_MIFRS_DepExp_2014'!K37+((C37*0.5)/D37)) -> 0 | H37: 0
A38: 1920 | B38: Computer Equipment - Hardware | E38: 0 | F38: =IF(D38=0,'App.2-CD_MIFRS_DepExp_2014'!K38,+'App.2-CD_MIFRS_DepExp_2014'!K38+((C38*0.5)/D38)) -> 0 | H38: 0
A39: 1920 | B39: Computer Equip.-Hardware(Post Mar. 22/04) | E39: 0 | F39: =IF(D39=0,'App.2-CD_MIFRS_DepExp_2014'!K39,+'App.2-CD_MIFRS_DepExp_2014'!K39+((C39*0.5)/D39)) -> 0 | H39: 0
A40: 1920 | B40: Computer Equip.-Hardware(Post Mar. 19/07) | E40: 0 | F40: =IF(D40=0,'App.2-CD_MIFRS_DepExp_2014'!K40,+'App.2-CD_MIFRS_DepExp_2014'!K40+((C40*0.5)/D40)) -> 0 | H40: 0
A41: 1930 | B41: Transportation Equipment | E41: 0 | F41: =IF(D41=0,'App.2-CD_MIFRS_DepExp_2014'!K41,+'App.2-CD_MIFRS_DepExp_2014'!K41+((C41*0.5)/D41)) -> 0 | H41: 0
A42: 1935 | B42: Stores Equipment | E42: 0 | F42: =IF(D42=0,'App.2-CD_MIFRS_DepExp_2014'!K42,+'App.2-CD_MIFRS_DepExp_2014'!K42+((C42*0.5)/D42)) -> 0 | H42: 0
A43: 1940 | B43: Tools, Shop & Garage Equipment | E43: 0 | F43: =IF(D43=0,'App.2-CD_MIFRS_DepExp_2014'!K43,+'App.2-CD_MIFRS_DepExp_2014'!K43+((C43*0.5)/D43)) -> 0 | H43: 0
A44: 1945 | B44: Measurement & Testing Equipment | E44: 0 | F44: =IF(D44=0,'App.2-CD_MIFRS_DepExp_2014'!K44,+'App.2-CD_MIFRS_DepExp_2014'!K44+((C44*0.5)/D44)) -> 0 | H44: 0
A45: 1950 | B45: Power Operated Equipment | E45: 0 | F45: =IF(D45=0,'App.2-CD_MIFRS_DepExp_2014'!K45,+'App.2-CD_MIFRS_DepExp_2014'!K45+((C45*0.5)/D45)) -> 0 | H45: 0
A46: 1955 | B46: Communications Equipment | E46: 0 | F46: =IF(D46=0,'App.2-CD_MIFRS_DepExp_2014'!K46,+'App.2-CD_MIFRS_DepExp_2014'!K46+((C46*0.5)/D46)) -> 0 | H46: 0
A47: 1955 | B47: Communication Equipment (Smart Meters) | E47: 0 | F47: =IF(D47=0,'App.2-CD_MIFRS_DepExp_2014'!K47,+'App.2-CD_MIFRS_DepExp_2014'!K47+((C47*0.5)/D47)) -> 0 | H47: 0
A48: 1960 | B48: Miscellaneous Equipment | E48: 0 | F48: =IF(D48=0,'App.2-CD_MIFRS_DepExp_2014'!K48,+'App.2-CD_MIFRS_DepExp_2014'!K48+((C48*0.5)/D48)) -> 0 | H48: 0
A49: 1970 | B49: Load Management Controls Customer Premises | E49: 0 | F49: =IF(D49=0,'App.2-CD_MIFRS_DepExp_2014'!K49,+'App.2-CD_MIFRS_DepExp_2014'!K49+((C49*0.5)/D49)) -> 0 | H49: 0
A50: 1975 | B50: Load Management Controls Utility Premises | E50: 0 | F50: =IF(D50=0,'App.2-CD_MIFRS_DepExp_2014'!K50,+'App.2-CD_MIFRS_DepExp_2014'!K50+((C50*0.5)/D50)) -> 0 | H50: 0
A51: 1980 | B51: System Supervisor Equipment | E51: 0 | F51: =IF(D51=0,'App.2-CD_MIFRS_DepExp_2014'!K51,+'App.2-CD_MIFRS_DepExp_2014'!K51+((C51*0.5)/D51)) -> 0 | H51: 0
A52: 1985 | B52: Miscellaneous Fixed Assets | E52: 0 | F52: =IF(D52=0,'App.2-CD_MIFRS_DepExp_2014'!K52,+'App.2-CD_MIFRS_DepExp_2014'!K52+((C52*0.5)/D52)) -> 0 | H52: 0
A53: 1990 | B53: Other Tangible Property | E53: 0 | F53: =IF(D53=0,'App.2-CD_MIFRS_DepExp_2014'!K53,+'App.2-CD_MIFRS_DepExp_2014'!K53+((C53*0.5)/D53)) -> 0 | H53: 0
E54: 0 | F54: =IF(D54=0,'App.2-CD_MIFRS_DepExp_2014'!K54,+'App.2-CD_MIFRS_DepExp_2014'!K54+((C54*0.5)/D54)) -> 0 | H54: 0
B55: Total | C55: =SUM(C17:C54) -> 0 | F55: =SUM(F17:F54) -> 0 | G55: =SUM(G17:G54) -> 0 | H55: =SUM(H17:H54) -> 0
B56: Depreciation exp. adj. from gain or loss on the retirement of assets (pool of like assets)
B57: Total Depreciation expense to be included in the test year revenue requirement | F57: =SUM(F55:F56) -> 0
A58: Notes:
A59: 1 | B59: Board policy of the "half-year" rule - the applicant must ensure that additions in the year attract a half-year depreciation expense in the first year. Deviations from this standard practice must be supported in the application.
A60: 2 | B60: The applicant must provide an explanation of material variances in evidence.
A63: General: | B63: Applicants must provide a breakdown of depreciation and amortization expense in the above format for all relevant accounts. Asset Retirement Obligations (AROs), depreciation and accretion expense should be disclosed separately consistent with the Notes of historical Audited Financial Statements.

Sheet App.2-CF_OldCGAAP_DepExp_2013 (hidden)
K1: File Number: | L1: =EBNUMBER -> 
K2: Exhibit:
K3: Tab:
K4: Schedule:
K5: Page:
K7: Date:
A9: Appendix 2-CF
A10: Depreciation and Amortization Expense
B11: Assumes the applicant made capitalization and depreciation expense accounting policy changes under CGAAP effective January 1, 2013 and will adopt IFRS for financial reporting purposes effective January 1, 2015.
C13: Year | D13: 2013 | E13: Former CGAAP
A15: Account | B15: Description | C15: Opening Regulatory Gross PP&E as at Jan 1, 2013 | D15: Less Fully Depreciated | E15: Net for Depreciation | F15: Additions | G15: Total for Depreciation | H15: Years | I15: Depreciation Rate | J15: Depreciation Expense | K15: 2013 Depreciation Expense per Appendix 2-BA Fixed Assets, Column J (l) | L15: Variance 2
C16: (a) | D16: (b) | E16: (c) | F16: (d) | G16: (e) = (c) + ½ x (d) 1 | H16: (f) | I16: (g) = 1 / (f) | J16: (h) = (e) / (f) | L16: (m) = (h) - (l)
A17: 1611 | B17: Computer Software (Formally known as Account 1925) | E17: =C17-D17 -> 0 | G17: =E17+0.5*F17 -> 0 | I17: =IF(H17=0,0,1/H17) -> 0 | J17: =IF(H17=0,0,G17/H17) -> 0 | L17: =IF(ISERROR(+J17-K17), 0, +J17-K17) -> 0
A18: 1612 | B18: Land Rights (Formally known as Account 1906) | E18: =C18-D18 -> 0 | G18: =E18+0.5*F18 -> 0 | I18: 0 | J18: 0 | L18: 0
A19: 1805 | B19: Land | E19: 0 | G19: 0 | I19: 0 | J19: 0 | L19: 0
A20: 1808 | B20: Buildings | E20: 0 | G20: 0 | I20: 0 | J20: 0 | L20: 0
A21: 1810 | B21: Leasehold Improvements | E21: 0 | G21: 0 | I21: 0 | J21: 0 | L21: 0
A22: 1815 | B22: Transformer Station Equipment >50 kV | E22: 0 | G22: 0 | I22: 0 | J22: 0 | L22: 0
A23: 1820 | B23: Distribution Station Equipment <50 kV | E23: 0 | G23: 0 | I23: 0 | J23: 0 | L23: 0
A24: 1825 | B24: Storage Battery Equipment | E24: 0 | G24: 0 | I24: 0 | J24: 0 | L24: 0
A25: 1830 | B25: Poles, Towers & Fixtures | E25: 0 | G25: 0 | I25: 0 | J25: 0 | L25: 0
A26: 1835 | B26: Overhead Conductors & Devices | E26: 0 | G26: 0 | I26: 0 | J26: 0 | L26: 0
A27: 1840 | B27: Underground Conduit | E27: 0 | G27: 0 | I27: 0 | J27: 0 | L27: 0
A28: 1845 | B28: Underground Conductors & Devices | E28: 0 | G28: 0 | I28: 0 | J28: 0 | L28: 0
A29: 1850 | B29: Line Transformers | E29: 0 | G29: 0 | I29: 0 | J29: 0 | L29: 0
A30: 1855 | B30: Services (Overhead & Underground) | E30: 0 | G30: 0 | I30: 0 | J30: 0 | L30: 0
A31: 1860 | B31: Meters | E31: 0 | G31: 0 | I31: 0 | J31: 0 | L31: 0
A32: 1860 | B32: Meters (Smart Meters) | E32: 0 | G32: 0 | I32: 0 | J32: 0 | L32: 0
A33: 1905 | B33: Land | E33: 0 | G33: 0 | I33: 0 | J33: 0 | L33: 0
A34: 1908 | B34: Buildings & Fixtures | E34: 0 | G34: 0 | I34: 0 | J34: 0 | L34: 0
A35: 1910 | B35: Leasehold Improvements | E35: 0 | G35: 0 | I35: 0 | J35: 0 | L35: 0
A36: 1915 | B36: Office Furniture & Equipment (10 years) | E36: 0 | G36: 0 | I36: 0 | J36: 0 | L36: 0
A37: 1915 | B37: Office Furniture & Equipment (5 years) | E37: 0 | G37: 0 | I37: 0 | J37: 0 | L37: 0
A38: 1920 | B38: Computer Equipment - Hardware | E38: 0 | G38: 0 | I38: 0 | J38: 0 | L38: 0
A39: 1920 | B39: Computer Equip.-Hardware(Post Mar. 22/04) | E39: 0 | G39: 0 | I39: 0 | J39: 0 | L39: 0
A40: 1920 | B40: Computer Equip.-Hardware(Post Mar. 19/07) | E40: 0 | G40: 0 | I40: 0 | J40: 0 | L40: 0
A41: 1930 | B41: Transportation Equipment | E41: 0 | G41: 0 | I41: 0 | J41: 0 | L41: 0
A42: 1935 | B42: Stores Equipment | E42: 0 | G42: 0 | I42: 0 | J42: 0 | L42: 0
A43: 1940 | B43: Tools, Shop & Garage Equipment | E43: 0 | G43: 0 | I43: 0 | J43: 0 | L43: 0
A44: 1945 | B44: Measurement & Testing Equipment | E44: 0 | G44: 0 | I44: 0 | J44: 0 | L44: 0
A45: 1950 | B45: Power Operated Equipment | E45: 0 | G45: 0 | I45: 0 | J45: 0 | L45: 0
A46: 1955 | B46: Communications Equipment | E46: 0 | G46: 0 | I46: 0 | J46: 0 | L46: 0
A47: 1955 | B47: Communication Equipment (Smart Meters) | E47: 0 | G47: 0 | I47: 0 | J47: 0 | L47: 0
A48: 1960 | B48: Miscellaneous Equipment | E48: 0 | G48: 0 | I48: 0 | J48: 0 | L48: 0
A49: 1970 | B49: Load Management Controls - Customer Premises | E49: 0 | G49: 0 | I49: 0 | J49: 0 | L49: 0
A50: 1975 | B50: Load Management Controls Utility Premises | E50: 0 | G50: 0 | I50: 0 | J50: 0 | L50: 0
A51: 1980 | B51: System Supervisor Equipment | E51: 0 | G51: 0 | I51: 0 | J51: 0 | L51: 0
A52: 1985 | B52: Miscellaneous Fixed Assets | E52: 0 | G52: 0 | I52: 0 | J52: 0 | L52: 0
A53: 1990 | B53: Other Tangible Property | E53: 0 | G53: 0 | I53: 0 | J53: 0 | L53: 0
A54: 1995 | B54: Contributions & Grants | E54: 0 | G54: 0 | I54: 0 | J54: 0 | L54: 0
B55: Total | C55: =SUM(C17:C54) -> 0 | D55: =SUM(D17:D54) -> 0 | E55: =SUM(E17:E54) -> 0 | F55: =SUM(F17:F54) -> 0 | G55: =SUM(G17:G54) -> 0 | J55: =SUM(J17:J54) -> 0 | K55: =SUM(K17:K54) -> 0 | L55: =SUM(L17:L54) -> 0
A57: Notes:
A59: 1 | B59: Board policy of the "half-year" rule - the applicant must ensure that additions in the year attract a half-year depreciation expense in the first year. Deviations from this standard practice must be supported in the application.
A60: 2 | B60: The applicant must provide an explanation of material variances in evidence.
A62: General | B62: Applicants must provide a breakdown of depreciation and amortization expense in the above format for all relevant accounts. Asset Retirement Obligations (AROs), depreciation and accretion expense should be disclosed separately consistent with the Notes of historical Audited Financial Statements.

Sheet App.2-CG_NewCGAAP_DepExp_2013 (hidden)
N1: File Number: | O1: =EBNUMBER -> 
N2: Exhibit:
N3: Tab:
N4: Schedule:
N5: Page:
N7: Date:
A9: Appendix 2-CO
A10: Depreciation and Amortization Expense
A11: Assumes the applicant made capitalization and depreciation expense accounting policy changes under CGAAP effective January 1, 2013 and will adopt IFRS for financial reporting purposes effective January 1, 2015.
C13: Year | D13: 2013 | E13: Revised CGAAP
A15: Account | B15: Description | C15: Opening NBV as at Jan 1, 2013 5 | D15: Additions | E15: Average Remaining Life of Opening NBV 4 | F15: Years (new additions only) 3 | G15: Depreciation Rate on New Additions | H15: Depreciation Expense on Opening NBV | I15: Depreciation Expense on Additions 1 | J15: 2013 Depreciation Expense | K15: 2013 Depreciation Expense per Appendix 2-BA Fixed Assets, Column J (l) | L15: Variance 2 | M15: Depreciation Expense on 2013 Full Year Additions | N15: Less Depreciation Expense on Assets Fully Depreciated during the year (o) | O15: 2013 Full Year Depreciation 6
C16: (a) | D16: (d) | E16: (i) | F16: (f) | G16: (g) = 1 / (f) | H16: (j) = (a) / (i) | I16: (h)=((d)*0.5)/(f) | J16: (k) = (j) + (h) | L16: (m) = (k) - (l) | M16: (n) = (d)/(f) | O16: (p) = (j) + (n) - (o)
A17: 1611 | B17: Computer Software (Formally known as Account 1925) | G17: =IF(F17=0,0,1/F17) -> 0 | H17: =IF(E17=0,0,+C17/E17) -> 0 | I17: =IF(F17=0,0,+(D17*0.5)/F17) -> 0 | J17: =IF(ISERROR(+H17+I17), 0, +H17+I17) -> 0 | L17: =IF(ISERROR(+J17-K17), 0, +J17-K17) -> 0 | M17: =IF(F17=0,0,+(D17)/F17) -> 0 | O17: =IF(ISERROR(+M17+H17-N17), 0, +M17+H17-N17) -> 0
A18: 1612 | B18: Land Rights (Formally known as Account 1906) | G18: 0 | H18: 0 | I18: 0 | J18: 0 | L18: 0 | M18: 0 | O18: =IF(ISERROR(+M18+H18-N18), 0, +M18+H18-N18) -> 0
A19: 1805 | B19: Land | G19: 0 | H19: 0 | I19: 0 | J19: 0 | L19: 0 | M19: 0 | O19: 0
A20: 1808 | B20: Buildings | G20: 0 | H20: 0 | I20: 0 | J20: 0 | L20: 0 | M20: 0 | O20: 0
A21: 1810 | B21: Leasehold Improvements | G21: 0 | H21: 0 | I21: 0 | J21: 0 | L21: 0 | M21: 0 | O21: 0
A22: 1815 | B22: Transformer Station Equipment >50 kV | G22: 0 | H22: 0 | I22: 0 | J22: 0 | L22: 0 | M22: 0 | O22: 0
A23: 1820 | B23: Distribution Station Equipment <50 kV | G23: 0 | H23: 0 | I23: 0 | J23: 0 | L23: 0 | M23: 0 | O23: 0
A24: 1825 | B24: Storage Battery Equipment | G24: 0 | H24: 0 | I24: 0 | J24: 0 | L24: 0 | M24: 0 | O24: 0
A25: 1830 | B25: Poles, Towers & Fixtures | G25: 0 | H25: 0 | I25: 0 | J25: 0 | L25: 0 | M25: 0 | O25: 0
A26: 1835 | B26: Overhead Conductors & Devices | G26: 0 | H26: 0 | I26: 0 | J26: 0 | L26: 0 | M26: 0 | O26: 0
A27: 1840 | B27: Underground Conduit | G27: 0 | H27: 0 | I27: 0 | J27: 0 | L27: 0 | M27: 0 | O27: 0
A28: 1845 | B28: Underground Conductors & Devices | G28: 0 | H28: 0 | I28: 0 | J28: 0 | L28: 0 | M28: 0 | O28: 0
A29: 1850 | B29: Line Transformers | G29: 0 | H29: 0 | I29: 0 | J29: 0 | L29: 0 | M29: 0 | O29: 0
A30: 1855 | B30: Services (Overhead & Underground) | G30: 0 | H30: 0 | I30: 0 | J30: 0 | L30: 0 | M30: 0 | O30: 0
A31: 1860 | B31: Meters | G31: 0 | H31: 0 | I31: 0 | J31: 0 | L31: 0 | M31: 0 | O31: 0
A32: 1860 | B32: Meters (Smart Meters) | G32: 0 | H32: 0 | I32: 0 | J32: 0 | L32: 0 | M32: 0 | O32: 0
A33: 1905 | B33: Land | G33: 0 | H33: 0 | I33: 0 | J33: 0 | L33: 0 | M33: 0 | O33: 0
A34: 1908 | B34: Buildings & Fixtures | G34: 0 | H34: 0 | I34: 0 | J34: 0 | L34: 0 | M34: 0 | O34: 0
A35: 1910 | B35: Leasehold Improvements | G35: 0 | H35: 0 | I35: 0 | J35: 0 | L35: 0 | M35: 0 | O35: 0
A36: 1915 | B36: Office Furniture & Equipment (10 years) | G36: 0 | H36: 0 | I36: 0 | J36: 0 | L36: 0 | M36: 0 | O36: 0
A37: 1915 | B37: Office Furniture & Equipment (5 years) | G37: 0 | H37: 0 | I37: 0 | J37: 0 | L37: 0 | M37: 0 | O37: 0
A38: 1920 | B38: Computer Equipment - Hardware | G38: 0 | H38: 0 | I38: 0 | J38: 0 | L38: 0 | M38: 0 | O38: 0
A39: 1920 | B39: Computer Equip.-Hardware(Post Mar. 22/04) | G39: 0 | H39: 0 | I39: 0 | J39: 0 | L39: 0 | M39: 0 | O39: 0
A40: 1920 | B40: Computer Equip.-Hardware(Post Mar. 19/07) | G40: 0 | H40: 0 | I40: 0 | J40: 0 | L40: 0 | M40: 0 | O40: 0
A41: 1930 | B41: Transportation Equipment | G41: 0 | H41: 0 | I41: 0 | J41: 0 | L41: 0 | M41: 0 | O41: 0
A42: 1935 | B42: Stores Equipment | G42: 0 | H42: 0 | I42: 0 | J42: 0 | L42: 0 | M42: 0 | O42: 0
A43: 1940 | B43: Tools, Shop & Garage Equipment | G43: 0 | H43: 0 | I43: 0 | J43: 0 | L43: 0 | M43: 0 | O43: 0
A44: 1945 | B44: Measurement & Testing Equipment | G44: 0 | H44: 0 | I44: 0 | J44: 0 | L44: 0 | M44: 0 | O44: 0
A45: 1950 | B45: Power Operated Equipment | G45: 0 | H45: 0 | I45: 0 | J45: 0 | L45: 0 | M45: 0 | O45: 0
A46: 1955 | B46: Communications Equipment | G46: 0 | H46: 0 | I46: 0 | J46: 0 | L46: 0 | M46: 0 | O46: 0
A47: 1955 | B47: Communication Equipment (Smart Meters) | G47: 0 | H47: 0 | I47: 0 | J47: 0 | L47: 0 | M47: 0 | O47: 0
A48: 1960 | B48: Miscellaneous Equipment | G48: 0 | H48: 0 | I48: 0 | J48: 0 | L48: 0 | M48: 0 | O48: 0
A49: 1970 | B49: Load Management Controls - Customer Premises | G49: 0 | H49: 0 | I49: 0 | J49: 0 | L49: 0 | M49: 0 | O49: 0
A50: 1975 | B50: Load Management Controls Utility Premises | G50: 0 | H50: 0 | I50: 0 | J50: 0 | L50: 0 | M50: 0 | O50: 0
A51: 1980 | B51: System Supervisor Equipment | G51: 0 | H51: 0 | I51: 0 | J51: 0 | L51: 0 | M51: 0 | O51: 0
A52: 1985 | B52: Miscellaneous Fixed Assets | G52: 0 | H52: 0 | I52: 0 | J52: 0 | L52: 0 | M52: 0 | O52: 0
A53: 1990 | B53: Other Tangible Property | G53: 0 | H53: 0 | I53: 0 | J53: 0 | L53: 0 | M53: 0 | O53: 0
A54: 1995 | B54: Contributions & Grants | G54: 0 | H54: 0 | I54: 0 | J54: 0 | L54: 0 | M54: 0 | O54: 0
B55: Total | C55: =SUM(C17:C54) -> 0 | D55: =SUM(D17:D54) -> 0 | H55: =SUM(H17:H54) -> 0 | I55: 0 | J55: 0 | K55: 0 | L55: 0 | M55: 0 | N55: 0 | O55: 0
A57: Notes:
A59: 1 | B59: Board policy of the "half-year" rule - the applicant must ensure that additions in the year attract a half-year depreciation expense in the first year. Deviations from this standard practice must be supported in the application.
A60: 2 | B60: The applicant must provide an explanation of material variances in evidence.
A61: 3 | B61: The applicant should ensure that the years for new additions of assets are the asset useful lives determined by management in accordance with the Board's regulatory accounting policies. The capitalization and depreciation expense accounting changes should be implemented consistent with the Board’s regulatory accounting policies as set out for MIFRS as contained in the Report of the Board, Transition to International Financial Reporting Standards, EB-2008-0408, the Kinectrics Report, and the Revised 2012 Accounting Procedures Handbook for Electricity Distributors.
A62: 4 | B62: A recalculation should be performed to determine the average remaining life of opening balance of assets (i.e. excluding 2013 additions) under the change in policies under CGAAP. For example, Asset A had a useful life of 20 years under CGAAP without the change in policies. On January 1, 2013, the effective date of the changes in policies, Asset A was 3 years depreciated. As a result, Asset A would have a remaining service life of 17 years (20 years less 3 years) as of January 1, 2013. Due to making the change in policies under CGAAP, management re-assessed the asset useful lives and concluded that the revised useful life of Asset A is now 30 years. Therefore, the average remaining useful life of the opening balance of Asset A is determined to be 27 years (30 years less 3 years) under the revised CGAAP as of January 1, 2013.
A63: 5 | B63: NBV must exclude assets still on the books but which have been fully amortized or depreciated.
A64: 6 | B64: This column refers to the calculated full year depreciation but excludes the depreciation expense on assets fully depreciated during the year. This column is used for the purpose of calculating depreciation expense in the following year on the next worksheet.
A66: General: | B66: Applicants must provide a breakdown of depreciation and amortization expense in the above format for all relevant accounts. Asset Retirement Obligations (AROs), depreciation and accretion expense should be disclosed separately consistent with the Notes of historical Audited Financial Statements.

Sheet App.2-CH_MIFRS_DepExp_2014 (hidden)
J1: File Number: | K1: =EBNUMBER -> 
J2: Exhibit:
J3: Tab:
J4: Schedule:
J5: Page:
J7: Date:
A9: Appendix 2-CP
A10: Depreciation and Amortization Expense
A11: Assumes the applicant made capitalization and depreciation expense accounting policy changes under CGAAP effective January 1, 2013 and will adopt IFRS for financial reporting purposes effective January 1, 2015.
E13: 2014 | F13: MIFRS
A15: Account | B15: Description | C15: Additions | D15: Years (new additions only) | E15: Depreciation Rate on New Additions | F15: 2014 Depreciation Expense 1 | G15: 2014 Depreciation Expense per Apppendix 2-BA Fixed Assets, Column J (l) | H15: Variance 2 | I15: Depreciation Expense on 2014 Full Year Additions | J15: Less Depreciation Expense on Assets Fully Depreciated during the year (o) | K15: 2014 Full Year Depreciation 3
C16: (d) | D16: (f) | E16: (g) = 1 / (f) | F16: (h)=2013 Full Year Deprecation + ((d)*0.5)/(f) | H16: (m) = (h) - (l) | I16: (n)=((d))/(f) | K16: (p) = 2013 Full Year Depreciation + (n) - (o)
A17: 1611 | B17: Computer Software (Formally known as Account 1925) | E17: =IF(D17=0,0,1/D17) -> 0 | F17: =IF(D17=0,+'App.2-CG_NewCGAAP_DepExp_2013'!O17,+'App.2-CG_NewCGAAP_DepExp_2013'!O17+((C17*0.5)/D17)) -> 0 | H17: =IF(ISERROR(+F17-G17), 0, +F17-G17) -> 0 | I17: =IF(D17=0,0,+(C17)/D17) -> 0 | K17: =IF(ISERROR(+I17+'App.2-CG_NewCGAAP_DepExp_2013'!O17-J17), 0, +I17+'App.2-CG_NewCGAAP_DepExp_2013'!O17-J17) -> 0
A18: 1612 | B18: Land Rights (Formally known as Account 1906) | E18: 0 | F18: =IF(D18=0,+'App.2-CG_NewCGAAP_DepExp_2013'!O18,+'App.2-CG_NewCGAAP_DepExp_2013'!O18+((C18*0.5)/D18)) -> 0 | H18: 0 | I18: 0 | K18: =IF(ISERROR(+I18+'App.2-CG_NewCGAAP_DepExp_2013'!O18-J18), 0, +I18+'App.2-CG_NewCGAAP_DepExp_2013'!O18-J18) -> 0
A19: 1805 | B19: Land | E19: 0 | F19: =IF(D19=0,+'App.2-CG_NewCGAAP_DepExp_2013'!O19,+'App.2-CG_NewCGAAP_DepExp_2013'!O19+((C19*0.5)/D19)) -> 0 | H19: 0 | I19: 0 | K19: =IF(ISERROR(+I19+'App.2-CG_NewCGAAP_DepExp_2013'!O19-J19), 0, +I19+'App.2-CG_NewCGAAP_DepExp_2013'!O19-J19) -> 0
A20: 1808 | B20: Buildings | E20: 0 | F20: =IF(D20=0,+'App.2-CG_NewCGAAP_DepExp_2013'!O20,+'App.2-CG_NewCGAAP_DepExp_2013'!O20+((C20*0.5)/D20)) -> 0 | H20: 0 | I20: 0 | K20: =IF(ISERROR(+I20+'App.2-CG_NewCGAAP_DepExp_2013'!O20-J20), 0, +I20+'App.2-CG_NewCGAAP_DepExp_2013'!O20-J20) -> 0
A21: 1810 | B21: Leasehold Improvements | E21: 0 | F21: =IF(D21=0,+'App.2-CG_NewCGAAP_DepExp_2013'!O21,+'App.2-CG_NewCGAAP_DepExp_2013'!O21+((C21*0.5)/D21)) -> 0 | H21: 0 | I21: 0 | K21: =IF(ISERROR(+I21+'App.2-CG_NewCGAAP_DepExp_2013'!O21-J21), 0, +I21+'App.2-CG_NewCGAAP_DepExp_2013'!O21-J21) -> 0
A22: 1815 | B22: Transformer Station Equipment >50 kV | E22: 0 | F22: =IF(D22=0,+'App.2-CG_NewCGAAP_DepExp_2013'!O22,+'App.2-CG_NewCGAAP_DepExp_2013'!O22+((C22*0.5)/D22)) -> 0 | H22: 0 | I22: 0 | K22: =IF(ISERROR(+I22+'App.2-CG_NewCGAAP_DepExp_2013'!O22-J22), 0, +I22+'App.2-CG_NewCGAAP_DepExp_2013'!O22-J22) -> 0
A23: 1820 | B23: Distribution Station Equipment <50 kV | E23: 0 | F23: =IF(D23=0,+'App.2-CG_NewCGAAP_DepExp_2013'!O23,+'App.2-CG_NewCGAAP_DepExp_2013'!O23+((C23*0.5)/D23)) -> 0 | H23: 0 | I23: 0 | K23: =IF(ISERROR(+I23+'App.2-CG_NewCGAAP_DepExp_2013'!O23-J23), 0, +I23+'App.2-CG_NewCGAAP_DepExp_2013'!O23-J23) -> 0
A24: 1825 | B24: Storage Battery Equipment | E24: 0 | F24: =IF(D24=0,+'App.2-CG_NewCGAAP_DepExp_2013'!O24,+'App.2-CG_NewCGAAP_DepExp_2013'!O24+((C24*0.5)/D24)) -> 0 | H24: 0 | I24: 0 | K24: =IF(ISERROR(+I24+'App.2-CG_NewCGAAP_DepExp_2013'!O24-J24), 0, +I24+'App.2-CG_NewCGAAP_DepExp_2013'!O24-J24) -> 0
A25: 1830 | B25: Poles, Towers & Fixtures | E25: 0 | F25: =IF(D25=0,+'App.2-CG_NewCGAAP_DepExp_2013'!O25,+'App.2-CG_NewCGAAP_DepExp_2013'!O25+((C25*0.5)/D25)) -> 0 | H25: 0 | I25: 0 | K25: =IF(ISERROR(+I25+'App.2-CG_NewCGAAP_DepExp_2013'!O25-J25), 0, +I25+'App.2-CG_NewCGAAP_DepExp_2013'!O25-J25) -> 0
A26: 1835 | B26: Overhead Conductors & Devices | E26: 0 | F26: =IF(D26=0,+'App.2-CG_NewCGAAP_DepExp_2013'!O26,+'App.2-CG_NewCGAAP_DepExp_2013'!O26+((C26*0.5)/D26)) -> 0 | H26: 0 | I26: 0 | K26: =IF(ISERROR(+I26+'App.2-CG_NewCGAAP_DepExp_2013'!O26-J26), 0, +I26+'App.2-CG_NewCGAAP_DepExp_2013'!O26-J26) -> 0
A27: 1840 | B27: Underground Conduit | E27: 0 | F27: =IF(D27=0,+'App.2-CG_NewCGAAP_DepExp_2013'!O27,+'App.2-CG_NewCGAAP_DepExp_2013'!O27+((C27*0.5)/D27)) -> 0 | H27: 0 | I27: 0 | K27: =IF(ISERROR(+I27+'App.2-CG_NewCGAAP_DepExp_2013'!O27-J27), 0, +I27+'App.2-CG_NewCGAAP_DepExp_2013'!O27-J27) -> 0
A28: 1845 | B28: Underground Conductors & Devices | E28: 0 | F28: =IF(D28=0,+'App.2-CG_NewCGAAP_DepExp_2013'!O28,+'App.2-CG_NewCGAAP_DepExp_2013'!O28+((C28*0.5)/D28)) -> 0 | H28: 0 | I28: 0 | K28: =IF(ISERROR(+I28+'App.2-CG_NewCGAAP_DepExp_2013'!O28-J28), 0, +I28+'App.2-CG_NewCGAAP_DepExp_2013'!O28-J28) -> 0
A29: 1850 | B29: Line Transformers | E29: 0 | F29: =IF(D29=0,+'App.2-CG_NewCGAAP_DepExp_2013'!O29,+'App.2-CG_NewCGAAP_DepExp_2013'!O29+((C29*0.5)/D29)) -> 0 | H29: 0 | I29: 0 | K29: =IF(ISERROR(+I29+'App.2-CG_NewCGAAP_DepExp_2013'!O29-J29), 0, +I29+'App.2-CG_NewCGAAP_DepExp_2013'!O29-J29) -> 0
A30: 1855 | B30: Services (Overhead & Underground) | E30: 0 | F30: =IF(D30=0,+'App.2-CG_NewCGAAP_DepExp_2013'!O30,+'App.2-CG_NewCGAAP_DepExp_2013'!O30+((C30*0.5)/D30)) -> 0 | H30: 0 | I30: 0 | K30: =IF(ISERROR(+I30+'App.2-CG_NewCGAAP_DepExp_2013'!O30-J30), 0, +I30+'App.2-CG_NewCGAAP_DepExp_2013'!O30-J30) -> 0
A31: 1860 | B31: Meters | E31: 0 | F31: =IF(D31=0,+'App.2-CG_NewCGAAP_DepExp_2013'!O31,+'App.2-CG_NewCGAAP_DepExp_2013'!O31+((C31*0.5)/D31)) -> 0 | H31: 0 | I31: 0 | K31: =IF(ISERROR(+I31+'App.2-CG_NewCGAAP_DepExp_2013'!O31-J31), 0, +I31+'App.2-CG_NewCGAAP_DepExp_2013'!O31-J31) -> 0
A32: 1860 | B32: Meters (Smart Meters) | E32: 0 | F32: =IF(D32=0,+'App.2-CG_NewCGAAP_DepExp_2013'!O32,+'App.2-CG_NewCGAAP_DepExp_2013'!O32+((C32*0.5)/D32)) -> 0 | H32: 0 | I32: 0 | K32: =IF(ISERROR(+I32+'App.2-CG_NewCGAAP_DepExp_2013'!O32-J32), 0, +I32+'App.2-CG_NewCGAAP_DepExp_2013'!O32-J32) -> 0
A33: 1905 | B33: Land | E33: 0 | F33: =IF(D33=0,+'App.2-CG_NewCGAAP_DepExp_2013'!O33,+'App.2-CG_NewCGAAP_DepExp_2013'!O33+((C33*0.5)/D33)) -> 0 | H33: 0 | I33: 0 | K33: =IF(ISERROR(+I33+'App.2-CG_NewCGAAP_DepExp_2013'!O33-J33), 0, +I33+'App.2-CG_NewCGAAP_DepExp_2013'!O33-J33) -> 0
A34: 1908 | B34: Buildings & Fixtures | E34: 0 | F34: =IF(D34=0,+'App.2-CG_NewCGAAP_DepExp_2013'!O34,+'App.2-CG_NewCGAAP_DepExp_2013'!O34+((C34*0.5)/D34)) -> 0 | H34: 0 | I34: 0 | K34: =IF(ISERROR(+I34+'App.2-CG_NewCGAAP_DepExp_2013'!O34-J34), 0, +I34+'App.2-CG_NewCGAAP_DepExp_2013'!O34-J34) -> 0
A35: 1910 | B35: Leasehold Improvements | E35: 0 | F35: =IF(D35=0,+'App.2-CG_NewCGAAP_DepExp_2013'!O35,+'App.2-CG_NewCGAAP_DepExp_2013'!O35+((C35*0.5)/D35)) -> 0 | H35: 0 | I35: 0 | K35: =IF(ISERROR(+I35+'App.2-CG_NewCGAAP_DepExp_2013'!O35-J35), 0, +I35+'App.2-CG_NewCGAAP_DepExp_2013'!O35-J35) -> 0
A36: 1915 | B36: Office Furniture & Equipment (10 years) | E36: 0 | F36: =IF(D36=0,+'App.2-CG_NewCGAAP_DepExp_2013'!O36,+'App.2-CG_NewCGAAP_DepExp_2013'!O36+((C36*0.5)/D36)) -> 0 | H36: 0 | I36: 0 | K36: =IF(ISERROR(+I36+'App.2-CG_NewCGAAP_DepExp_2013'!O36-J36), 0, +I36+'App.2-CG_NewCGAAP_DepExp_2013'!O36-J36) -> 0
A37: 1915 | B37: Office Furniture & Equipment (5 years) | E37: 0 | F37: =IF(D37=0,+'App.2-CG_NewCGAAP_DepExp_2013'!O37,+'App.2-CG_NewCGAAP_DepExp_2013'!O37+((C37*0.5)/D37)) -> 0 | H37: 0 | I37: 0 | K37: =IF(ISERROR(+I37+'App.2-CG_NewCGAAP_DepExp_2013'!O37-J37), 0, +I37+'App.2-CG_NewCGAAP_DepExp_2013'!O37-J37) -> 0
A38: 1920 | B38: Computer Equipment - Hardware | E38: 0 | F38: =IF(D38=0,+'App.2-CG_NewCGAAP_DepExp_2013'!O38,+'App.2-CG_NewCGAAP_DepExp_2013'!O38+((C38*0.5)/D38)) -> 0 | H38: 0 | I38: 0 | K38: =IF(ISERROR(+I38+'App.2-CG_NewCGAAP_DepExp_2013'!O38-J38), 0, +I38+'App.2-CG_NewCGAAP_DepExp_2013'!O38-J38) -> 0
A39: 1920 | B39: Computer Equip.-Hardware(Post Mar. 22/04) | E39: 0 | F39: =IF(D39=0,+'App.2-CG_NewCGAAP_DepExp_2013'!O39,+'App.2-CG_NewCGAAP_DepExp_2013'!O39+((C39*0.5)/D39)) -> 0 | H39: 0 | I39: 0 | K39: =IF(ISERROR(+I39+'App.2-CG_NewCGAAP_DepExp_2013'!O39-J39), 0, +I39+'App.2-CG_NewCGAAP_DepExp_2013'!O39-J39) -> 0
A40: 1920 | B40: Computer Equip.-Hardware(Post Mar. 19/07) | E40: 0 | F40: =IF(D40=0,+'App.2-CG_NewCGAAP_DepExp_2013'!O40,+'App.2-CG_NewCGAAP_DepExp_2013'!O40+((C40*0.5)/D40)) -> 0 | H40: 0 | I40: 0 | K40: =IF(ISERROR(+I40+'App.2-CG_NewCGAAP_DepExp_2013'!O40-J40), 0, +I40+'App.2-CG_NewCGAAP_DepExp_2013'!O40-J40) -> 0
A41: 1930 | B41: Transportation Equipment | E41: 0 | F41: =IF(D41=0,+'App.2-CG_NewCGAAP_DepExp_2013'!O41,+'App.2-CG_NewCGAAP_DepExp_2013'!O41+((C41*0.5)/D41)) -> 0 | H41: 0 | I41: 0 | K41: =IF(ISERROR(+I41+'App.2-CG_NewCGAAP_DepExp_2013'!O41-J41), 0, +I41+'App.2-CG_NewCGAAP_DepExp_2013'!O41-J41) -> 0
A42: 1935 | B42: Stores Equipment | E42: 0 | F42: =IF(D42=0,+'App.2-CG_NewCGAAP_DepExp_2013'!O42,+'App.2-CG_NewCGAAP_DepExp_2013'!O42+((C42*0.5)/D42)) -> 0 | H42: 0 | I42: 0 | K42: =IF(ISERROR(+I42+'App.2-CG_NewCGAAP_DepExp_2013'!O42-J42), 0, +I42+'App.2-CG_NewCGAAP_DepExp_2013'!O42-J42) -> 0
A43: 1940 | B43: Tools, Shop & Garage Equipment | E43: 0 | F43: =IF(D43=0,+'App.2-CG_NewCGAAP_DepExp_2013'!O43,+'App.2-CG_NewCGAAP_DepExp_2013'!O43+((C43*0.5)/D43)) -> 0 | H43: 0 | I43: 0 | K43: =IF(ISERROR(+I43+'App.2-CG_NewCGAAP_DepExp_2013'!O43-J43), 0, +I43+'App.2-CG_NewCGAAP_DepExp_2013'!O43-J43) -> 0
A44: 1945 | B44: Measurement & Testing Equipment | E44: 0 | F44: =IF(D44=0,+'App.2-CG_NewCGAAP_DepExp_2013'!O44,+'App.2-CG_NewCGAAP_DepExp_2013'!O44+((C44*0.5)/D44)) -> 0 | H44: 0 | I44: 0 | K44: =IF(ISERROR(+I44+'App.2-CG_NewCGAAP_DepExp_2013'!O44-J44), 0, +I44+'App.2-CG_NewCGAAP_DepExp_2013'!O44-J44) -> 0
A45: 1950 | B45: Power Operated Equipment | E45: 0 | F45: =IF(D45=0,+'App.2-CG_NewCGAAP_DepExp_2013'!O45,+'App.2-CG_NewCGAAP_DepExp_2013'!O45+((C45*0.5)/D45)) -> 0 | H45: 0 | I45: 0 | K45: =IF(ISERROR(+I45+'App.2-CG_NewCGAAP_DepExp_2013'!O45-J45), 0, +I45+'App.2-CG_NewCGAAP_DepExp_2013'!O45-J45) -> 0
A46: 1955 | B46: Communications Equipment | E46: 0 | F46: =IF(D46=0,+'App.2-CG_NewCGAAP_DepExp_2013'!O46,+'App.2-CG_NewCGAAP_DepExp_2013'!O46+((C46*0.5)/D46)) -> 0 | H46: 0 | I46: 0 | K46: =IF(ISERROR(+I46+'App.2-CG_NewCGAAP_DepExp_2013'!O46-J46), 0, +I46+'App.2-CG_NewCGAAP_DepExp_2013'!O46-J46) -> 0
A47: 1955 | B47: Communication Equipment (Smart Meters) | E47: 0 | F47: =IF(D47=0,+'App.2-CG_NewCGAAP_DepExp_2013'!O47,+'App.2-CG_NewCGAAP_DepExp_2013'!O47+((C47*0.5)/D47)) -> 0 | H47: 0 | I47: 0 | K47: =IF(ISERROR(+I47+'App.2-CG_NewCGAAP_DepExp_2013'!O47-J47), 0, +I47+'App.2-CG_NewCGAAP_DepExp_2013'!O47-J47) -> 0
A48: 1960 | B48: Miscellaneous Equipment | E48: 0 | F48: =IF(D48=0,+'App.2-CG_NewCGAAP_DepExp_2013'!O48,+'App.2-CG_NewCGAAP_DepExp_2013'!O48+((C48*0.5)/D48)) -> 0 | H48: 0 | I48: 0 | K48: =IF(ISERROR(+I48+'App.2-CG_NewCGAAP_DepExp_2013'!O48-J48), 0, +I48+'App.2-CG_NewCGAAP_DepExp_2013'!O48-J48) -> 0
A49: 1970 | B49: Load Management Controls - Customer Premises | E49: 0 | F49: =IF(D49=0,+'App.2-CG_NewCGAAP_DepExp_2013'!O49,+'App.2-CG_NewCGAAP_DepExp_2013'!O49+((C49*0.5)/D49)) -> 0 | H49: 0 | I49: 0 | K49: =IF(ISERROR(+I49+'App.2-CG_NewCGAAP_DepExp_2013'!O49-J49), 0, +I49+'App.2-CG_NewCGAAP_DepExp_2013'!O49-J49) -> 0
A50: 1975 | B50: Load Management Controls Utility Premises | E50: 0 | F50: =IF(D50=0,+'App.2-CG_NewCGAAP_DepExp_2013'!O50,+'App.2-CG_NewCGAAP_DepExp_2013'!O50+((C50*0.5)/D50)) -> 0 | H50: 0 | I50: 0 | K50: =IF(ISERROR(+I50+'App.2-CG_NewCGAAP_DepExp_2013'!O50-J50), 0, +I50+'App.2-CG_NewCGAAP_DepExp_2013'!O50-J50) -> 0
A51: 1980 | B51: System Supervisor Equipment | E51: 0 | F51: =IF(D51=0,+'App.2-CG_NewCGAAP_DepExp_2013'!O51,+'App.2-CG_NewCGAAP_DepExp_2013'!O51+((C51*0.5)/D51)) -> 0 | H51: 0 | I51: 0 | K51: =IF(ISERROR(+I51+'App.2-CG_NewCGAAP_DepExp_2013'!O51-J51), 0, +I51+'App.2-CG_NewCGAAP_DepExp_2013'!O51-J51) -> 0
A52: 1985 | B52: Miscellaneous Fixed Assets | E52: 0 | F52: =IF(D52=0,+'App.2-CG_NewCGAAP_DepExp_2013'!O52,+'App.2-CG_NewCGAAP_DepExp_2013'!O52+((C52*0.5)/D52)) -> 0 | H52: 0 | I52: 0 | K52: =IF(ISERROR(+I52+'App.2-CG_NewCGAAP_DepExp_2013'!O52-J52), 0, +I52+'App.2-CG_NewCGAAP_DepExp_2013'!O52-J52) -> 0
A53: 1990 | B53: Other Tangible Property | E53: 0 | F53: =IF(D53=0,+'App.2-CG_NewCGAAP_DepExp_2013'!O53,+'App.2-CG_NewCGAAP_DepExp_2013'!O53+((C53*0.5)/D53)) -> 0 | H53: 0 | I53: 0 | K53: =IF(ISERROR(+I53+'App.2-CG_NewCGAAP_DepExp_2013'!O53-J53), 0, +I53+'App.2-CG_NewCGAAP_DepExp_2013'!O53-J53) -> 0
E54: 0 | F54: =IF(D54=0,+'App.2-CG_NewCGAAP_DepExp_2013'!O54,+'App.2-CG_NewCGAAP_DepExp_2013'!O54+((C54*0.5)/D54)) -> 0 | H54: 0 | I54: 0 | K54: =IF(ISERROR(+I54+'App.2-CG_NewCGAAP_DepExp_2013'!O54-J54), 0, +I54+'App.2-CG_NewCGAAP_DepExp_2013'!O54-J54) -> 0
B55: Total | C55: =SUM(C17:C54) -> 0 | F55: =SUM(F17:F54) -> 0 | G55: 0 | H55: 0 | I55: 0 | J55: 0 | K55: 0
B56: Depreciation exp. adj. from gain or loss on the retirement of assets (pool of like assets)
B57: Total Depreciation Expense | F57: =SUM(F55:F56) -> 0
A59: Notes:
A60: 1 | B60: Board policy of the "half-year" rule - the applicant must ensure that additions in the year attract a half-year depreciation expense in the first year. Deviations from this standard practice must be supported in the application.
A61: 2 | B61: The applicant must provide an explanation of material variances in evidence.
A62: 3 | B62: This column refers to the calculated full year depreciation but excludes the depreciation expense on assets fully depreciated during the year. This column is used for the purpose of calculating depreciation expense in the following year on the next worksheet.
A64: General: | B64: Applicants must provide a breakdown of depreciation and amortization expense in the above format for all relevant accounts. Asset Retirement Obligations (AROs), depreciation and accretion expense should be disclosed separately consistent with the Notes of historical Audited Financial Statements.

Sheet App.2-CI MIFRS_DepExp_2015 (hidden)
G1: File Number: | H1: =EBNUMBER -> 
G2: Exhibit:
G3: Tab:
G4: Schedule:
G5: Page:
G7: Date:
A9: Appendix 2-CQ
A10: Depreciation and Amortization Expense
A11: Assumes the applicant made capitalization and depreciation expense accounting policy changes under CGAAP effective January 1, 2013 and will adopt IFRS for financial reporting purposes effective January 1, 2015.
D13: 2015 | E13: MIFRS
A15: Account | B15: Description | C15: Additions | D15: Years (new additions only) | E15: Depreciation Rate on New Additions | F15: 2015 Depreciation Expense 1 | G15: 2015 Depreciation Expense per Appendix 2-BA Fixed Assets, Column J (l) | H15: Variance 2
C16: (d) | D16: (f) | E16: (g) = 1 / (f) | F16: (h)=2014 Full Year Depreciation + ((d)*0.5)/(f) | H16: (m) = (h) - (l)
A17: 1611 | B17: Computer Software (Formally known as Account 1925) | E17: =IF(D17=0,0,1/D17) -> 0 | F17: =IF(D17=0,'App.2-CH_MIFRS_DepExp_2014'!K17,+'App.2-CH_MIFRS_DepExp_2014'!K17+((C17*0.5)/D17)) -> 0 | H17: =IF(ISERROR(+F17-G17), 0, +F17-G17) -> 0
A18: 1612 | B18: Land Rights (Formally known as Account 1906) | E18: 0 | F18: =IF(D18=0,'App.2-CH_MIFRS_DepExp_2014'!K18,+'App.2-CH_MIFRS_DepExp_2014'!K18+((C18*0.5)/D18)) -> 0 | H18: 0
A19: 1805 | B19: Land | E19: 0 | F19: =IF(D19=0,'App.2-CH_MIFRS_DepExp_2014'!K19,+'App.2-CH_MIFRS_DepExp_2014'!K19+((C19*0.5)/D19)) -> 0 | H19: 0
A20: 1808 | B20: Buildings | E20: 0 | F20: =IF(D20=0,'App.2-CH_MIFRS_DepExp_2014'!K20,+'App.2-CH_MIFRS_DepExp_2014'!K20+((C20*0.5)/D20)) -> 0 | H20: 0
A21: 1810 | B21: Leasehold Improvements | E21: 0 | F21: =IF(D21=0,'App.2-CH_MIFRS_DepExp_2014'!K21,+'App.2-CH_MIFRS_DepExp_2014'!K21+((C21*0.5)/D21)) -> 0 | H21: 0
A22: 1815 | B22: Transformer Station Equipment >50 kV | E22: 0 | F22: =IF(D22=0,'App.2-CH_MIFRS_DepExp_2014'!K22,+'App.2-CH_MIFRS_DepExp_2014'!K22+((C22*0.5)/D22)) -> 0 | H22: 0
A23: 1820 | B23: Distribution Station Equipment <50 kV | E23: 0 | F23: =IF(D23=0,'App.2-CH_MIFRS_DepExp_2014'!K23,+'App.2-CH_MIFRS_DepExp_2014'!K23+((C23*0.5)/D23)) -> 0 | H23: 0
A24: 1825 | B24: Storage Battery Equipment | E24: 0 | F24: =IF(D24=0,'App.2-CH_MIFRS_DepExp_2014'!K24,+'App.2-CH_MIFRS_DepExp_2014'!K24+((C24*0.5)/D24)) -> 0 | H24: 0
A25: 1830 | B25: Poles, Towers & Fixtures | E25: 0 | F25: =IF(D25=0,'App.2-CH_MIFRS_DepExp_2014'!K25,+'App.2-CH_MIFRS_DepExp_2014'!K25+((C25*0.5)/D25)) -> 0 | H25: 0
A26: 1835 | B26: Overhead Conductors & Devices | E26: 0 | F26: =IF(D26=0,'App.2-CH_MIFRS_DepExp_2014'!K26,+'App.2-CH_MIFRS_DepExp_2014'!K26+((C26*0.5)/D26)) -> 0 | H26: 0
A27: 1840 | B27: Underground Conduit | E27: 0 | F27: =IF(D27=0,'App.2-CH_MIFRS_DepExp_2014'!K27,+'App.2-CH_MIFRS_DepExp_2014'!K27+((C27*0.5)/D27)) -> 0 | H27: 0
A28: 1845 | B28: Underground Conductors & Devices | E28: 0 | F28: =IF(D28=0,'App.2-CH_MIFRS_DepExp_2014'!K28,+'App.2-CH_MIFRS_DepExp_2014'!K28+((C28*0.5)/D28)) -> 0 | H28: 0
A29: 1850 | B29: Line Transformers | E29: 0 | F29: =IF(D29=0,'App.2-CH_MIFRS_DepExp_2014'!K29,+'App.2-CH_MIFRS_DepExp_2014'!K29+((C29*0.5)/D29)) -> 0 | H29: 0
A30: 1855 | B30: Services (Overhead & Underground) | E30: 0 | F30: =IF(D30=0,'App.2-CH_MIFRS_DepExp_2014'!K30,+'App.2-CH_MIFRS_DepExp_2014'!K30+((C30*0.5)/D30)) -> 0 | H30: 0
A31: 1860 | B31: Meters | E31: 0 | F31: =IF(D31=0,'App.2-CH_MIFRS_DepExp_2014'!K31,+'App.2-CH_MIFRS_DepExp_2014'!K31+((C31*0.5)/D31)) -> 0 | H31: 0
A32: 1860 | B32: Meters (Smart Meters) | E32: 0 | F32: =IF(D32=0,'App.2-CH_MIFRS_DepExp_2014'!K32,+'App.2-CH_MIFRS_DepExp_2014'!K32+((C32*0.5)/D32)) -> 0 | H32: 0
A33: 1905 | B33: Land | E33: 0 | F33: =IF(D33=0,'App.2-CH_MIFRS_DepExp_2014'!K33,+'App.2-CH_MIFRS_DepExp_2014'!K33+((C33*0.5)/D33)) -> 0 | H33: 0
A34: 1908 | B34: Buildings & Fixtures | E34: 0 | F34: =IF(D34=0,'App.2-CH_MIFRS_DepExp_2014'!K34,+'App.2-CH_MIFRS_DepExp_2014'!K34+((C34*0.5)/D34)) -> 0 | H34: 0
A35: 1910 | B35: Leasehold Improvements | E35: 0 | F35: =IF(D35=0,'App.2-CH_MIFRS_DepExp_2014'!K35,+'App.2-CH_MIFRS_DepExp_2014'!K35+((C35*0.5)/D35)) -> 0 | H35: 0
A36: 1915 | B36: Office Furniture & Equipment (10 years) | E36: 0 | F36: =IF(D36=0,'App.2-CH_MIFRS_DepExp_2014'!K36,+'App.2-CH_MIFRS_DepExp_2014'!K36+((C36*0.5)/D36)) -> 0 | H36: 0
A37: 1915 | B37: Office Furniture & Equipment (5 years) | E37: 0 | F37: =IF(D37=0,'App.2-CH_MIFRS_DepExp_2014'!K37,+'App.2-CH_MIFRS_DepExp_2014'!K37+((C37*0.5)/D37)) -> 0 | H37: 0
A38: 1920 | B38: Computer Equipment - Hardware | E38: 0 | F38: =IF(D38=0,'App.2-CH_MIFRS_DepExp_2014'!K38,+'App.2-CH_MIFRS_DepExp_2014'!K38+((C38*0.5)/D38)) -> 0 | H38: 0
A39: 1920 | B39: Computer Equip.-Hardware(Post Mar. 22/04) | E39: 0 | F39: =IF(D39=0,'App.2-CH_MIFRS_DepExp_2014'!K39,+'App.2-CH_MIFRS_DepExp_2014'!K39+((C39*0.5)/D39)) -> 0 | H39: 0
A40: 1920 | B40: Computer Equip.-Hardware(Post Mar. 19/07) | E40: 0 | F40: =IF(D40=0,'App.2-CH_MIFRS_DepExp_2014'!K40,+'App.2-CH_MIFRS_DepExp_2014'!K40+((C40*0.5)/D40)) -> 0 | H40: 0
A41: 1930 | B41: Transportation Equipment | E41: 0 | F41: =IF(D41=0,'App.2-CH_MIFRS_DepExp_2014'!K41,+'App.2-CH_MIFRS_DepExp_2014'!K41+((C41*0.5)/D41)) -> 0 | H41: 0
A42: 1935 | B42: Stores Equipment | E42: 0 | F42: =IF(D42=0,'App.2-CH_MIFRS_DepExp_2014'!K42,+'App.2-CH_MIFRS_DepExp_2014'!K42+((C42*0.5)/D42)) -> 0 | H42: 0
A43: 1940 | B43: Tools, Shop & Garage Equipment | E43: 0 | F43: =IF(D43=0,'App.2-CH_MIFRS_DepExp_2014'!K43,+'App.2-CH_MIFRS_DepExp_2014'!K43+((C43*0.5)/D43)) -> 0 | H43: 0
A44: 1945 | B44: Measurement & Testing Equipment | E44: 0 | F44: =IF(D44=0,'App.2-CH_MIFRS_DepExp_2014'!K44,+'App.2-CH_MIFRS_DepExp_2014'!K44+((C44*0.5)/D44)) -> 0 | H44: 0
A45: 1950 | B45: Power Operated Equipment | E45: 0 | F45: =IF(D45=0,'App.2-CH_MIFRS_DepExp_2014'!K45,+'App.2-CH_MIFRS_DepExp_2014'!K45+((C45*0.5)/D45)) -> 0 | H45: 0
A46: 1955 | B46: Communications Equipment | E46: 0 | F46: =IF(D46=0,'App.2-CH_MIFRS_DepExp_2014'!K46,+'App.2-CH_MIFRS_DepExp_2014'!K46+((C46*0.5)/D46)) -> 0 | H46: 0
A47: 1955 | B47: Communication Equipment (Smart Meters) | E47: 0 | F47: =IF(D47=0,'App.2-CH_MIFRS_DepExp_2014'!K47,+'App.2-CH_MIFRS_DepExp_2014'!K47+((C47*0.5)/D47)) -> 0 | H47: 0
A48: 1960 | B48: Miscellaneous Equipment | E48: 0 | F48: =IF(D48=0,'App.2-CH_MIFRS_DepExp_2014'!K48,+'App.2-CH_MIFRS_DepExp_2014'!K48+((C48*0.5)/D48)) -> 0 | H48: 0
A49: 1970 | B49: Load Management Controls - Customer Premises | E49: 0 | F49: =IF(D49=0,'App.2-CH_MIFRS_DepExp_2014'!K49,+'App.2-CH_MIFRS_DepExp_2014'!K49+((C49*0.5)/D49)) -> 0 | H49: 0
A50: 1975 | B50: Load Management Controls Utility Premises | E50: 0 | F50: =IF(D50=0,'App.2-CH_MIFRS_DepExp_2014'!K50,+'App.2-CH_MIFRS_DepExp_2014'!K50+((C50*0.5)/D50)) -> 0 | H50: 0
A51: 1980 | B51: System Supervisor Equipment | E51: 0 | F51: =IF(D51=0,'App.2-CH_MIFRS_DepExp_2014'!K51,+'App.2-CH_MIFRS_DepExp_2014'!K51+((C51*0.5)/D51)) -> 0 | H51: 0
A52: 1985 | B52: Miscellaneous Fixed Assets | E52: 0 | F52: =IF(D52=0,'App.2-CH_MIFRS_DepExp_2014'!K52,+'App.2-CH_MIFRS_DepExp_2014'!K52+((C52*0.5)/D52)) -> 0 | H52: 0
A53: 1990 | B53: Other Tangible Property | E53: 0 | F53: =IF(D53=0,'App.2-CH_MIFRS_DepExp_2014'!K53,+'App.2-CH_MIFRS_DepExp_2014'!K53+((C53*0.5)/D53)) -> 0 | H53: 0
A54: 1995 | B54: Contributions & Grants | E54: 0 | F54: =IF(D54=0,'App.2-CH_MIFRS_DepExp_2014'!K54,+'App.2-CH_MIFRS_DepExp_2014'!K54+((C54*0.5)/D54)) -> 0 | H54: 0
B55: Total | C55: =SUM(C17:C54) -> 0 | F55: =SUM(F17:F54) -> 0 | G55: =SUM(G17:G54) -> 0 | H55: =SUM(H17:H54) -> 0
B56: Depreciation exp. adj. from gain or loss on the retirement of assets (pool of like assets)
B57: Total Depreciation expense to be included in the test year revenue requirement | F57: =SUM(F55:F56) -> 0
A58: Notes:
A59: 1 | B59: Board policy of the "half-year" rule - the applicant must ensure that additions in the year attract a half-year depreciation expense in the first year. Deviations from this standard practice must be supported in the application.
A60: 2 | B60: The applicant must provide an explanation of material variances in evidence.
A62: General: | B62: Applicants must provide a breakdown of depreciation and amortization expense in the above format for all relevant accounts. Asset Retirement Obligations (AROs), depreciation and accretion expense should be disclosed separately consistent with the Notes of historical Audited Financial Statements.

Sheet App.2-FA Proposed REG Inves (2 (hidden)
F1: File Number: | G1: =EBNUMBER -> 
F2: Exhibit:
F3: Tab:
F4: Schedule:
F5: Page:
F7: Date:
A9: Appendix 2-FA
A10: Renewable Generation Connection Investment Summary (over the rate setting period)
A12: Enter the details of the Renewable Generation Connection projects as described in Section 2.5.2.5 of the Filing Requirements.
A13: All costs entered on this page will be transferred to the appropriate cells in the appendices that follow.
A14: For Part A, Renewable Enabling Improvements (REI), these amounts will be transferred to Appendix 2 - FB
A15: For Part B, Expansions, these amounts will be transferred to Appendix 2 - FC
A17: If there are more than five projects proposed to be in-service in a certain year, please amend the tables below and ensure that the formulae for the Total Amounts in any given rate year are updated.
A18: Based on the current methodology and allocation, amounts allocated represent 6% for REI Connection Investments and 17% for Expansion Investments. (pg 15, EB-2009-0349)
A21: Part A
A22: REI Investments (Direct Benefit at 6%) | C22: 2015 | D22: =C22+1 -> 2016 | E22: =D22+1 -> 2017 | F22: 2018 | G22: 2019
A23: Project 1
A24: Name: REI Connection Project
A25: Capital Costs | C25: 1000 | D25: 0 | E25: 1000 | F25: 0 | G25: 0
A26: OM&A (Start-Up) | C26: 0 | D26: 0 | E26: 0 | F26: 0 | G26: 0
A27: OM&A (Ongoing) | C27: 0 | D27: 0 | E27: 0 | F27: 0 | G27: 0
A29: Project 2
A30: Name: REI Connection Project
A31: Capital Costs | C31: 0 | D31: 0 | E31: 0 | F31: 0 | G31: 0
A32: OM&A (Start-Up) | C32: 0 | D32: 0 | E32: 0 | F32: 0 | G32: 0
A33: OM&A (Ongoing) | C33: 0 | D33: 0 | E33: 0 | F33: 0 | G33: 0
A35: Project 3
A36: Name: REI Connection Project
A37: Capital Costs | C37: 0 | D37: 0 | E37: 0 | F37: 0 | G37: 0
A38: OM&A (Start-Up) | C38: 0 | D38: 0 | E38: 0 | F38: 0 | G38: 0
A39: OM&A (Ongoing) | C39: 0 | D39: 0 | E39: 0 | F39: 0 | G39: 0
A41: Project 4
A42: Name: REI Connection Project
A43: Capital Costs | C43: 0 | D43: 0 | E43: 0 | F43: 0 | G43: 0
A44: OM&A (Start-Up) | C44: 0 | D44: 0 | E44: 0 | F44: 0 | G44: 0
A45: OM&A (Ongoing) | C45: 0 | D45: 0 | E45: 0 | F45: 0 | G45: 0
A47: Project 5
A48: Name: REI Connection Project
A49: Capital Costs | C49: 0 | D49: 0 | E49: 0 | F49: 0 | G49: 0
A50: OM&A (Start-Up) | C50: 0 | D50: 0 | E50: 0 | F50: 0 | G50: 0
A51: OM&A (Ongoing) | C51: 0 | D51: 0 | E51: 0 | F51: 0 | G51: 0
A53: Total Capital Costs | C53: =SUM(C49,C43,C37,C31,C25) -> 1000 | D53: =SUM(D49,D43,D37,D31,D25) -> 0 | E53: 1000 | F53: 0 | G53: 0
A54: Total OM&A (Start-Up) | C54: =SUM(C50,C44,C38,C32,C26) -> 0 | D54: 0 | E54: 0 | F54: 0 | G54: 0
A55: Total OM&A (Ongoing) | C55: =SUM(C51,C45,C39,C33,C27) -> 0 | D55: 0 | E55: 0 | F55: 0 | G55: 0
A58: Part B
A59: Expansion Investments (Direct Benefit at 17%) | C59: 2015 | D59: =C59+1 -> 2016 | E59: =D59+1 -> 2017 | F59: 2018 | G59: 2019
A60: Project 1
A61: Name: Expansion Connection Project
A62: Capital Costs | C62: 0 | D62: 0 | E62: 0 | F62: 0 | G62: 0
A63: OM&A (Start-Up) | C63: 0 | D63: 0 | E63: 0 | F63: 0 | G63: 0
A64: OM&A (Ongoing) | C64: 0 | D64: 0 | E64: 0 | F64: 0 | G64: 0
A66: Project 2
A67: Name: Expansion Connection Project
A68: Capital Costs | C68: 0 | D68: 0 | E68: 0 | F68: 0 | G68: 0
A69: OM&A (Start-Up) | C69: 0 | D69: 0 | E69: 0 | F69: 0 | G69: 0
A70: OM&A (Ongoing) | C70: 0 | D70: 0 | E70: 0 | F70: 0 | G70: 0
A72: Project 3
A73: Name: Expansion Connection Project
A74: Capital Costs | C74: 0 | D74: 0 | E74: 0 | F74: 0 | G74: 0
A75: OM&A (Start-Up) | C75: 0 | D75: 0 | E75: 0 | F75: 0 | G75: 0
A76: OM&A (Ongoing) | C76: 0 | D76: 0 | E76: 0 | F76: 0 | G76: 0
A78: Project 4
A79: Name: Expansion Connection Project
A80: Capital Costs | C80: 0 | D80: 0 | E80: 0 | F80: 0 | G80: 0
A81: OM&A (Start-Up) | C81: 0 | D81: 0 | E81: 0 | F81: 0 | G81: 0
A82: OM&A (Ongoing) | C82: 0 | D82: 0 | E82: 0 | F82: 0 | G82: 0
A84: Project 5
A85: Name: Expansion Connection Project
A86: Capital Costs | C86: 0 | D86: 0 | E86: 0 | F86: 0 | G86: 0
A87: OM&A (Start-Up) | C87: 0 | D87: 0 | E87: 0 | F87: 0 | G87: 0
A88: OM&A (Ongoing) | C88: 0 | D88: 0 | E88: 0 | F88: 0 | G88: 0
A90: Total Capital Costs | C90: =SUM(C86,C80,C74,C68,C62) -> 0 | D90: =SUM(D86,D80,D74,D68,D62) -> 0 | E90: 0 | F90: 0 | G90: 0
A91: Total OM&A (Start-Up) | C91: =SUM(C87,C81,C75,C69,C63) -> 0 | D91: 0 | E91: 0 | F91: 0 | G91: 0
A92: Total OM&A (Ongoing) | C92: =SUM(C88,C82,C76,C70,C64) -> 0 | D92: 0 | E92: 0 | F92: 0 | G92: 0

Sheet App.2-FB Calc of REG Improv (2 (hidden)
F1: File Number: | G1: =EBNUMBER -> 
F2: Exhibit:
F3: Tab:
F4: Schedule:
F5: Page:
F7: Date:
A9: Appendix 2-FB
A10: Calculation of Renewable Generation Connection Direct Benefits/Provincial Amount: Renewable Enabling Improvement Investments
A12: This table will calculate the distributor/provincial shares of the investments entered in Part A of Appendix 2-FA.
A13: Enter values in green shaded cells: WCA percentage, debt percentages, interest rates, kWh, tax rates, amortization period, CCA Class and percentage.
A14: Rate Riders are not calculated for Test Year as these assets and costs are already in the distributor's rate base/revenue requirement.
D17: 2015 Test Year | G17: 2016 | J17: 2017 | K17: 2016 | M17: 2018 | P17: 2019
E18: Direct Benefit | F18: Provincial | H18: Direct Benefit | I18: Provincial | K18: Direct Benefit | L18: Provincial | N18: Direct Benefit | O18: Provincial | Q18: Direct Benefit | R18: Provincial
D19: Total | E19: 0.06 | F19: 0.94 | G19: Total | H19: 0.06 | I19: 0.94 | J19: Total | K19: 0.06 | L19: 0.94 | M19: Total | N19: 0.06 | O19: 0.94 | P19: Total | Q19: 0.06 | R19: 0.94
A20: Net Fixed Assets (average) | D20: =D82 -> 490 | E20: =D20*E19 -> 29.4 | F20: =D20*F19 -> 460.6 | G20: =E82 -> 960 | H20: =G20*H19 -> 57.6 | I20: =G20*I19 -> 902.4 | J20: =F82 -> 1410 | K20: =J20*K19 -> 84.6 | L20: =J20*L19 -> 1325.4 | M20: =G82 -> 1840 | N20: =M20*N19 -> 110.4 | O20: =M20*O19 -> 1729.6 | P20: =H82 -> 1760 | Q20: =P20*Q19 -> 105.6 | R20: =P20*R19 -> 1654.4
A21: Incremental OM&A (on-going, N/A for Provincial Recovery) | D21: ='App.2-FA Proposed REG Inves (2'!C55 -> 0 | E21: =D21 -> 0 | G21: ='App.2-FA Proposed REG Inves (2'!D55 -> 0 | H21: =G21 -> 0 | J21: ='App.2-FA Proposed REG Inves (2'!E55 -> 0 | K21: =J21 -> 0 | M21: ='App.2-FA Proposed REG Inves (2'!F55 -> 0 | N21: =M21 -> 0 | P21: ='App.2-FA Proposed REG Inves (2'!G55 -> 0 | Q21: =P21 -> 0
A22: Incremental OM&A (start-up, applicable for Provincial Recovery) | D22: ='App.2-FA Proposed REG Inves (2'!C54 -> 0 | E22: =D22*E19 -> 0 | F22: =D22*F19 -> 0 | G22: ='App.2-FA Proposed REG Inves (2'!D54 -> 0 | H22: =G22*H19 -> 0 | I22: =G22*I19 -> 0 | J22: ='App.2-FA Proposed REG Inves (2'!E54 -> 0 | K22: =J22*K19 -> 0 | L22: =J22*L19 -> 0 | M22: ='App.2-FA Proposed REG Inves (2'!F54 -> 0 | N22: =M22*N19 -> 0 | O22: =M22*O19 -> 0 | P22: ='App.2-FA Proposed REG Inves (2'!G54 -> 0 | Q22: =P22*Q19 -> 0 | R22: =P22*R19 -> 0
A23: WCA | B23: 0.13 | E23: =(E21+E22)*$B$23 -> 0 | F23: =F22*$B$23 -> 0 | H23: =(H21+H22)*$B$23 -> 0 | I23: =I22*$B$23 -> 0 | K23: =(K21+K22)*$B$23 -> 0 | L23: =L22*$B$23 -> 0 | N23: =(N21+N22)*$B$23 -> 0 | O23: =O22*$B$23 -> 0 | Q23: =(Q21+Q22)*$B$23 -> 0 | R23: =R22*$B$23 -> 0
A24: Rate Base | E24: =SUM(E20+E23) -> 29.4 | F24: =SUM(F20+F23) -> 460.6 | H24: =SUM(H20+H23) -> 57.6 | I24: =SUM(I20+I23) -> 902.4 | K24: =SUM(K20+K23) -> 84.6 | L24: =SUM(L20+L23) -> 1325.4 | N24: =SUM(N20+N23) -> 110.4 | O24: =SUM(O20+O23) -> 1729.6 | Q24: =SUM(Q20+Q23) -> 105.6 | R24: =SUM(R20+R23) -> 1654.4
A27: Deemed ST Debt | B27: 0.04 | E27: =E24*$B$27 -> 1.176 | F27: =F24*$B$27 -> 18.424 | H27: =H24*$B$27 -> 2.304 | I27: =I24*$B$27 -> 36.096 | K27: =K24*$B$27 -> 3.384 | L27: =L24*$B$27 -> 53.016 | N27: =N24*$B$27 -> 4.416 | O27: =O24*$B$27 -> 69.184 | Q27: =Q24*$B$27 -> 4.224 | R27: =R24*$B$27 -> 66.176
A28: Deemed LT Debt | B28: 0.56 | E28: =E24*$B$28 -> 16.464 | F28: =F24*$B$28 -> 257.936 | H28: =H24*$B$28 -> 32.256 | I28: =I24*$B$28 -> 505.344 | K28: =K24*$B$28 -> 47.376 | L28: =L24*$B$28 -> 742.224 | N28: =N24*$B$28 -> 61.824 | O28: =O24*$B$28 -> 968.576 | Q28: =Q24*$B$28 -> 59.136 | R28: =R24*$B$28 -> 926.464
A29: Deemed Equity | B29: 0.4 | E29: =E24*$B$29 -> 11.76 | F29: =F24*$B$29 -> 184.24 | H29: =H24*$B$29 -> 23.04 | I29: =I24*$B$29 -> 360.96 | K29: =K24*$B$29 -> 33.84 | L29: =L24*$B$29 -> 530.16 | N29: =N24*$B$29 -> 44.16 | O29: =O24*$B$29 -> 691.84 | Q29: =Q24*$B$29 -> 42.24 | R29: =R24*$B$29 -> 661.76
A31: ST Interest | B31: 0.024 | E31: =E27*$B31 -> 0.028224 | F31: =F27*$B31 -> 0.442176 | H31: =H27*$B31 -> 0.055296 | I31: =I27*$B31 -> 0.866304 | K31: =K27*$B31 -> 0.081216 | L31: =L27*$B31 -> 1.272384 | N31: =N27*$B31 -> 0.105984 | O31: =O27*$B31 -> 1.660416 | Q31: =Q27*$B31 -> 0.101376 | R31: =R27*$B31 -> 1.588224
A32: LT Interest | B32: 0.056 | E32: =E28*$B32 -> 0.921984 | F32: 14.444416 | H32: =H28*$B32 -> 1.806336 | I32: 28.299264 | K32: =K28*$B32 -> 2.653056 | L32: 41.564544 | N32: =N28*$B32 -> 3.462144 | O32: 54.240256 | Q32: =Q28*$B32 -> 3.311616 | R32: 51.881984
A33: ROE | B33: 0.085 | E33: 0.9996 | F33: 15.6604 | H33: 1.9584 | I33: 30.6816 | K33: 2.8764 | L33: 45.0636 | N33: 3.7536 | O33: 58.8064 | Q33: 3.5904 | R33: 56.2496
A34: Cost of Capital Total | E34: =SUM(E31:E33) -> 1.949808 | F34: =SUM(F31:F33) -> 30.546992 | H34: =SUM(H31:H33) -> 3.820032 | I34: =SUM(I31:I33) -> 59.847168 | K34: =SUM(K31:K33) -> 5.610672 | L34: =SUM(L31:L33) -> 87.900528 | N34: =SUM(N31:N33) -> 7.321728 | O34: =SUM(O31:O33) -> 114.707072 | Q34: =SUM(Q31:Q33) -> 7.003392 | R34: =SUM(R31:R33) -> 109.719808
A36: OM&A | E36: =E21+E22 -> 0 | F36: =F22 -> 0 | H36: =H21+H22 -> 0 | I36: =I22 -> 0 | K36: =K21+K22 -> 0 | L36: =L22 -> 0 | N36: =N21+N22 -> 0 | O36: =O22 -> 0 | Q36: =Q21+Q22 -> 0 | R36: =R22 -> 0
A37: Amortization | D37: =D77 -> 20 | E37: =D37*E$19 -> 1.2 | F37: =D37*F$19 -> 18.8 | G37: =E76+E77 -> 40 | H37: =G37*H$19 -> 2.4 | I37: =G37*I$19 -> 37.6 | J37: =F76+F77 -> 60 | K37: =J37*K$19 -> 3.6 | L37: =J37*L$19 -> 56.4 | M37: =G76+G77 -> 80 | N37: =M37*N$19 -> 4.8 | O37: =M37*O$19 -> 75.2 | P37: =H76+H77 -> 80 | Q37: =P37*Q$19 -> 4.8 | R37: =P37*R$19 -> 75.2
A38: Grossed-up PILs | E38: =E65 -> 0 | F38: =F65 -> 0 | H38: =H65 -> 0 | I38: =I65 -> 0 | K38: =K65 -> 0 | L38: =L65 -> 0 | N38: =N65 -> 0 | O38: =O65 -> 0 | Q38: =Q65 -> 0 | R38: =R65 -> 0
A40: Revenue Requirement | E40: =SUM(E34:E38) -> 3.149808 | F40: =SUM(F34:F38) -> 49.346992 | H40: =SUM(H34:H38) -> 6.220032 | I40: =SUM(I34:I38) -> 97.447168 | K40: =SUM(K34:K38) -> 9.210672 | L40: =SUM(L34:L38) -> 144.300528 | N40: =SUM(N34:N38) -> 12.121728 | O40: =SUM(O34:O38) -> 189.907072 | Q40: =SUM(Q34:Q38) -> 11.803392 | R40: =SUM(R34:R38) -> 184.919808
A43: Provincial Rate Protection | F43: =F40 -> 49.346992 | I43: =I40 -> 97.447168 | L43: =L40 -> 144.300528 | O43: =O40 -> 189.907072 | R43: =R40 -> 184.919808
A45: Monthly Amount Paid by IESO | F45: =F43/12 -> 4.112249333 | I45: =I43/12 -> 8.120597333 | L45: =L43/12 -> 12.025044 | O45: =O43/12 -> 15.82558933 | R45: =R43/12 -> 15.409984
A47: Note 1: The difference between the actual costs of approved eligible investments and revenue received from the IESO should be recorded in a variance account. The Board may provide
A48: regulatory accounting guidance regarding a variance account either in an individual proceeding or on a generic basis.
A49: Note 2: For the 2014 Test Year, Costs and Revenues of the Direct Benefit are to be included in the test year applicant Rate Base and Revenues.
A51: PILs Calculation
E52: 2015 | H52: =E52+1 -> 2016 | K52: =H52+1 -> 2017 | N52: =K52+1 -> 2018 | Q52: =N52+1 -> 2019
A53: Income Tax | E53: Direct Benefit | F53: Provincial | H53: Direct Benefit | I53: Provincial | K53: Direct Benefit | L53: Provincial | N53: Direct Benefit | O53: Provincial | Q53: Direct Benefit | R53: Provincial
M54: Total | P54: Total
A55: Net Income - ROE on Rate Base | E55: =E33 -> 0.9996 | F55: =F33 -> 15.6604 | H55: =H33 -> 1.9584 | I55: =I33 -> 30.6816 | K55: =K33 -> 2.8764 | L55: =L33 -> 45.0636 | N55: =N33 -> 3.7536 | O55: =O33 -> 58.8064 | Q55: =Q33 -> 3.5904 | R55: =R33 -> 56.2496
A56: Amortization (6% DB and 94% P) | E56: =E37 -> 1.2 | F56: =F37 -> 18.8 | H56: =H37 -> 2.4 | I56: =I37 -> 37.6 | K56: =K37 -> 3.6 | L56: =L37 -> 56.4 | N56: =N37 -> 4.8 | O56: =O37 -> 75.2 | Q56: =Q37 -> 4.8 | R56: =R37 -> 75.2
A57: CCA (6% DB and 94% P) | E57: =-D94*E$19 -> -2.4 | F57: =-D94*F$19 -> -37.6 | H57: =-E94*H$19 -> -4.608 | I57: =-E94*I$19 -> -72.192 | K57: =-F94*K$19 -> -4.23936 | L57: =-F94*L$19 -> -66.41664 | N57: =-G94*N$19 -> -3.9002112 | O57: =-G94*O$19 -> -61.1033088 | Q57: =-H94*Q$19 -> -3.588194304 | R57: =-H94*R$19 -> -56.2150441
A58: Taxable income | E58: =SUM(E55:E57) -> -0.2004 | F58: =SUM(F55:F57) -> -3.1396 | H58: =SUM(H55:H57) -> -0.2496 | I58: =SUM(I55:I57) -> -3.9104 | K58: =SUM(K55:K57) -> 2.23704 | L58: =SUM(L55:L57) -> 35.04696 | N58: =SUM(N55:N57) -> 4.6533888 | O58: =SUM(O55:O57) -> 72.9030912 | Q58: =SUM(Q55:Q57) -> 4.802205696 | R58: =SUM(R55:R57) -> 75.2345559
A60: Tax Rate (to be entered)
A62: Income Taxes Payable | E62: =E58*E60 -> 0 | F62: =F58*F60 -> 0 | H62: =H58*H60 -> 0 | I62: =I58*I60 -> 0 | K62: =K58*K60 -> 0 | L62: =L58*L60 -> 0 | N62: =N58*N60 -> 0 | O62: =O58*O60 -> 0 | Q62: =Q58*Q60 -> 0 | R62: =R58*R60 -> 0
A63: Gross Up
A64: Income Taxes Payable | E64: =E62/(1-E60) -> 0 | F64: =F62/(1-F60) -> 0 | H64: =H62/(1-H60) -> 0 | I64: =I62/(1-I60) -> 0 | K64: =K62/(1-K60) -> 0 | L64: =L62/(1-L60) -> 0 | N64: =N62/(1-N60) -> 0 | O64: =O62/(1-O60) -> 0 | Q64: =Q62/(1-Q60) -> 0 | R64: =R62/(1-R60) -> 0
A65: Grossed Up PILs | E65: =SUM(E64:E64) -> 0 | F65: =SUM(F64:F64) -> 0 | H65: =SUM(H64:H64) -> 0 | I65: =SUM(I64:I64) -> 0 | K65: =SUM(K64:K64) -> 0 | L65: =SUM(L64:L64) -> 0 | N65: =SUM(N64:N64) -> 0 | O65: =SUM(O64:O64) -> 0 | Q65: =SUM(Q64:Q64) -> 0 | R65: =SUM(R64:R64) -> 0
D68: 2015 | E68: =D68+1 -> 2016 | F68: =E68+1 -> 2017 | G68: 2018 | H68: 2019
A69: Net Fixed Assets
B70: Enter applicable amortization in years: | C70: 25
A71: Opening Gross Fixed Assets | E71: =D73 -> 1000 | F71: =E73 -> 1000 | G71: =F73 -> 2000 | H71: =G73 -> 2000
A72: Gross Capital Additions | D72: ='App.2-FA Proposed REG Inves (2'!C53 -> 1000 | E72: ='App.2-FA Proposed REG Inves (2'!D53 -> 0 | F72: ='App.2-FA Proposed REG Inves (2'!E53 -> 1000 | G72: ='App.2-FA Proposed REG Inves (2'!F53 -> 0 | H72: ='App.2-FA Proposed REG Inves (2'!G53 -> 0
A73: Closing Gross Fixed Assets | D73: =SUM(D71:D72) -> 1000 | E73: =SUM(E71:E72) -> 1000 | F73: 2000 | G73: 2000 | H73: 2000
A75: Opening Accumulated Amortization | E75: =D78 -> 20 | F75: =E78 -> 60 | G75: =F78 -> 120 | H75: =G78 -> 200
A76: Current Year Amortization (before additions) | E76: =IF(ISERROR(E71/$C$70), 0, E71/$C$70) -> 40 | F76: =IF(ISERROR(F71/$C$70), 0, F71/$C$70) -> 40 | G76: =IF(ISERROR(G71/$C$70), 0, G71/$C$70) -> 80 | H76: =IF(ISERROR(H71/$C$70), 0, H71/$C$70) -> 80
A77: Additions (half year) | D77: =D72/C70/2 -> 20 | E77: =E72/C70/2 -> 0 | F77: =F72/C70/2 -> 20 | G77: =G72/C70/2 -> 0 | H77: =H72/C70/2 -> 0
A78: Closing Accumulated Amortization | D78: =SUM(D75+D77) -> 20 | E78: =SUM(E75:E77) -> 60 | F78: =SUM(F75:F77) -> 120 | G78: =SUM(G75:G77) -> 200 | H78: =SUM(H75:H77) -> 280
A80: Opening Net Fixed Assets | D80: =D71-D75 -> 0 | E80: =D81 -> 980 | F80: =E81 -> 940 | G80: =F81 -> 1880 | H80: =G81 -> 1800
A81: Closing Net Fixed Assets | D81: =D73-D78 -> 980 | E81: =E73-E78 -> 940 | F81: =F73-F78 -> 1880 | G81: =G73-G78 -> 1800 | H81: =H73-H78 -> 1720
A82: Average Net Fixed Assets | D82: =SUM(D80:D81)/2 -> 490 | E82: =SUM(E80:E81)/2 -> 960 | F82: =SUM(F80:F81)/2 -> 1410 | G82: =SUM(G80:G81)/2 -> 1840 | H82: =SUM(H80:H81)/2 -> 1760
A84: UCC for PILs Calculation
D85: 2015 | E85: =D85+1 -> 2016 | F85: =E85+1 -> 2017 | G85: 2018 | H85: 2019
A87: Opening UCC | E87: =D95 -> 960 | F87: =E95 -> 883.2 | G87: =F95 -> 812.544 | H87: =G95 -> 747.54048
A88: Capital Additions (from Appendix 2-FA) | D88: =D72 -> 1000 | E88: ='App.2-FA Proposed REG Inves (2'!D31 -> 0 | F88: ='App.2-FA Proposed REG Inves (2'!E31 -> 0 | G88: ='App.2-FA Proposed REG Inves (2'!F31 -> 0 | H88: ='App.2-FA Proposed REG Inves (2'!G31 -> 0
A89: UCC Before Half Year Rule | D89: =SUM(D87:D88) -> 1000 | E89: =SUM(E87:E88) -> 960 | F89: =SUM(F87:F88) -> 883.2 | G89: =SUM(G87:G88) -> 812.544 | H89: =SUM(H87:H88) -> 747.54048
A90: Half Year Rule (1/2 Additions - Disposals) | D90: =D88/2 -> 500 | E90: =E88/2 -> 0 | F90: =F88/2 -> 0 | G90: =G88/2 -> 0 | H90: =H88/2 -> 0
A91: Reduced UCC | D91: =D89-D90 -> 500 | E91: =E89-E90 -> 960 | F91: =F89-F90 -> 883.2 | G91: =G89-G90 -> 812.544 | H91: =H89-H90 -> 747.54048
A92: CCA Rate Class (to be entered) | C92: 47 | D92: =C92 -> 47 | E92: =C92 -> 47 | F92: =C92 -> 47 | G92: =C92 -> 47 | H92: =C92 -> 47
A93: CCA Rate (to be entered) | C93: 0.08 | D93: =C93 -> 0.08 | E93: =C93 -> 0.08 | F93: =C93 -> 0.08 | G93: =C93 -> 0.08 | H93: =C93 -> 0.08
A94: CCA | D94: =D91*D93 -> 40 | E94: =E91*E93 -> 76.8 | F94: 70.656 | G94: 65.00352 | H94: =H91*H93 -> 59.8032384
A95: Closing UCC | D95: =D89-D94 -> 960 | E95: =E89-E94 -> 883.2 | F95: =F89-F94 -> 812.544 | G95: =G89-G94 -> 747.54048 | H95: =H89-H94 -> 687.7372416

Sheet App.2-FC Calc of REG Expans (2 (hidden)
E1: File Number: | F1: =EBNUMBER -> 
E2: Exhibit:
E3: Tab:
E4: Schedule:
E5: Page:
E7: Date:
A9: Appendix 2-FC
A10: Calculation of Renewable Generation Connection Direct Benefits/Provincial Amount: Renewable Expansion Investments
A12: This table will calculate the distributor/provincial shares of the investments entered in Part B of Appendix 2-FA.
A13: Enter values in green shaded cells: WCA percentage, debt percentages, interest rates, kWh, tax rates, amortization period, CCA Class and percentage.
A14: Rate Riders are not calculated for Test Year as these assets and costs are already in the distributors rate base.
D17: 2014 Test Year | G17: 2015 | J17: 2016 | K17: 2016 | M17: 2017 | P17: 2018
E18: Direct Benefit | F18: Provincial | H18: Direct Benefit | I18: Provincial | K18: Direct Benefit | L18: Provincial | N18: Direct Benefit | O18: Provincial | Q18: Direct Benefit | R18: Provincial
D19: Total | E19: 0.17 | F19: 0.83 | G19: Total | H19: 0.17 | I19: 0.83 | J19: Total | K19: 0.17 | L19: 0.83 | M19: Total | N19: 0.17 | O19: 0.83 | P19: Total | Q19: 0.17 | R19: 0.83
A20: Net Fixed Assets (average) | D20: =D81 -> 0 | E20: =D20*E19 -> 0 | F20: =D20*F19 -> 0 | G20: =E81 -> 0 | H20: =G20*H19 -> 0 | I20: =G20*I19 -> 0 | J20: =F81 -> 0 | K20: =J20*K19 -> 0 | L20: =J20*L19 -> 0 | M20: =G81 -> 0 | N20: =M20*N19 -> 0 | O20: =M20*O19 -> 0 | P20: =H81 -> 0 | Q20: =P20*Q19 -> 0 | R20: =P20*R19 -> 0
A21: Incremental OM&A (on-going, N/A for Provincial Recovery) | D21: ='App.2-FA Proposed REG Inves (2'!C$92 -> 0 | E21: =D21 -> 0 | G21: ='App.2-FA Proposed REG Inves (2'!D$92 -> 0 | H21: =G21 -> 0 | J21: ='App.2-FA Proposed REG Inves (2'!E$92 -> 0 | K21: =J21 -> 0 | M21: ='App.2-FA Proposed REG Inves (2'!F$92 -> 0 | N21: =M21 -> 0 | P21: ='App.2-FA Proposed REG Inves (2'!G$92 -> 0 | Q21: =P21 -> 0
A22: Incremental OM&A (start-up, applicable for Provincial Recovery) | D22: ='App.2-FA Proposed REG Inves (2'!C$91 -> 0 | E22: =D22*E19 -> 0 | F22: =D22*F19 -> 0 | G22: ='App.2-FA Proposed REG Inves (2'!D$91 -> 0 | H22: =G22*H19 -> 0 | I22: =G22*I19 -> 0 | J22: ='App.2-FA Proposed REG Inves (2'!E$91 -> 0 | K22: =J22*K19 -> 0 | L22: =J22*L19 -> 0 | M22: ='App.2-FA Proposed REG Inves (2'!F$91 -> 0 | N22: =M22*N19 -> 0 | O22: =M22*O19 -> 0 | P22: ='App.2-FA Proposed REG Inves (2'!G$91 -> 0 | Q22: =P22*Q19 -> 0 | R22: =P22*R19 -> 0
A23: WCA | E23: =(E21+E22)*$B$23 -> 0 | F23: =F22*$B$23 -> 0 | H23: =(H21+H22)*$B$23 -> 0 | I23: =I22*$B$23 -> 0 | K23: =(K21+K22)*$B$23 -> 0 | L23: =L22*$B$23 -> 0 | N23: =(N21+N22)*$B$23 -> 0 | O23: =O22*$B$23 -> 0 | Q23: =(Q21+Q22)*$B$23 -> 0 | R23: =R22*$B$23 -> 0
A24: Rate Base | E24: =SUM(E20+E23) -> 0 | F24: =SUM(F20+F23) -> 0 | H24: =SUM(H20+H23) -> 0 | I24: =SUM(I20+I23) -> 0 | K24: =SUM(K20+K23) -> 0 | L24: =SUM(L20+L23) -> 0 | N24: =SUM(N20+N23) -> 0 | O24: =SUM(O20+O23) -> 0 | Q24: =SUM(Q20+Q23) -> 0 | R24: =SUM(R20+R23) -> 0
A27: Deemed ST Debt | E27: =E24*$B$27 -> 0 | F27: =F24*$B$27 -> 0 | H27: =H24*$B$27 -> 0 | I27: =I24*$B$27 -> 0 | K27: =K24*$B$27 -> 0 | L27: =L24*$B$27 -> 0 | N27: =N24*$B$27 -> 0 | O27: =O24*$B$27 -> 0 | Q27: =Q24*$B$27 -> 0 | R27: =R24*$B$27 -> 0
A28: Deemed LT Debt | E28: =E24*$B$28 -> 0 | F28: =F24*$B$28 -> 0 | H28: =H24*$B$28 -> 0 | I28: =I24*$B$28 -> 0 | K28: =K24*$B$28 -> 0 | L28: =L24*$B$28 -> 0 | N28: =N24*$B$28 -> 0 | O28: =O24*$B$28 -> 0 | Q28: =Q24*$B$28 -> 0 | R28: =R24*$B$28 -> 0
A29: Deemed Equity | E29: =E24*$B$29 -> 0 | F29: =F24*$B$29 -> 0 | H29: =H24*$B$29 -> 0 | I29: =I24*$B$29 -> 0 | K29: =K24*$B$29 -> 0 | L29: =L24*$B$29 -> 0 | N29: =N24*$B$29 -> 0 | O29: =O24*$B$29 -> 0 | Q29: =Q24*$B$29 -> 0 | R29: =R24*$B$29 -> 0
A31: ST Interest | E31: =E27*$B$31 -> 0 | F31: =F27*$B$31 -> 0 | H31: =H27*$B$31 -> 0 | I31: =I27*$B$31 -> 0 | K31: =K27*$B$31 -> 0 | L31: =L27*$B$31 -> 0 | N31: =N27*$B$31 -> 0 | O31: =O27*$B$31 -> 0 | Q31: =Q27*$B$31 -> 0 | R31: =R27*$B$31 -> 0
A32: LT Interest | E32: =E28*$B$32 -> 0 | F32: =F28*$B$32 -> 0 | H32: =H28*$B$32 -> 0 | I32: =I28*$B$32 -> 0 | K32: =K28*$B$32 -> 0 | L32: =L28*$B$32 -> 0 | N32: =N28*$B$32 -> 0 | O32: =O28*$B$32 -> 0 | Q32: =Q28*$B$32 -> 0 | R32: =R28*$B$32 -> 0
A33: ROE | E33: =E29*$B$33 -> 0 | F33: =F29*$B$33 -> 0 | H33: =H29*$B$33 -> 0 | I33: =I29*$B$33 -> 0 | K33: =K29*$B$33 -> 0 | L33: =L29*$B$33 -> 0 | N33: =N29*$B$33 -> 0 | O33: =O29*$B$33 -> 0 | Q33: =Q29*$B$33 -> 0 | R33: =R29*$B$33 -> 0
A34: Cost of Capital Total | E34: =SUM(E31:E33) -> 0 | F34: =SUM(F31:F33) -> 0 | H34: =SUM(H31:H33) -> 0 | I34: =SUM(I31:I33) -> 0 | K34: =SUM(K31:K33) -> 0 | L34: =SUM(L31:L33) -> 0 | N34: =SUM(N31:N33) -> 0 | O34: =SUM(O31:O33) -> 0 | Q34: =SUM(Q31:Q33) -> 0 | R34: =SUM(R31:R33) -> 0
A36: OM&A | E36: =E21+E22 -> 0 | F36: =F22 -> 0 | H36: =H21+H22 -> 0 | I36: =I22 -> 0 | K36: =K21+K22 -> 0 | L36: =L22 -> 0 | N36: =N21+N22 -> 0 | O36: =O22 -> 0 | Q36: =Q21+Q22 -> 0 | R36: =R22 -> 0
A37: Amortization | D37: =D77 -> 0 | E37: =D37*E$19 -> 0 | F37: =D37*F$19 -> 0 | G37: =E75+E76 -> 0 | H37: =G37*H$19 -> 0 | I37: =G37*I$19 -> 0 | J37: =F75+F76 -> 0 | K37: =J37*K$19 -> 0 | L37: =J37*L$19 -> 0 | M37: =G75+G76 -> 0 | N37: =M37*N$19 -> 0 | O37: =M37*O$19 -> 0 | P37: =H75+H76 -> 0 | Q37: =P37*Q$19 -> 0 | R37: =P37*R$19 -> 0
A38: Grossed-up PILs | E38: =E65 -> 0 | F38: =F65 -> 0 | H38: =H65 -> 0 | I38: =I65 -> 0 | K38: =K65 -> 0 | L38: =L65 -> 0 | N38: =N65 -> 0 | O38: =O65 -> 0 | Q38: =Q65 -> 0 | R38: =R65 -> 0
A40: Revenue Requirement | E40: =SUM(E34:E38) -> 0 | F40: =SUM(F34:F38) -> 0 | H40: =SUM(H34:H38) -> 0 | I40: =SUM(I34:I38) -> 0 | K40: =SUM(K34:K38) -> 0 | L40: =SUM(L34:L38) -> 0 | N40: =SUM(N34:N38) -> 0 | O40: =SUM(O34:O38) -> 0 | Q40: =SUM(Q34:Q38) -> 0 | R40: =SUM(R34:R38) -> 0
A43: Provincial Rate Protection | F43: =F40 -> 0 | I43: =I40 -> 0 | L43: =L40 -> 0 | O43: =O40 -> 0 | R43: =R40 -> 0
A45: Monthly Amount Paid by IESO | F45: =F43/12 -> 0 | I45: =I43/12 -> 0 | L45: =L43/12 -> 0 | O45: =O43/12 -> 0 | R45: =R43/12 -> 0
A47: Note 1: The difference between the actual costs of approved eligible investments and revenue received from the IESO should be recorded in a variance account. The Board may provide
A48: regulatory accounting guidance regarding a variance account either in an individual proceeding or on a generic basis.
A49: Note 2: For the 2014 Test Year, Costs and Revenues of the Direct Benefit are to be included in the test year applicant Rate Base and Revenues.
A51: PILs Calculation
E52: 2014 | H52: 2015 | K52: 2016 | N52: 2017 | Q52: 2018
A53: Income Tax | E53: Direct Benefit | F53: Provincial | H53: Direct Benefit | I53: Provincial | K53: Direct Benefit | L53: Provincial | N53: Direct Benefit | O53: Provincial | Q53: Direct Benefit | R53: Provincial
M54: Total | P54: Total
A55: Net Income - ROE on Rate Base | E55: =E33 -> 0 | F55: =F33 -> 0 | H55: =H33 -> 0 | I55: =I33 -> 0 | K55: =K33 -> 0 | L55: =L33 -> 0 | N55: =N33 -> 0 | O55: =O33 -> 0 | Q55: =Q33 -> 0 | R55: =R33 -> 0
A56: Amortization (17% DB and 83% P) | E56: =E37 -> 0 | F56: =F37 -> 0 | H56: =H37 -> 0 | I56: =I37 -> 0 | K56: =K37 -> 0 | L56: =L37 -> 0 | N56: =N37 -> 0 | O56: =O37 -> 0 | Q56: =Q37 -> 0 | R56: =R37 -> 0
A57: CCA (17% DB and 83% P) | E57: =-D93*E$19 -> 0 | F57: =-D93*F$19 -> 0 | H57: =-E93*H$19 -> 0 | I57: =-E93*I$19 -> 0 | K57: =-F93*K$19 -> 0 | L57: =-F93*L$19 -> 0 | N57: =-G93*N$19 -> 0 | O57: =-G93*O$19 -> 0 | Q57: =-H93*Q$19 -> 0 | R57: =-H93*R$19 -> 0
A58: Taxable income | E58: =SUM(E55:E57) -> 0 | F58: =SUM(F55:F57) -> 0 | H58: =SUM(H55:H57) -> 0 | I58: =SUM(I55:I57) -> 0 | K58: =SUM(K55:K57) -> 0 | L58: =SUM(L55:L57) -> 0 | N58: =SUM(N55:N57) -> 0 | O58: =SUM(O55:O57) -> 0 | Q58: =SUM(Q55:Q57) -> 0 | R58: =SUM(R55:R57) -> 0
A60: Tax Rate (to be entered)
A62: Income Taxes Payable | E62: =E58*E60 -> 0 | F62: =F58*F60 -> 0 | H62: =H58*H60 -> 0 | I62: =I58*I60 -> 0 | K62: =K58*K60 -> 0 | L62: =L58*L60 -> 0 | N62: =N58*N60 -> 0 | O62: =O58*O60 -> 0 | Q62: =Q58*Q60 -> 0 | R62: =R58*R60 -> 0
A63: Gross Up
A64: Income Taxes Payable | E64: =E62/(1-E60) -> 0 | F64: =F62/(1-F60) -> 0 | H64: =H62/(1-H60) -> 0 | I64: =I62/(1-I60) -> 0 | K64: =K62/(1-K60) -> 0 | L64: =L62/(1-L60) -> 0 | N64: =N62/(1-N60) -> 0 | O64: =O62/(1-O60) -> 0 | Q64: =Q62/(1-Q60) -> 0 | R64: =R62/(1-R60) -> 0
A65: Grossed Up PILs | E65: =SUM(E64:E64) -> 0 | F65: =SUM(F64:F64) -> 0 | H65: =SUM(H64:H64) -> 0 | I65: =SUM(I64:I64) -> 0 | K65: =SUM(K64:K64) -> 0 | L65: =SUM(L64:L64) -> 0 | N65: =SUM(N64:N64) -> 0 | O65: =SUM(O64:O64) -> 0 | Q65: =SUM(Q64:Q64) -> 0 | R65: =SUM(R64:R64) -> 0
A68: Net Fixed Assets | D68: 2014 | E68: 2015 | F68: 2016 | G68: 2017 | H68: 2018
B69: Enter applicable amortization in years: | C69: 25
A70: Opening Gross Fixed Assets | E70: =D72 -> 0 | F70: =E72 -> 0 | G70: =F72 -> 0 | H70: =G72 -> 0
A71: Gross Capital Additions | D71: ='App.2-FA Proposed REG Inves (2'!C90 -> 0 | E71: ='App.2-FA Proposed REG Inves (2'!D90 -> 0 | F71: ='App.2-FA Proposed REG Inves (2'!E90 -> 0 | G71: ='App.2-FA Proposed REG Inves (2'!F90 -> 0 | H71: ='App.2-FA Proposed REG Inves (2'!G90 -> 0
A72: Closing Gross Fixed Assets | D72: =SUM(D70:D71) -> 0 | E72: =SUM(E70:E71) -> 0 | F72: =SUM(F70:F71) -> 0 | G72: =SUM(G70:G71) -> 0 | H72: =SUM(H70:H71) -> 0
A74: Opening Accumulated Amortization | E74: =D77 -> 0 | F74: =E77 -> 0 | G74: =F77 -> 0 | H74: =G77 -> 0
A75: Current Year Amortization (before additions) | E75: =E70/$C$69 -> 0 | F75: =F70/$C$69 -> 0 | G75: =G70/$C$69 -> 0 | H75: =H70/$C$69 -> 0
A76: Additions (half year) | D76: =D71/C69/2 -> 0 | E76: =E71/C69/2 -> 0 | F76: =F71/C69/2 -> 0 | G76: =G71/C69/2 -> 0 | H76: =H71/C69/2 -> 0
A77: Closing Accumulated Amortization | D77: =SUM(D74+D76) -> 0 | E77: =SUM(E74:E76) -> 0 | F77: =SUM(F74:F76) -> 0 | G77: =SUM(G74:G76) -> 0 | H77: =SUM(H74:H76) -> 0
A79: Opening Net Fixed Assets | D79: =D70-D74 -> 0 | E79: =D80 -> 0 | F79: =E80 -> 0 | G79: =F80 -> 0 | H79: =G80 -> 0
A80: Closing Net Fixed Assets | D80: =D72-D77 -> 0 | E80: =E72-E77 -> 0 | F80: =F72-F77 -> 0 | G80: =G72-G77 -> 0 | H80: =H72-H77 -> 0
A81: Average Net Fixed Assets | D81: =SUM(D79:D80)/2 -> 0 | E81: =SUM(E79:E80)/2 -> 0 | F81: =SUM(F79:F80)/2 -> 0 | G81: =SUM(G79:G80)/2 -> 0 | H81: =SUM(H79:H80)/2 -> 0
A83: UCC for PILs Calculation
D84: 2014 | E84: 2015 | F84: 2016 | G84: 2017 | H84: 2018
A86: Opening UCC | E86: =D94 -> 0 | F86: =E94 -> 0 | G86: =F94 -> 0 | H86: =G94 -> 0
A87: Capital Additions (from Appendix 2-FA) | D87: =D71 -> 0 | E87: =E71 -> 0 | F87: =F71 -> 0 | G87: =G71 -> 0 | H87: =H71 -> 0
A88: UCC Before Half Year Rule | D88: =SUM(D86:D87) -> 0 | E88: =SUM(E86:E87) -> 0 | F88: =SUM(F86:F87) -> 0 | G88: =SUM(G86:G87) -> 0 | H88: =SUM(H86:H87) -> 0
A89: Half Year Rule (1/2 Additions - Disposals) | D89: =D87/2 -> 0 | E89: =E87/2 -> 0 | F89: =F87/2 -> 0 | G89: =G87/2 -> 0 | H89: =H87/2 -> 0
A90: Reduced UCC | D90: =D88-D89 -> 0 | E90: =E88-E89 -> 0 | F90: =F88-F89 -> 0 | G90: =G88-G89 -> 0 | H90: =H88-H89 -> 0
A91: CCA Rate Class (to be entered) | C91: 47 | D91: =C91 -> 47 | E91: =C91 -> 47 | F91: =C91 -> 47 | G91: =C91 -> 47 | H91: =C91 -> 47
A92: CCA Rate (to be entered) | C92: 0.08 | D92: =C92 -> 0.08 | E92: =C92 -> 0.08 | F92: =C92 -> 0.08 | G92: =C92 -> 0.08 | H92: =C92 -> 0.08
A93: CCA | D93: =D90*D$92 -> 0 | E93: =E90*E$92 -> 0 | F93: 0 | G93: 0 | H93: 0
A94: Closing UCC | D94: =D88-D93 -> 0 | E94: =E88-E93 -> 0 | F94: =F88-F93 -> 0 | G94: =G88-G93 -> 0 | H94: =H88-H93 -> 0

Sheet App.2-I LF_CDM_WF_OLD (hidden)
E1: File Number: | F1: =EBNUMBER ->  | H1: =#REF! -> 
E2: Exhibit:
E3: Tab:
E4: Schedule:
E5: Page:
E7: Date:
A9: Appendix 2-I
A10: Load Forecast CDM Adjustment Work Form (2015)
A12: Input the 2011-2014 CDM target in Cell B21.
A14: Input the measured results for 2011 CDM programs for each of the years 2011 and persistence into 2012, 2013 and 2014 into cells B29 to E29. These results are taken from the final 2011 CDM Report issued by the OPA for that distributor in the fall of 2012.
A16: Measured results for 2012 CDM programs for each of the years 2012 and persistence into 2013 and 2014 are input into cells C30 to E30. These results are taken from the final 2012 CDM Report issued by the OPA for that distributor in the fall of 2013. Until that report is issued, the distributor should use the results from the preliminary 2012 CDM Report issued in the spring of 2013.
A18: Based on these inputs, the residual kWh to achieve the 4 year CDM target is allocated so that there is an equal incremental increase in each of the years 2012, 2013 and 2014.
A20: 4 Year (2011-2014) kWh Target:
A21: 100000
B22: 2011 | C22: 2012 | D22: 2013 | E22: 2014 | F22: Total | I22: =B22 -> 2011 | J22: =C22 -> 2012 | K22: =D22 -> 2013 | L22: =E22 -> 2014
A23: 2011 CDM Programs | B23: =B29/$F$33 -> 0.1 | C23: =C29/$F$33 -> 0.1 | D23: 0.1 | E23: 0.095 | F23: =SUM(B23:E23) -> 0.395 | H23: =A23 -> 2011 CDM Programs | I23: =50% -> 0.5 | J23: 1 | K23: 1 | L23: 1
A24: 2012 CDM Programs | C24: 0.12 | D24: 0.1195 | E24: 0.11 | F24: =SUM(B24:E24) -> 0.3495 | H24: =A24 -> 2012 CDM Programs | J24: 0.5 | K24: 1 | L24: 1
A25: 2013 CDM Programs | D25: 0.08516666667 | E25: 0.08516666667 | F25: 0.1703333333 | H25: =A25 -> 2013 CDM Programs | K25: 0.5 | L25: 1
A26: 2014 CDM Programs | E26: 0.08516666667 | F26: 0.08516666667 | H26: =A26 -> 2014 CDM Programs | L26: 0.5
A27: Total in Year | B27: =SUM(B23:B26) -> 0.1 | C27: =SUM(C23:C26) -> 0.22 | D27: 0.3046666667 | E27: 0.3753333333 | F27: =SUM(B27:E27) -> 1
A28: kWh
A29: 2011 CDM Programs | B29: 10000 | C29: 10000 | D29: 10000 | E29: 9500 | F29: =SUM(B29:E29) -> 39500
A30: 2012 CDM Programs | C30: 12000 | D30: 11950 | E30: 11000 | F30: =SUM(B30:E30) -> 34950
A31: 2013 CDM Programs | D31: =(A21-SUM(F29:F30))/3 -> 8516.666667 | E31: =D31 -> 8516.666667 | F31: 17033.33333
A32: 2014 CDM Programs | E32: =D31 -> 8516.666667 | F32: 8516.666667
A33: Total in Year | B33: =SUM(B29:B32) -> 10000 | C33: =SUM(C29:C32) -> 22000 | D33: 30466.66667 | E33: 37533.33333 | F33: =A21 -> 100000
E35: Check | F35: =SUM(F29:F32) -> 100000
A36: From each of the 2006-2010 CDM Final Report, 2011 CDM Final Report, and the 2012 CDM Final Report, issued by the OPA for the distributor, the distributor should input the "gross" and "net" results of the cumulative CDM savings for 2014 into cells D31 to E33. The model will calculate the cumulative savings for all programs from 2006 to 2012 and determine the "net" to "gross" factor "g".
A37: The Board has determined that the "net" number should be used in its Decision and Order with respect to Centre Wellington Hydro Ltd.'s 2013 Cost of Service rates (EB-2012-0113). This approach has also been used in Settlement Agreements accepted by the Board in other 2013 applications. The distributor should select whether the adjustment is done on a "net" or "gross" basis, but must support a proposal for the adjustment being done on a "gross" basis.
A39: Net-to-Gross Conversion
A41: Is CDM adjustment being done on a "net" or "gross" basis? | F41: net
C43: "Gross" | D43: "Net" | E43: Difference | F43: "Net-to-Gross" Conversion Factor
A44: Persistence of Historical CDM programs to 2014 | C44: kWh | D44: kWh | E44: kWh | F44: ('g')
A45: 2006-2010 CDM programs
A46: 2011 CDM program
A47: 2012 CDM program
A48: 2006 to 2011 OPA CDM programs: Persistence to 2014 | C48: =SUM(C45:C47) -> 0 | D48: =SUM(D45:D47) -> 0 | E48: =C48-D48 -> 0 | F48: =IF(D48=0,0,IF(F41="net",0,E48/D48)) -> 0
A50: The default values represent the factor that each year's CDM program is factored into the manual CDM adjustment. Distributors can choose alternative weights of "0", "0.5" or "1" from the drop-down menu for each cell, but must support its alternatives.
A51: These factors do not mean that CDM programs are excluded, but also reflect the assumption that impacts of 2011 and 2012 programs are already implicitly reflected in the actual data for those years that are the basis for the load forecast prior to any manual CDM adjustment.
A53: Weight Factor for Inclusion in CDM Adjustment to 2014 Load Forecast
B54: 2011 | C54: 2012 | D54: 2013 | E54: 2014
A55: Weight Factor for each year's CDM program impact on 2014 load forecast | B55: 0 | C55: 0 | D55: 1 | E55: 0.5 | F55: Utility can select "0", "0.5", or "1" from drop-down list
A56: Default Value selection rationale. | B56: Persistence of 2011 CDM programs for the full year of 2012 means that all of 2011 CDM impact is assumed to be in the base forecast before the CDM Adjustment | C56: 50% of 2012 CDM impact is assumed reflected in base forecast based on 1/2 year rule. | D56: Full year impact of 2013 CDM programs on adjustment for 2014 load forecast | E56: Only 50% of 2014 CDM impact is used based on a half year rule
A59: The Amount used for the CDM threshold of the LRAMVA is the kWh that will be used to determine the base amount for the LRAMVA balance for 2014, for assessing performance against the four-year target. The base amount for 2011-2013 is 0 (zero) for 2014 Cost of Service applications, as the utility rebased prior to the 2011-2014 CDM programs, and there was no adjustment to reflect the impacts of the 2011-2014 programs on the load forecast used to determine their last cost of service-based rates.
A61: The proposed loss factor should correspond with the loss factor calculated in Appendix 2-R
A63: The Manual Adjustment for the 2014 Load Forecast is the amount manually subtracted from the load forecast derived from the base forecast from historical data, and is intended to reflect the further CDM savings that the distributor needs to achieve assuming that they meet 100% of the 2011-2014 CDM target that is a condition of their target.
A65: If the distributor has developed their load forecast on a system purchased basis, then the manual adjustment should be on system purchased basis, including the adjustment for losses. If the load forecast has been developed on a billed basis, either on a system basis or on a class-specific basis, the manual adjustment should be on a billed basis, excluding losses.
A67: The distributor should determine the allocation of the savings to all customer classes in a reasonable manner, for both the LRAMVA and for the load forecast adjustment.
B69: 2011 | C69: 2012 | D69: 2013 | E69: 2014 | F69: Total for 2014
B70: kWh
A71: Amount used for CDM threshold for LRAMVA (2014) | B71: =E29 -> 9500 | C71: =E30 -> 11000 | D71: =E31 -> 8516.666667 | E71: =E32 -> 8516.666667 | F71: =SUM(B71:E71) -> 37533.33333
A73: Manual Adjustment for 2014 Load Forecast (billed basis) | B73: =B71*(1+F48)*B55 -> 0 | C73: =C71*(1+F48)*C55 -> 0 | D73: =D71*(1+F48)*D55 -> 8516.666667 | E73: =E71*(1+F48)*E55 -> 4258.333333 | F73: =SUM(B73:E73) -> 12775
A75: Proposed Loss Factor (TLF) | B75: 0.0479 | C75: Format: X.XX%
A76: Manual Adjustment for 2014 Load Forecast (system purchased basis) | B76: =B73*(1+$B75) -> 0 | C76: =C73*(1+$B75) -> 0 | D76: 8924.615 | E76: 4462.3075 | F76: =SUM(B76:E76) -> 13386.9225
A77: Manual adjustment uses "gross" versus "net" (i.e. numbers multiplied by (1 + g). The Weight factor is also used calculate the impact of each year's program on the CDM adjustment to the 2014 load forecast.

Sheet App.2-OA Cap Structure
K1: File Number: | O1: EB-2018-0044
K2: Exhibit:
K3: Tab:
K4: Schedule:
K5: Page:
K7: Date:
C10: Appendix 2-OA
C11: Capital Structure and Cost of Capital
A13: This table must be completed for the last Board approved year and the test year.
G15: Year: | H15: 2012 (Approved)
A17: Line No.
C18: Particulars | E18: Capitalization Ratio | K18: Cost Rate | O18: Return
E20: (%) | K20: (%)
C21: Debt
A22: 1 | C22: Long-term Debt | E22: 0.56 | I22: =E22*I31 -> 374683429.7 | K22: 0.0509 | O22: =K22*I22 -> 19071386.57
A23: 2 | C23: Short-term Debt | E23: 0.04 | G23: (1) | I23: =E23*I31 -> 26763102.12 | K23: 0.0208 | O23: =K23*I23 -> 556672.5241
A24: 3 | C24: Total Debt | E24: =SUM(E22:E23) -> 0.6 | I24: =SUM(I22:I23) -> 401446531.8 | K24: =IF(E24=0,0,SUMPRODUCT(E22:E23,K22:K23)/E24) -> 0.04889333333 | O24: =SUM(O22:O23) -> 19628059.09
C26: Equity
A27: 4 | C27: Common Equity | E27: 0.4 | I27: =E27*I31 -> 267631021.2 | K27: 0.0942 | O27: =K27*I27 -> 25210842.2
A28: 5 | C28: Preferred Shares | I28: =$I$31*E28 -> 0 | O28: =K28*I28 -> 0
A29: 6 | C29: Total Equity | E29: =SUM(E27:E28) -> 0.4 | I29: =SUM(I27:I28) -> 267631021.2 | K29: =IF(E29=0,0,SUMPRODUCT(E27:E28,K27:K28)/E29) -> 0.0942 | O29: =SUM(O27:O28) -> 25210842.2
A31: 7 | C31: Total | E31: 1 | I31: 669077553 | K31: =(K24*E24)+(K29*E29) -> 0.067016 | O31: =O24+O29 -> 44838901.29
A34: Notes
A35: (1) | C35: 4.0% unless an applicant has proposed or been approved for a different amount.
G40: Year: | H40: 2012 (Actual)
A42: Line No.
C43: Particulars | E43: Capitalization Ratio | K43: Cost Rate | O43: Return
E45: (%) | K45: (%)
C46: Debt
A47: 1 | C47: Long-term Debt | E47: =I47/I56 -> 0.542340248 | I47: 327185000 | K47: ='App.2-OB_Debt Instruments'!I24 -> 0.05245782967 | O47: =K47*I47 -> 17163415
A48: 2 | C48: Short-term Debt | E48: =I48/I56 -> 0.02808569771 | G48: (1) | I48: 16943642 | K48: 0.02142 | O48: =K48*I48 -> 362932.8116
A49: 3 | C49: Total Debt | E49: =SUM(E47:E48) -> 0.5704259457 | I49: =SUM(I47:I48) -> 344128642 | K49: =IF(E49=0,0,SUMPRODUCT(E47:E48,K47:K48)/E49) -> 0.05092963989 | O49: =SUM(O47:O48) -> 17526347.81
C51: Equity
A52: 4 | C52: Common Equity | E52: =I52/I56 -> 0.4295740543 | I52: 259155000 | K52: =O52/I52 -> 0.1019197006 | O52: 26413000
A53: 5 | C53: Preferred Shares | I53: =$I$31*E53 -> 0 | O53: =K53*I53 -> 0
A54: 6 | C54: Total Equity | E54: =SUM(E52:E53) -> 0.4295740543 | I54: =SUM(I52:I53) -> 259155000 | K54: =IF(E54=0,0,SUMPRODUCT(E52:E53,K52:K53)/E54) -> 0.1019197006 | O54: =SUM(O52:O53) -> 26413000
A56: 7 | C56: Total | E56: 1 | I56: =I54+I49 -> 603283642 | K56: =(K49*E49)+(K54*E54) -> 0.07283364698 | O56: =O49+O54 -> 43939347.81
A59: Notes
A60: (1) | C60: 4.0% unless an applicant has proposed or been approved for a different amount.
G64: Year: | H64: 2013 (Actual)
A66: Line No.
C67: Particulars | E67: Capitalization Ratio | K67: Cost Rate | O67: Return
E69: (%) | K69: (%)
C70: Debt
A71: 1 | C71: Long-term Debt | E71: =I71/I80 -> 0.5388369528 | I71: ='[3]App.2-OB_Debt Instruments'!H47 -> 356445274 | K71: ='App.2-OB_Debt Instruments'!I47 -> 0.04911359991 | O71: =K71*I71 -> 17506310.57
A72: 2 | C72: Short-term Debt | E72: =I72/I80 -> 0.05361883191 | G72: (1) | I72: 35469318 | K72: 0.01961 | O72: =K72*I72 -> 695553.326
A73: 3 | C73: Total Debt | E73: =SUM(E71:E72) -> 0.5924557847 | I73: =SUM(I71:I72) -> 391914592 | K73: =IF(E73=0,0,SUMPRODUCT(E71:E72,K71:K72)/E73) -> 0.04644344526 | O73: =SUM(O71:O72) -> 18201863.9
C75: Equity
A76: 4 | C76: Common Equity | E76: =I76/I80 -> 0.4075442153 | I76: 269594000 | K76: 0.0944 | O76: =K76*I76 -> 25449673.6
A77: 5 | C77: Preferred Shares | I77: 0 | O77: =K77*I77 -> 0
A78: 6 | C78: Total Equity | E78: =SUM(E76:E77) -> 0.4075442153 | I78: =SUM(I76:I77) -> 269594000 | K78: =IF(E78=0,0,SUMPRODUCT(E76:E77,K76:K77)/E78) -> 0.0944 | O78: =SUM(O76:O77) -> 25449673.6
A80: 7 | C80: Total | E80: 1 | I80: =I78+I73 -> 661508592 | K80: =(K73*E73)+(K78*E78) -> 0.06598786173 | O80: =O73+O78 -> 43651537.5
A83: Notes
A84: (1) | C84: 4.0% unless an applicant has proposed or been approved for a different amount.
G88: Year: | H88: 2014 (Actual)
A90: Line No.
C91: Particulars | E91: Capitalization Ratio | K91: Cost Rate | O91: Return
E93: (%) | K93: (%)
C94: Debt
A95: 1 | C95: Long-term Debt | E95: =I95/I104 -> 0.5666018289 | I95: ='[3]App.2-OB_Debt Instruments'!H65 -> 392527465.8 | K95: ='App.2-OB_Debt Instruments'!I65 -> 0.04774846005 | O95: =K95*I95 -> 18742582.02
A96: 2 | C96: Short-term Debt | E96: =I96/I104 -> 0.02566826786 | G96: (1) | I96: 17782329 | K96: 0.02141 | O96: =K96*I96 -> 380719.6639
A97: 3 | C97: Total Debt | E97: =SUM(E95:E96) -> 0.5922700968 | I97: =SUM(I95:I96) -> 410309794.8 | K97: =IF(E97=0,0,SUMPRODUCT(E95:E96,K95:K96)/E97) -> 0.04660698313 | O97: =SUM(O95:O96) -> 19123301.68
C99: Equity
A100: 4 | C100: Common Equity | E100: =I100/I104 -> 0.4077299032 | I100: 282465000 | K100: 0.0987 | O100: =K100*I100 -> 27879295.5
A101: 5 | C101: Preferred Shares | I101: =$I$31*E101 -> 0 | O101: =K101*I101 -> 0
A102: 6 | C102: Total Equity | E102: =SUM(E100:E101) -> 0.4077299032 | I102: =SUM(I100:I101) -> 282465000 | K102: =IF(E102=0,0,SUMPRODUCT(E100:E101,K100:K101)/E102) -> 0.0987 | O102: =SUM(O100:O101) -> 27879295.5
A104: 7 | C104: Total | E104: 1 | I104: =I102+I97 -> 692774794.8 | K104: =(K97*E97)+(K102*E102) -> 0.06784686385 | O104: =O97+O102 -> 47002597.18
A107: Notes
A108: (1) | C108: 4.0% unless an applicant has proposed or been approved for a different amount.
G112: Year: | H112: 2016 (Test Year)
A114: Line No.
C115: Particulars | E115: Capitalization Ratio | K115: Cost Rate | O115: Return
E117: (%) | K117: (%)
C118: Debt
A119: 1 | C119: Long-term Debt | E119: 0.56 | I119: =E119*I128 -> 466546818.1 | K119: ='App.2-OB_Debt Instruments'!I111 -> 0.03528285081 | O119: =K119*I119 -> 16461101.78
A120: 2 | C120: Short-term Debt | E120: 0.04 | G120: (1) | I120: =E120*I128 -> 33324772.72 | K120: 0.0216 | O120: =K120*I120 -> 719815.0908
A121: 3 | C121: Total Debt | E121: =SUM(E119:E120) -> 0.6 | I121: =SUM(I119:I120) -> 499871590.8 | K121: =IF(E121=0,0,SUMPRODUCT(E119:E120,K119:K120)/E121) -> 0.03437066075 | O121: =SUM(O119:O120) -> 17180916.87
C123: Equity
A124: 4 | C124: Common Equity | E124: 0.4 | I124: =E124*I128 -> 333247727.2 | K124: 0.0919 | O124: =K124*I124 -> 30625466.13
A125: 5 | C125: Preferred Shares | I125: =$I$31*E125 -> 0 | O125: =K125*I125 -> 0
A126: 6 | C126: Total Equity | E126: =SUM(E124:E125) -> 0.4 | I126: =SUM(I124:I125) -> 333247727.2 | K126: =IF(E126=0,0,SUMPRODUCT(E124:E125,K124:K125)/E126) -> 0.0919 | O126: =SUM(O124:O125) -> 30625466.13
A128: 7 | C128: Total | E128: =+E121+E126 -> 1 | I128: 833119318 | K128: =(K121*E121)+(K126*E126) -> 0.05738239645 | O128: =O121+O126 -> 47806383
A131: Notes
A132: (1) | C132: 4.0% unless an applicant has proposed or been approved for a different amount.
G136: Year: | H136: 2017 (Test Year)
A138: Line No.
C139: Particulars | E139: Capitalization Ratio | K139: Cost Rate | O139: Return
E141: (%) | K141: (%)
C142: Debt
A143: 1 | C143: Long-term Debt | E143: 0.56 | I143: =E143*I152 -> 487059449 | K143: ='App.2-OB_Debt Instruments'!I137 -> 0.03584881048 | O143: =K143*I143 -> 17460501.88
A144: 2 | C144: Short-term Debt | E144: 0.04 | G144: (1) | I144: =E144*I152 -> 34789960.64 | K144: 0.0216 | O144: =K144*I144 -> 751463.1498
A145: 3 | C145: Total Debt | E145: =SUM(E143:E144) -> 0.6 | I145: =SUM(I143:I144) -> 521849409.6 | K145: =IF(E145=0,0,SUMPRODUCT(E143:E144,K143:K144)/E145) -> 0.03489888978 | O145: =SUM(O143:O144) -> 18211965.03
C147: Equity
A148: 4 | C148: Common Equity | E148: 0.4 | I148: =E148*I152 -> 347899606.4 | K148: 0.0919 | O148: =K148*I148 -> 31971973.83
A149: 5 | C149: Preferred Shares | I149: =$I$31*E149 -> 0 | O149: =K149*I149 -> 0
A150: 6 | C150: Total Equity | E150: =SUM(E148:E149) -> 0.4 | I150: =SUM(I148:I149) -> 347899606.4 | K150: =IF(E150=0,0,SUMPRODUCT(E148:E149,K148:K149)/E150) -> 0.0919 | O150: =SUM(O148:O149) -> 31971973.83
A152: 7 | C152: Total | E152: =+E145+E150 -> 1 | I152: 869749016 | K152: =(K145*E145)+(K150*E150) -> 0.05769933387 | O152: =O145+O150 -> 50183938.86
A155: Notes
A156: (1) | C156: 4.0% unless an applicant has proposed or been approved for a different amount.
G160: Year: | H160: 2018 (Test Year)
A162: Line No.
C163: Particulars | E163: Capitalization Ratio | K163: Cost Rate | O163: Return
E165: (%) | K165: (%)
C166: Debt
A167: 1 | C167: Long-term Debt | E167: 0.56 | I167: =E167*I176 -> 511195528.5 | K167: ='App.2-OB_Debt Instruments'!I166 -> 0.0364891858 | O167: =K167*I167 -> 18653108.62
A168: 2 | C168: Short-term Debt | E168: 0.04 | G168: (1) | I168: =E168*I176 -> 36513966.32 | K168: 0.0216 | O168: =K168*I168 -> 788701.6725
A169: 3 | C169: Total Debt | E169: =SUM(E167:E168) -> 0.6 | I169: =SUM(I167:I168) -> 547709494.8 | K169: =IF(E169=0,0,SUMPRODUCT(E167:E168,K167:K168)/E169) -> 0.03549657341 | O169: =SUM(O167:O168) -> 19441810.29
C171: Equity
A172: 4 | C172: Common Equity | E172: 0.4 | I172: =E172*I176 -> 365139663.2 | K172: 0.0919 | O172: =K172*I172 -> 33556335.05
A173: 5 | C173: Preferred Shares | I173: =$I$31*E173 -> 0 | O173: =K173*I173 -> 0
A174: 6 | C174: Total Equity | E174: =SUM(E172:E173) -> 0.4 | I174: =SUM(I172:I173) -> 365139663.2 | K174: =IF(E174=0,0,SUMPRODUCT(E172:E173,K172:K173)/E174) -> 0.0919 | O174: =SUM(O172:O173) -> 33556335.05
A176: 7 | C176: Total | E176: =+E169+E174 -> 1 | I176: 912849158 | K176: =(K169*E169)+(K174*E174) -> 0.05805794405 | O176: =O169+O174 -> 52998145.34
A179: Notes
A180: (1) | C180: 4.0% unless an applicant has proposed or been approved for a different amount.
G184: Year: | H184: 2019 (Test Year)
A186: Line No.
C187: Particulars | E187: Capitalization Ratio | K187: Cost Rate | O187: Return
E189: (%) | K189: (%)
C190: Debt
A191: 1 | C191: Long-term Debt | E191: 0.56 | I191: =E191*I200 -> 524229507.2 | J191: 3 | K191: ='App.2-OB_Debt Instruments'!I195 -> 0.03694772394 | O191: =K191*I191 -> 19369087.11
A192: 2 | C192: Short-term Debt | E192: 0.04 | G192: (1) | I192: =E192*I200 -> 37444964.8 | K192: 0.0229 | O192: =K192*I192 -> 857489.6939
A193: 3 | C193: Total Debt | E193: =SUM(E191:E192) -> 0.6 | I193: =SUM(I191:I192) -> 561674472 | K193: =IF(E193=0,0,SUMPRODUCT(E191:E192,K191:K192)/E193) -> 0.03601120901 | O193: =SUM(O191:O192) -> 20226576.81
C195: Equity
A196: 4 | C196: Common Equity | E196: 0.4 | I196: =E196*I200 -> 374449648 | K196: 0.09 | O196: =K196*I196 -> 33700468.32
A197: 5 | C197: Preferred Shares | I197: =$I$31*E197 -> 0 | O197: =K197*I197 -> 0
A198: 6 | C198: Total Equity | E198: =SUM(E196:E197) -> 0.4 | I198: =SUM(I196:I197) -> 374449648 | K198: =IF(E198=0,0,SUMPRODUCT(E196:E197,K196:K197)/E198) -> 0.09 | O198: =SUM(O196:O197) -> 33700468.32
A200: 7 | C200: Total | E200: =+E193+E198 -> 1 | I200: 936124120 | K200: =(K193*E193)+(K198*E198) -> 0.05760672541 | O200: =O193+O198 -> 53927045.13
A203: Notes
A204: (1) | C204: 4.0% unless an applicant has proposed or been approved for a different amount.
G208: Year: | H208: 2020 (Test Year)
A210: Line No.
C211: Particulars | E211: Capitalization Ratio | K211: Cost Rate | O211: Return
E213: (%) | K213: (%)
C214: Debt
A215: 1 | C215: Long-term Debt | E215: 0.56 | I215: =E215*I224 -> 545328691.6 | K215: ='App.2-OB_Debt Instruments'!I231 -> 0.03692459335 | O215: =K215*I215 -> 20136040.18
A216: 2 | C216: Short-term Debt | E216: 0.04 | G216: (1) | I216: =E216*I224 -> 38952049.4 | K216: 0.0229 | O216: =K216*I216 -> 892001.9313
A217: 3 | C217: Total Debt | E217: =SUM(E215:E216) -> 0.6 | I217: =SUM(I215:I216) -> 584280741 | K217: =IF(E217=0,0,SUMPRODUCT(E215:E216,K215:K216)/E217) -> 0.03598962046 | O217: =SUM(O215:O216) -> 21028042.11
C219: Equity
A220: 4 | C220: Common Equity | E220: 0.4 | I220: =E220*I224 -> 389520494 | K220: 0.09 | O220: =K220*I220 -> 35056844.46
A221: 5 | C221: Preferred Shares | I221: =$I$31*E221 -> 0 | O221: =K221*I221 -> 0
A222: 6 | C222: Total Equity | E222: =SUM(E220:E221) -> 0.4 | I222: =SUM(I220:I221) -> 389520494 | K222: =IF(E222=0,0,SUMPRODUCT(E220:E221,K220:K221)/E222) -> 0.09 | O222: =SUM(O220:O221) -> 35056844.46
A224: 7 | C224: Total | E224: =+E217+E222 -> 1 | I224: 973801235 | K224: =(K217*E217)+(K222*E222) -> 0.05759377228 | O224: =O217+O222 -> 56084886.57
A227: Notes
A228: (1) | C228: 4.0% unless an applicant has proposed or been approved for a different amount.

Sheet App.2-OB_Debt Instruments
J1: File Number: | K1: EB-2018-0044
J2: Exhibit: | K2: Exhibit 5
J3: Tab: | K3: Tab 1
J4: Schedule: | K4: Appendix 2-OB
J5: Page:
J7: Date:
A10: Appendix 2-OB
A11: Debt Instruments
A13: This table must be completed for all required historical years, the bridge year and the test year.
D14: Year | E14: 2012
A16: Row | B16: Description | C16: Lender | D16: Affiliated or Third-Party Debt? | E16: Fixed or Variable-Rate? | F16: Start Date | G16: Term (years) | H16: Principal ($) | I16: Rate (%) (Note 2) | J16: Interest ($) (Note 1) | K16: Additional Comments, if any
A17: 1 | B17: Promissory Note | C17: Hydo Ottawa Holding Inc. | D17: Affiliated | E17: Fixed Rate | F17: 2005-07-01 | G17: 10 yrs | H17: 200000000 | I17: 0.0504 | J17: =H17*I17 -> 10080000
A18: 2 | B18: Promissory Note | C18: Hydo Ottawa Holding Inc. | D18: Affiliated | E18: Fixed Rate | F18: 2005-07-01 | G18: Deemed LT | H18: 32185000 | I18: 0.059 | J18: =H18*I18 -> 1898915
A19: 3 | B19: Promissory Note | C19: Hydo Ottawa Holding Inc. | D19: Affiliated | E19: Fixed Rate | F19: 2006-12-20 | G19: 30 years | H19: 50000000 | I19: 0.05218 | J19: 2609000
A20: 4 | B20: Grid Promissory Note | C20: Hydo Ottawa Holding Inc. | D20: Affiliated | E20: Fixed Rate | F20: 2009-12-21 | G20: Deemed LT | H20: 15000000 | I20: 0.0575 | J20: 862500
A21: 5 | B21: Grid Promissory Note | C21: Hydo Ottawa Holding Inc. | D21: Affiliated | E21: Fixed Rate | F21: 2010-04-30 | G21: Deemed LT | H21: 15000000 | I21: 0.0587 | J21: 880500
A22: 6 | B22: Grid Promissory Note | C22: Hydo Ottawa Holding Inc. | D22: Affiliated | E22: Fixed Rate | F22: 2011-07-05 | G22: Deemed LT | H22: 15000000 | I22: 0.0555 | J22: 832500
A24: Total | H24: =SUM(H17:H22) -> 327185000 | I24: =IF(H24=0,"",J24/H24) -> 0.05245782967 | J24: =SUM(J17:J22) -> 17163415
A26: Notes
A28: 1 | B28: If financing is in place only part of the year, calculate the pro-rated interest and input in the cell.
A29: 2 | B29: Input actual or deemed long-term debt rate in accordance with the guidelines in The Report of the Board on the Cost of Capital for Ontario's Regulated Utilities, issued December 11, 2009, or with any subsequent update issued by the Board.
A30: 3 | B30: Add more lines above row 12 if necessary.
D33: Year | E33: 2013
A35: Row | B35: Description | C35: Lender | D35: Affiliated or Third-Party Debt? | E35: Fixed or Variable-Rate? | F35: Start Date | G35: Term (years) | H35: Principal ($) | I35: Rate (%) (Note 2) | J35: Interest ($) (Note 1) | K35: Additional Comments, if any
A36: 1 | B36: Promissory Note | C36: Hydo Ottawa Holding Inc. | D36: Affiliated | E36: Fixed Rate | F36: 2005-07-01 | G36: 10 years | H36: =200000000 -> 200000000 | I36: 0.0504 | J36: =H36*I36 -> 10080000
A37: 2 | B37: Promissory Note | C37: Hydo Ottawa Holding Inc. | D37: Affiliated | E37: Fixed Rate | F37: 2006-12-20 | G37: 30 years | H37: =50000000*133/365 -> 18219178.08 | I37: 0.05218 | J37: =H37*I37 -> 950676.7123 | K37: $50M Note - rate change May 14, 2015
A38: 3 | B38: Promissory Note | C38: Hydo Ottawa Holding Inc. | D38: Affiliated | E38: Fixed Rate | F38: 2006-12-20 | G38: 30 years | H38: =50000000*232/365 -> 31780821.92 | I38: 0.04968 | J38: 1578871.233
A39: 4 | B39: Promissory Note | C39: Hydo Ottawa Holding Inc. | D39: Affiliated | E39: Fixed Rate | F39: 2005-07-01 | G39: Deemed LT | H39: =32185000*133/365 -> 11727684.93 | I39: 0.059 | J39: 691933.411 | K39: The cumulative deemed debt ($77.185M o/s end of 2012 and $30M issued on Feb 1, 2013) was converted into a single promissory note of $107.185M to reflect the actual HOHI bond issuance on May 14, 2015.
A40: 5 | B40: Grid Promissory Note | C40: Hydo Ottawa Holding Inc. | D40: Affiliated | E40: Fixed Rate | F40: 2009-12-21 | G40: Deemed LT | H40: =15000000*133/365 -> 5465753.425 | I40: 0.0575 | J40: 314280.8219
A41: 6 | B41: Grid Promissory Note | C41: Hydo Ottawa Holding Inc. | D41: Affiliated | E41: Fixed Rate | F41: 2010-04-30 | G41: Deemed LT | H41: =15000000*133/365 -> 5465753.425 | I41: 0.0587 | J41: 320839.726
A42: 7 | B42: Grid Promissory Note | C42: Hydo Ottawa Holding Inc. | D42: Affiliated | E42: Fixed Rate | F42: 2011-07-05 | G42: Deemed LT | H42: =15000000*133/365 -> 5465753.425 | I42: 0.0555 | J42: 303349.3151
A43: 8 | B43: Grid Promissory Note | C43: Hydo Ottawa Holding Inc. | D43: Affiliated | E43: Fixed Rate | F43: 2013-02-01 | G43: Deemed LT | H43: =30000000*102/365 -> 8383561.644 | I43: 0.0422 | J43: 353786.3014
A44: 9 | B44: Promissory Note | C44: Hydo Ottawa Holding Inc. | D44: Affiliated | E44: Fixed Rate | F44: 2013-05-14 | G44: 30 years | H44: =107185000*232/365 -> 68128547.95 | I44: 0.04144 | J44: =H44*I44 -> 2823247.027
A45: 10 | B45: Grid Promissory Note | C45: Hydo Ottawa Holding Inc. | D45: Affiliated | E45: Fixed Rate | F45: 2013-12-10 | G45: Deemed LT | H45: =30000000*22/365 -> 1808219.178 | I45: 0.0494 | J45: 89326.0274 | K45: $30M deemed debt - effective 22 days
A47: Total | H47: =SUM(H36:H45) -> 356445274 | I47: =IF(H47=0,"",J47/H47) -> 0.04911359991 | J47: =SUM(J36:J45) -> 17506310.57
A49: Notes
A51: 1 | B51: If financing is in place only part of the year, calculate the pro-rated interest and input in the cell.
A52: 2 | B52: Input actual or deemed long-term debt rate in accordance with the guidelines in The Report of the Board on the Cost of Capital for Ontario's Regulated Utilities, issued December 11, 2009, or with any subsequent update issued by the Board.
A53: 3 | B53: Add more lines above row 12 if necessary.
D56: Year | E56: 2014
A58: Row | B58: Description | C58: Lender | D58: Affiliated or Third-Party Debt? | E58: Fixed or Variable-Rate? | F58: Start Date | G58: Term (years) | H58: Principal ($) | I58: Rate (%) (Note 2) | J58: Interest ($) (Note 1) | K58: Additional Comments, if any
A59: 1 | B59: Promissory Note | C59: Hydo Ottawa Holding Inc. | D59: Affiliated | E59: Fixed Rate | F59: 2005-07-01 | G59: 10 years | H59: 200000000 | I59: 0.0504 | J59: =H59*I59 -> 10080000
A60: 2 | B60: Promissory Note | C60: Hydo Ottawa Holding Inc. | D60: Affiliated | E60: Fixed Rate | F60: 2006-12-20 | G60: 30 years | H60: 50000000 | I60: 0.04968 | J60: =H60*I60 -> 2484000
A61: 3 | B61: Promissory Note | C61: Hydo Ottawa Holding Inc. | D61: Affiliated | E61: Fixed Rate | F61: 2013-05-14 | G61: 30 years | H61: 107185000 | I61: 0.04144 | J61: 4441746.4
A62: 4 | B62: Grid Promissory Note | C62: Hydo Ottawa Holding Inc. | D62: Affiliated | E62: Fixed Rate | F62: 2013-12-10 | G62: Deemed LT | H62: 30000000 | I62: 0.0494 | J62: 1482000
A63: 5 | B63: Grid Promissory Note | C63: Hydo Ottawa Holding Inc. | D63: Affiliated | E63: Fixed Rate | F63: 2014-10-28 | G63: Deemed LT | H63: =30000000*65/365 -> 5342465.753 | I63: 0.0477 | J63: 254835.6164 | K63: $30M deemed debt - effective 65 days
A65: Total | H65: =SUM(H59:H63) -> 392527465.8 | I65: =IF(H65=0,"",J65/H65) -> 0.04774846005 | J65: =SUM(J59:J63) -> 18742582.02
A67: Notes
A68: 1 | B68: If financing is in place only part of the year, calculate the pro-rated interest and input in the cell.
A69: 2 | B69: Input actual or deemed long-term debt rate in accordance with the guidelines in The Report of the Board on the Cost of Capital for Ontario's Regulated Utilities, issued December 11, 2009, or with any subsequent update issued by the Board.
A70: 3 | B70: Add more lines above row 12 if necessary.
D73: Year | E73: 2015
A75: Row | B75: Description | C75: Lender | D75: Affiliated or Third-Party Debt? | E75: Fixed or Variable-Rate? | F75: Start Date | G75: Term (years) | H75: Principal ($) | I75: Rate (%) (Note 2) | J75: Interest ($) (Note 1) | K75: Additional Comments, if any
A76: 1 | B76: Promissory Note | C76: Hydo Ottawa Holding Inc. | D76: Affiliated | E76: Fixed Rate | F76: 2006-12-20 | G76: 30 years | H76: 50000000 | I76: 0.04968 | J76: =H76*I76 -> 2484000 | K76: $50M actual debt
A77: 2 | B77: Promissory Note | C77: Hydo Ottawa Holding Inc. | D77: Affiliated | E77: Fixed Rate | F77: 2013-05-14 | G77: 30 years | H77: 107185000 | I77: 0.04144 | J77: =H77*I77 -> 4441746.4 | K77: $107.185M actual debt
A78: 3 | B78: Promissory Note | C78: Hydo Ottawa Holding Inc. | D78: Affiliated | E78: Fixed Rate | F78: 2005-07-01 | G78: 10 years | H78: =200000000*39/365 -> 21369863.01 | I78: 0.0504 | J78: =H78*I78 -> 1077041.096 | K78: The Feb 9.,2015 $200M maturity plus the cumulative deemed debt of $60M then outstanding ($260M total) were converted into two promissory notes of $138.7m and $121.3m on Feb 9, 2015 to reflect the actual HOHI bond issuance on a prorata basis for the two terms.
A79: 4 | B79: Promissory Note | C79: Hydo Ottawa Holding Inc. | D79: Affiliated | E79: Fixed Rate | F79: 2013-12-10 | G79: Deemed LT | H79: =30000000*39/365 -> 3205479.452 | I79: 0.0494 | J79: =H79*I79 -> 158350.6849
A80: 5 | B80: Promissory Note | C80: Hydo Ottawa Holding Inc. | D80: Affiliated | E80: Fixed Rate | F80: 2014-10-28 | G80: Deemed LT | H80: =30000000*39/365 -> 3205479.452 | I80: 0.0477 | J80: 152901.3699
A81: 6 | B81: Promissory Note | C81: Hydo Ottawa Holding Inc. | D81: Affiliated | E81: Fixed Rate | F81: 2015-02-09 | G81: 10 years | H81: =138667000*326/365 -> 123850526 | I81: 0.02724 | J81: 3373688.329
A82: 7 | B82: Promissory Note | C82: Hydo Ottawa Holding Inc. | D82: Affiliated | E82: Fixed Rate | F82: 2015-02-09 | G82: 30 years | H82: =121333000*326/365 -> 108368652.1 | I82: 0.03769 | J82: 4084414.496
A83: 8 | B83: Promissory Note | C83: Hydo Ottawa Holding Inc. | D83: Affiliated | E83: Fixed Rate | F83: 2015-06-25 | G83: 10 years | H83: =(30000000*0.5333)*(189/365) -> 8284413.699 | I83: 0.02724 | J83: =H83*I83 -> 225667.4292 | K83: $30M actual debt on a prorata basis for the two terms - effective 189 days
A84: 9 | B84: Promissory Note | C84: Hydo Ottawa Holding Inc. | D84: Affiliated | E84: Fixed Rate | F84: 2015-06-25 | G84: 30 years | H84: =(30000000*0.4667)*(189/365) -> 7249832.877 | I84: 0.03769 | J84: 273246.2011
A85: 10 | B85: Promissory Note | C85: Hydo Ottawa Holding Inc. | D85: Affiliated | E85: Fixed Rate | F85: 2015-11-30 | G85: 10 years | H85: =(25000000*0.5333)*(31/365) -> 1132349.315 | I85: 0.02724 | J85: 30845.19534 | K85: $25M actual debton a prorata basis for the two terms - effective 31 days
A86: 11 | B86: Promissory Note | C86: Hydo Ottawa Holding Inc. | D86: Affiliated | E86: Fixed Rate | F86: 2015-11-30 | G86: 30 years | H86: =(25000000*0.4667)*(31/365) -> 990938.3562 | I86: 0.03769 | J86: 37348.46664
A88: Total | H88: =SUM(H76:H86) -> 434842534.2 | I88: =IF(H88=0,"",J88/H88) -> 0.03757509531 | J88: =SUM(J76:J86) -> 16339249.67
A90: Notes
A92: 1 | B92: If financing is in place only part of the year, calculate the pro-rated interest and input in the cell.
A93: 2 | B93: Input actual or deemed long-term debt rate in accordance with the guidelines in The Report of the Board on the Cost of Capital for Ontario's Regulated Utilities, issued December 11, 2009, or with any subsequent update issued by the Board.
A94: 3 | B94: Add more lines above row 12 if necessary.
D97: Year | E97: 2015 | F97: 2016
A99: Row | B99: Description | C99: Lender | D99: Affiliated or Third-Party Debt? | E99: Fixed or Variable-Rate? | F99: Start Date | G99: Term (years) | H99: Principal ($) | I99: Rate (%) (Note 2) | J99: Interest ($) (Note 1) | K99: Additional Comments, if any
A100: 1 | B100: Promissory Note | C100: Hydo Ottawa Holding Inc. | D100: Affiliated | E100: Fixed Rate | F100: 2006-12-20 | G100: 30 years | H100: 50000000 | I100: 0.0412 | J100: =H100*I100 -> 2060000 | K100: $50M actual debt
A101: 2 | B101: Promissory Note | C101: Hydo Ottawa Holding Inc. | D101: Affiliated | E101: Fixed Rate | F101: 2013-05-14 | G101: 30 years | H101: 107185000 | I101: 0.04144 | J101: =H101*I101 -> 4441746.4 | K101: $107.185M actual debt
A102: 3 | B102: Promissory Note | C102: Hydo Ottawa Holding Inc. | D102: Affiliated | E102: Fixed Rate | F102: 2015-02-09 | G102: 10 years | H102: =138667000 -> 138667000 | I102: 0.02724 | J102: =H102*I102 -> 3777289.08 | K102: $260M actual debt
A103: 4 | B103: Promissory Note | C103: Hydo Ottawa Holding Inc. | D103: Affiliated | E103: Fixed Rate | F103: 2015-02-09 | G103: 30 years | H103: =121333000 -> 121333000 | I103: 0.03769 | J103: =H103*I103 -> 4573040.77
A104: 5 | B104: Promissory Note | C104: Hydo Ottawa Holding Inc. | D104: Affiliated | E104: Fixed Rate | F104: =+F83 -> 2015-06-25 | G104: 10 years | H104: =30000000*0.5333 -> 15999000 | I104: 0.02724 | J104: =H104*I104 -> 435812.76 | K104: $55M actual debt
A105: 6 | B105: Promissory Note | C105: Hydo Ottawa Holding Inc. | D105: Affiliated | E105: Fixed Rate | F105: =+F84 -> 2015-06-25 | G105: 30 years | H105: =30000000*0.4667 -> 14001000 | I105: 0.03769 | J105: 527697.69
A106: 7 | B106: Promissory Note | C106: Hydo Ottawa Holding Inc. | D106: Affiliated | E106: Fixed Rate | F106: 2015-11-30 | G106: 10 years | H106: =25000000*0.5333 -> 13332500 | I106: 0.02724 | J106: 363177.3
A107: 8 | B107: Promissory Note | C107: Hydo Ottawa Holding Inc. | D107: Affiliated | E107: Fixed Rate | F107: 2015-11-30 | G107: 30 years | H107: =25000000*0.4667 -> 11667500 | I107: 0.03769 | J107: 439748.075
A108: 9 | B108: Grid Promissory Note | C108: Hydo Ottawa Holding Inc. | D108: Affiliated | E108: Fixed Rate | F108: 2016-07-01 | G108: 10 years | H108: =65000000*(184/365)*(35/100) -> 11468493.15 | I108: 0.0307 | J108: =H108*I108 -> 352082.7397 | K108: $65M deemed rate per cost of capital report calculation - effective 184 days
A109: 10 | B109: Grid Promissory Note | C109: Hydo Ottawa Holding Inc. | D109: Affiliated | E109: Fixed Rate | F109: 2016-07-01 | G109: 30 years | H109: =65000000*(184/365)*(65/100) -> 21298630.14 | I109: 0.0397 | J109: 845555.6164 | K109: $65M deemed rate per cost of capital report calculation - effective 184 days
A111: Total | H111: =SUM(H100:H109) -> 504952123.3 | I111: =IF(H111=0,"",J111/H111) -> 0.03528285081 | J111: =SUM(J100:J109) -> 17816150.43
A113: Notes
A115: 1 | B115: If financing is in place only part of the year, calculate the pro-rated interest and input in the cell.
A116: 2 | B116: Input actual or deemed long-term debt rate in accordance with the guidelines in The Report of the Board on the Cost of Capital for Ontario's Regulated Utilities, issued December 11, 2009, or with any subsequent update issued by the Board.
A117: 3 | B117: Add more lines above row 12 if necessary.
D121: Year | E121: 2015 | F121: 2017
A123: Row | B123: Description | C123: Lender | D123: Affiliated or Third-Party Debt? | E123: Fixed or Variable-Rate? | F123: Start Date | G123: Term (years) | H123: Principal ($) | I123: Rate (%) (Note 2) | J123: Interest ($) (Note 1) | K123: Additional Comments, if any
A124: 1 | B124: Promissory Note | C124: Hydo Ottawa Holding Inc. | D124: Affiliated | E124: Fixed Rate | F124: 2006-12-20 | G124: 30 years | H124: 50000000 | I124: 0.0412 | J124: =H124*I124 -> 2060000 | K124: $50M actual debt
A125: 2 | B125: Promissory Note | C125: Hydo Ottawa Holding Inc. | D125: Affiliated | E125: Fixed Rate | F125: 2013-05-14 | G125: 30 years | H125: 107185000 | I125: 0.04144 | J125: =H125*I125 -> 4441746.4 | K125: $107.185M actual debt
A126: 3 | B126: Promissory Note | C126: Hydo Ottawa Holding Inc. | D126: Affiliated | E126: Fixed Rate | F126: 2015-02-09 | G126: 10 years | H126: =138667000 -> 138667000 | I126: 0.02724 | J126: =H126*I126 -> 3777289.08 | K126: $260M actual debt
A127: 4 | B127: Promissory Note | C127: Hydo Ottawa Holding Inc. | D127: Affiliated | E127: Fixed Rate | F127: 2015-02-09 | G127: 30 years | H127: =121333000 -> 121333000 | I127: 0.03769 | J127: =H127*I127 -> 4573040.77
A128: 5 | B128: Promissory Note | C128: Hydo Ottawa Holding Inc. | D128: Affiliated | E128: Fixed Rate | F128: =+F104 -> 2015-06-25 | G128: 10 years | H128: =+H104 -> 15999000 | I128: 0.02724 | J128: =H128*I128 -> 435812.76 | K128: $55M actual dedt
A129: 6 | B129: Promissory Note | C129: Hydo Ottawa Holding Inc. | D129: Affiliated | E129: Fixed Rate | F129: =+F105 -> 2015-06-25 | G129: 30 years | H129: =+H105 -> 14001000 | I129: 0.03769 | J129: 527697.69
A130: 7 | B130: Promissory Note | C130: Hydo Ottawa Holding Inc. | D130: Affiliated | E130: Fixed Rate | F130: 2015-11-30 | G130: 10 years | H130: =+H106 -> 13332500 | I130: 0.02724 | J130: 363177.3
A131: 8 | B131: Promissory Note | C131: Hydo Ottawa Holding Inc. | D131: Affiliated | E131: Fixed Rate | F131: 2015-11-30 | G131: 30 years | H131: =+H107 -> 11667500 | I131: 0.03769 | J131: 439748.075
A132: 9 | B132: Grid Promissory Note | C132: Hydo Ottawa Holding Inc. | D132: Affiliated | E132: Fixed Rate | F132: 2016-07-01 | G132: 10 years | H132: =65000000*(35/100) -> 22750000 | I132: 0.0307 | J132: 698425 | K132: $65M deemed rate per cost of capital report calculation
A133: 10 | B133: Grid Promissory Note | C133: Hydro Ottawa Holding Inc. | D133: Affiliated | E133: Fixed Rate | F133: 2016-07-01 | G133: 30 years | H133: =65000000*(65/100) -> 42250000 | I133: 0.0397 | J133: 1677325 | K133: $65M deemed rate per cost of capital report calculation
A134: 11 | B134: Grid Promissory Note | C134: Hydo Ottawa Holding Inc. | D134: Affiliated | E134: Fixed Rate | F134: 2017-07-01 | G134: 10 years | H134: =60000000*(184/365)*(35/100) -> 10586301.37 | I134: 0.0387 | J134: 409689.863 | K134: $60M deemed rate per cost of capital report calculation -effective 184 days
A135: 12 | B135: Grid Promissory Note | C135: Hydo Ottawa Holding Inc. | D135: Affiliated | E135: Fixed Rate | F135: 2017-07-01 | G135: 30 years | H135: =60000000*(184/365)*(65/100) -> 19660273.97 | I135: 0.0477 | J135: =H135*I135 -> 937795.0685 | K135: $60M deemed rate per cost of capital report calculation -effective 184 days
A137: Total | H137: =SUM(H124:H135) -> 567431575.3 | I137: =IF(H137=0,"",J137/H137) -> 0.03584881048 | J137: =SUM(J124:J135) -> 20341747.01
A139: Notes
A141: 1 | B141: If financing is in place only part of the year, calculate the pro-rated interest and input in the cell.
A142: 2 | B142: Input actual or deemed long-term debt rate in accordance with the guidelines in The Report of the Board on the Cost of Capital for Ontario's Regulated Utilities, issued December 11, 2009, or with any subsequent update issued by the Board.
A143: 3 | B143: Add more lines above row 12 if necessary.
D147: Year | E147: 2015 | F147: 2018
A149: Row | B149: Description | C149: Lender | D149: Affiliated or Third-Party Debt? | E149: Fixed or Variable-Rate? | F149: Start Date | G149: Term (years) | H149: Principal ($) | I149: Rate (%) (Note 2) | J149: Interest ($) (Note 1) | K149: Additional Comments, if any
A150: 1 | B150: Promissory Note | C150: Hydo Ottawa Holding Inc. | D150: Affiliated | E150: Fixed Rate | F150: 2006-12-20 | G150: 30 years | H150: 50000000 | I150: 0.0412 | J150: =H150*I150 -> 2060000 | K150: $50M actual debt
A151: 2 | B151: Promissory Note | C151: Hydo Ottawa Holding Inc. | D151: Affiliated | E151: Fixed Rate | F151: 2013-05-14 | G151: 30 years | H151: =107185000*133/365 -> 39056452.05 | I151: 0.04144 | J151: =H151*I151 -> 1618499.373 | K151: $107.185M Note - Rate changed during the year (issuance cost fully amortized)
A152: 3 | B152: Promissory Note | C152: Hydo Ottawa Holding Inc. | D152: Affiliated | E152: Fixed Rate | F152: 2013-05-14 | G152: 30 years | H152: =107185000*232/365 -> 68128547.95 | I152: 0.03991 | J152: =H152*I152 -> 2719010.348
A153: 4 | B153: Promissory Note | C153: Hydo Ottawa Holding Inc. | D153: Affiliated | E153: Fixed Rate | F153: 2015-02-09 | G153: 10 years | H153: =138667000 -> 138667000 | I153: 0.02724 | J153: =H153*I153 -> 3777289.08 | K153: $260M actual debt
A154: 5 | B154: Promissory Note | C154: Hydo Ottawa Holding Inc. | D154: Affiliated | E154: Fixed Rate | F154: 2015-02-09 | G154: 30 years | H154: =121333000 -> 121333000 | I154: 0.03769 | J154: =H154*I154 -> 4573040.77
A155: 6 | B155: Promissory Note | C155: Hydo Ottawa Holding Inc. | D155: Affiliated | E155: Fixed Rate | F155: =+F128 -> 2015-06-25 | G155: 10 years | H155: =+H128 -> 15999000 | I155: 0.02724 | J155: =H155*I155 -> 435812.76 | K155: $55M actual dedt
A156: 7 | B156: Promissory Note | C156: Hydo Ottawa Holding Inc. | D156: Affiliated | E156: Fixed Rate | F156: =+F129 -> 2015-06-25 | G156: 30 years | H156: =+H129 -> 14001000 | I156: 0.03769 | J156: 527697.69
A157: 8 | B157: Promissory Note | C157: Hydo Ottawa Holding Inc. | D157: Affiliated | E157: Fixed Rate | F157: 2015-11-30 | G157: 10 years | H157: =+H130 -> 13332500 | I157: 0.02724 | J157: 363177.3
A158: 9 | B158: Promissory Note | C158: Hydo Ottawa Holding Inc. | D158: Affiliated | E158: Fixed Rate | F158: 2015-11-30 | G158: 30 years | H158: =+H131 -> 11667500 | I158: 0.03769 | J158: 439748.075
A159: 10 | B159: Grid Promissory Note | C159: Hydo Ottawa Holding Inc. | D159: Affiliated | E159: Fixed Rate | F159: 2016-07-01 | G159: 10 years | H159: =65000000*(35/100) -> 22750000 | I159: 0.0307 | J159: 698425 | K159: $65M deemed rate per cost of capital report calculation
A160: 11 | B160: Grid Promissory Note | C160: Hydo Ottawa Holding Inc. | D160: Affiliated | E160: Fixed Rate | F160: 2016-07-01 | G160: 30 years | H160: =65000000*(65/100) -> 42250000 | I160: 0.0397 | J160: 1677325 | K160: $65M deemed rate per cost of capital report calculation
A161: 12 | B161: Grid Promissory Note | C161: Hydo Ottawa Holding Inc. | D161: Affiliated | E161: Fixed Rate | F161: 2017-07-01 | G161: 10 years | H161: =60000000*(35/100) -> 21000000 | I161: 0.0387 | J161: 812700 | K161: $60M deemed rate per cost of capital report calculation
A162: 13 | B162: Grid Promissory Note | C162: Hydo Ottawa Holding Inc. | D162: Affiliated | E162: Fixed Rate | F162: 2017-07-01 | G162: 30 years | H162: =60000000*(65/100) -> 39000000 | I162: 0.0477 | J162: 1860300 | K162: $60M deemed rate per cost of capital report calculation
A163: 14 | B163: Grid Promissory Note | C163: Hydo Ottawa Holding Inc. | D163: Affiliated | E163: Fixed Rate | F163: 2018-07-01 | G163: 10 years | H163: =30000000*(184/365)*(35/100) -> 5293150.685 | I163: 0.0457 | J163: 241896.9863 | K163: $30M deemed rate per the cost of cpaital report calculation - effective 184 days
A164: 15 | B164: Grid Promissory Note | C164: Hydo Ottawa Holding Inc. | D164: Affiliated | E164: Fixed Rate | F164: 2018-07-01 | G164: 30 years | H164: =30000000*(184/365)*(65/100) -> 9830136.986 | I164: 0.0547 | J164: =H164*I164 -> 537708.4932 | K164: $30M deemed rate per the cost of cpaital report calculation - effective 184 days
A166: Total | H166: =SUM(H150:H164) -> 612308287.7 | I166: =IF(H166=0,"",J166/H166) -> 0.0364891858 | J166: =SUM(J150:J164) -> 22342630.88
A168: Notes
A170: 1 | B170: If financing is in place only part of the year, calculate the pro-rated interest and input in the cell.
A171: 2 | B171: Input actual or deemed long-term debt rate in accordance with the guidelines in The Report of the Board on the Cost of Capital for Ontario's Regulated Utilities, issued December 11, 2009, or with any subsequent update issued by the Board.
A172: 3 | B172: Add more lines above row 12 if necessary.
D175: Year | E175: 2015 | F175: 2019
A177: Row | B177: Description | C177: Lender | D177: Affiliated or Third-Party Debt? | E177: Fixed or Variable-Rate? | F177: Start Date | G177: Term (years) | H177: Principal ($) | I177: Rate (%) (Note 2) | J177: Interest ($) (Note 1) | K177: Additional Comments, if any
A178: 1 | B178: Promissory Note | C178: Hydo Ottawa Holding Inc. | D178: Affiliated | E178: Fixed Rate | F178: 2006-12-20 | G178: 30 years | H178: 50000000 | I178: 0.0412 | J178: =H178*I178 -> 2060000 | K178: $50M actual debt
A179: 2 | B179: Promissory Note | C179: Hydo Ottawa Holding Inc. | D179: Affiliated | E179: Fixed Rate | F179: 2013-05-14 | G179: 30 years | H179: =107185000 -> 107185000 | I179: 0.03991 | J179: =H179*I179 -> 4277753.35 | K179: $107.185M actual debt
A180: 3 | B180: Promissory Note | C180: Hydo Ottawa Holding Inc. | D180: Affiliated | E180: Fixed Rate | F180: 2015-02-09 | G180: 10 years | H180: =138667000 -> 138667000 | I180: 0.02724 | J180: =H180*I180 -> 3777289.08 | K180: $260M actual debt
A181: 4 | B181: Promissory Note | C181: Hydo Ottawa Holding Inc. | D181: Affiliated | E181: Fixed Rate | F181: 2015-02-09 | G181: 30 years | H181: =121333000 -> 121333000 | I181: 0.03769 | J181: =H181*I181 -> 4573040.77
A182: 5 | B182: Promissory Note | C182: Hydo Ottawa Holding Inc. | D182: Affiliated | E182: Fixed Rate | F182: =+F155 -> 2015-06-25 | G182: 10 years | H182: =+H155 -> 15999000 | I182: 0.02724 | J182: =H182*I182 -> 435812.76 | K182: $55M actual dedt
A183: 6 | B183: Promissory Note | C183: Hydo Ottawa Holding Inc. | D183: Affiliated | E183: Fixed Rate | F183: =+F156 -> 2015-06-25 | G183: 30 years | H183: =+H156 -> 14001000 | I183: 0.03769 | J183: 527697.69
A184: 7 | B184: Promissory Note | C184: Hydo Ottawa Holding Inc. | D184: Affiliated | E184: Fixed Rate | F184: 2015-11-30 | G184: 10 years | H184: =+H157 -> 13332500 | I184: 0.02724 | J184: 363177.3
A185: 8 | B185: Promissory Note | C185: Hydo Ottawa Holding Inc. | D185: Affiliated | E185: Fixed Rate | F185: 2015-11-30 | G185: 30 years | H185: =+H158 -> 11667500 | I185: 0.03769 | J185: 439748.075
A186: 9 | B186: Grid Promissory Note | C186: Hydo Ottawa Holding Inc. | D186: Affiliated | E186: Fixed Rate | F186: 2016-07-01 | G186: 10 years | H186: =65000000*(35/100) -> 22750000 | I186: 0.0307 | J186: 698425 | K186: $65M deemed rate per cost of capital report calculation
A187: 10 | B187: Grid Promissory Note | C187: Hydo Ottawa Holding Inc. | D187: Affiliated | E187: Fixed Rate | F187: 2016-07-01 | G187: 30 years | H187: =65000000*(65/100) -> 42250000 | I187: 0.0397 | J187: 1677325 | K187: $65M deemed rate per cost of capital report calculation
A188: 11 | B188: Grid Promissory Note | C188: Hydo Ottawa Holding Inc. | D188: Affiliated | E188: Fixed Rate | F188: 2017-07-01 | G188: 10 years | H188: =60000000*(35/100) -> 21000000 | I188: 0.0387 | J188: 812700 | K188: $60M deemed rate per cost of capital report calculation
A189: 12 | B189: Grid Promissory Note | C189: Hydo Ottawa Holding Inc. | D189: Affiliated | E189: Fixed Rate | F189: 2017-07-01 | G189: 30 years | H189: =60000000*(65/100) -> 39000000 | I189: 0.0477 | J189: 1860300 | K189: $60M deemed rate per cost of capital report calculation
A190: 13 | B190: Grid Promissory Note | C190: Hydo Ottawa Holding Inc. | D190: Affiliated | E190: Fixed Rate | F190: 2018-07-01 | G190: 10 years | H190: =30000000*(35/100) -> 10500000 | I190: 0.0457 | J190: 479850 | K190: $30M deemed rate per the cost of cpaital report calculation
A191: 14 | B191: Grid Promissory Note | C191: Hydo Ottawa Holding Inc. | D191: Affiliated | E191: Fixed Rate | F191: 2018-07-01 | G191: 30 years | H191: =30000000*(65/100) -> 19500000 | I191: 0.0547 | J191: 1066650 | K191: $30M deemed rate per the cost of cpaital report calculation
A192: 15 | B192: Grid Promissory Note | C192: Hydo Ottawa Holding Inc. | D192: Affiliated | E192: Fixed Rate | F192: 2019-07-01 | G192: 10 years | H192: =30000000*(184/365)*(35/100) -> 5293150.685 | I192: 0.0386 | J192: 204315.6164 | K192: $30M deemed rate per the cost of capital report calculation - Effective 184 days
A193: 16 | B193: Grid Promissory Note | C193: Hydo Ottawa Holding Inc. | D193: Affiliated | E193: Fixed Rate | F193: 2019-07-01 | G193: 30 years | H193: =30000000*(184/365)*(65/100) -> 9830136.986 | I193: 0.0486 | J193: =H193*I193 -> 477744.6575 | K193: $30M deemed rate per the cost of capital report calculation - Effective 184 days
A195: Total | H195: =SUM(H178:H193) -> 642308287.7 | I195: =IF(H195=0,"",J195/H195) -> 0.03694772394 | J195: =SUM(J178:J193) -> 23731829.3
A197: Notes
A199: 1 | B199: If financing is in place only part of the year, calculate the pro-rated interest and input in the cell.
A200: 2 | B200: Input actual or deemed long-term debt rate in accordance with the guidelines in The Report of the Board on the Cost of Capital for Ontario's Regulated Utilities, issued December 11, 2009, or with any subsequent update issued by the Board.
A201: 3 | B201: Add more lines above row 12 if necessary.
D205: Year | E205: 2015 | F205: 2020
A207: Row | B207: Description | C207: Lender | D207: Affiliated or Third-Party Debt? | E207: Fixed or Variable-Rate? | F207: Start Date | G207: Term (years) | H207: Principal ($) | I207: Rate (%) (Note 2) | J207: Interest ($) (Note 1) | K207: Additional Comments, if any
A208: 1 | B208: Promissory Note | C208: Hydo Ottawa Holding Inc. | D208: Affiliated | E208: Fixed Rate | F208: 2006-12-20 | G208: 30 years | H208: 50000000 | I208: 0.0412 | J208: =H208*I208 -> 2060000 | K208: $50M actual debt
A209: 2 | B209: Promissory Note | C209: Hydo Ottawa Holding Inc. | D209: Affiliated | E209: Fixed Rate | F209: 2013-05-14 | G209: 30 years | H209: =107185000 -> 107185000 | I209: 0.03991 | J209: 4277753.35 | K209: $107.185M actual debt
A210: 3 | B210: Promissory Note | C210: Hydo Ottawa Holding Inc. | D210: Affiliated | E210: Fixed Rate | F210: 2015-02-09 | G210: 10 years | H210: =138667000*39/365 -> 14816473.97 | I210: 0.02724 | J210: 403600.751 | K210: $138.667M Note - Rate changed during the year (issuance cost fully amortized)
A211: 4 | B211: Promissory Note | C211: Hydo Ottawa Holding Inc. | D211: Affiliated | E211: Fixed Rate | F211: 2020-02-09 | G211: 10 years | H211: =138667000*326/365 -> 123850526 | I211: 0.02614 | J211: 3237452.75
A212: 5 | B212: Promissory Note | C212: Hydo Ottawa Holding Inc. | D212: Affiliated | E212: Fixed Rate | F212: 2015-02-09 | G212: 30 years | H212: =121333000*39/365 -> 12964347.95 | I212: 0.03769 | J212: 488626.2741 | K212: $121.333M Note - Rate changed during the year (issuance cost fully amortized)
A213: 6 | B213: Promissory Note | C213: Hydo Ottawa Holding Inc. | D213: Affiliated | E213: Fixed Rate | F213: 2020-02-09 | G213: 30 years | H213: =121333000*326/365 -> 108368652.1 | I213: 0.03639 | J213: 3943535.248
A214: 7 | B214: Promissory Note | C214: Hydo Ottawa Holding Inc. | D214: Affiliated | E214: Fixed Rate | F214: =+F182 -> 2015-06-25 | G214: 10 years | H214: =30000000*0.5333*39/365 -> 1709482.192 | I214: 0.02724 | J214: =H214*I214 -> 46566.2949 | K214: $29.33M Note - Rate changed during the year (issuance cost fully amortized)
A215: 8 | B215: Promissory Note | C215: Hydo Ottawa Holding Inc. | D215: Affiliated | E215: Fixed Rate | F215: 2015-11-30 | G215: 10 years | H215: =25000000*0.5333*39/365 -> 1424568.493 | I215: 0.02724 | J215: 38805.24575
A216: 9 | B216: Promissory Note | C216: Hydo Ottawa Holding Inc. | D216: Affiliated | E216: Fixed Rate | F216: 2020-02-09 | G216: 10 years | H216: =55000000*0.5333*326/365 -> 26197449.32 | I216: 0.02614 | J216: =H216*I216 -> 684801.3251
A217: 10 | B217: Promissory Note | C217: Hydo Ottawa Holding Inc. | D217: Affiliated | E217: Fixed Rate | F217: =+F183 -> 2015-06-25 | G217: 30 years | H217: =30000000*0.4667*39/365 -> 1495997.26 | I217: 0.03769 | J217: 56384.13674 | K217: $25.67MM Note - Rate changed during the year (issuance cost fully amortized)
A218: 11 | B218: Promissory Note | C218: Hydo Ottawa Holding Inc. | D218: Affiliated | E218: Fixed Rate | F218: 2015-11-30 | G218: 30 years | H218: =25000000*0.4667*39/365 -> 1246664.384 | I218: 0.03769 | J218: 46986.78062
A219: 12 | B219: Promissory Note | C219: Hydo Ottawa Holding Inc. | D219: Affiliated | E219: Fixed Rate | F219: 2020-02-09 | G219: 30 years | H219: =55000000*0.4667*326/365 -> 22925838.36 | I219: 0.03639 | J219: =H219*I219 -> 834271.2578
A220: 13 | B220: Grid Promissory Note | C220: Hydo Ottawa Holding Inc. | D220: Affiliated | E220: Fixed Rate | F220: 2016-07-01 | G220: 10 years | H220: =65000000*(35/100) -> 22750000 | I220: 0.0307 | J220: =H220*I220 -> 698425 | K220: $65M deemed rate per cost of capital report calculation
A221: 14 | B221: Grid Promissory Note | C221: Hydo Ottawa Holding Inc. | D221: Affiliated | E221: Fixed Rate | F221: 2016-07-01 | G221: 30 years | H221: =65000000*(65/100) -> 42250000 | I221: 0.0397 | J221: 1677325 | K221: $65M deemed rate per cost of capital report calculation
A222: 15 | B222: Grid Promissory Note | C222: Hydo Ottawa Holding Inc. | D222: Affiliated | E222: Fixed Rate | F222: 2017-07-01 | G222: 10 years | H222: =60000000*(35/100) -> 21000000 | I222: 0.0387 | J222: 812700 | K222: $60M deemed rate per cost of capital report calculation
A223: 16 | B223: Grid Promissory Note | C223: Hydo Ottawa Holding Inc. | D223: Affiliated | E223: Fixed Rate | F223: 2017-07-01 | G223: 30 years | H223: =60000000*(65/100) -> 39000000 | I223: 0.0477 | J223: 1860300 | K223: $60M deemed rate per cost of capital report calculation
A224: 17 | B224: Grid Promissory Note | C224: Hydo Ottawa Holding Inc. | D224: Affiliated | E224: Fixed Rate | F224: 2018-07-01 | G224: 10 years | H224: =30000000*(35/100) -> 10500000 | I224: 0.0457 | J224: 479850 | K224: $30M deemed rate per the cost of cpaital report calculation
A225: 18 | B225: Grid Promissory Note | C225: Hydo Ottawa Holding Inc. | D225: Affiliated | E225: Fixed Rate | F225: 2018-07-01 | G225: 30 years | H225: =30000000*(65/100) -> 19500000 | I225: 0.0547 | J225: 1066650 | K225: $30M deemed rate per the cost of cpaital report calculation
A226: 19 | B226: Grid Promissory Note | C226: Hydo Ottawa Holding Inc. | D226: Affiliated | E226: Fixed Rate | F226: 2019-07-01 | G226: 10 years | H226: =30000000*(35/100) -> 10500000 | I226: =I192 -> 0.0386 | J226: 405300 | K226: $30M deemed rate per the cost of capital report calculation
A227: 20 | B227: Grid Promissory Note | C227: Hydo Ottawa Holding Inc. | D227: Affiliated | E227: Fixed Rate | F227: 2019-07-01 | G227: 30 years | H227: =30000000*(65/100) -> 19500000 | I227: =I193 -> 0.0486 | J227: 947700 | K227: $30M deemed rate per the cost of capital report calculation
A228: 21 | B228: Grid Promissory Note | C228: Hydo Ottawa Holding Inc. | D228: Affiliated | E228: Fixed Rate | F228: 2020-07-01 | G228: 10 years | H228: =30000000*(184/365)*(35/100) -> 5293150.685 | I228: 0.0436 | J228: 230781.3699 | K228: $30M deemed rate per the cost of capital report calculation - effective 184 days
A229: 22 | B229: Grid Promissory Note | C229: Hydo Ottawa Holding Inc. | D229: Affiliated | E229: Fixed Rate | F229: 2020-07-01 | G229: 30 years | H229: =30000000*(184/365)*(65/100) -> 9830136.986 | I229: 0.0536 | J229: =H229*I229 -> 526895.3425 | K229: $30M deemed rate per the cost of capital report calculation - effective 184 days
A231: Total | H231: =SUM(H208:H229) -> 672308287.7 | I231: =IF(H231=0,"",J231/H231) -> 0.03692459335 | J231: =SUM(J208:J229) -> 24824710.13
A233: Notes
A235: 1 | B235: If financing is in place only part of the year, calculate the pro-rated interest and input in the cell.
A236: 2 | B236: Input actual or deemed long-term debt rate in accordance with the guidelines in The Report of the Board on the Cost of Capital for Ontario's Regulated Utilities, issued December 11, 2009, or with any subsequent update issued by the Board.
A237: 3 | B237: Add more lines above row 12 if necessary.

Sheet lists (hidden)
A1: DISTRIBUTED GENERATION [DGEN] | B1: Embedded Distributor | C1: =COUNTA(B1:B17) -> 4 | I1: A Standby Service Charge will be applied for a month where standby power is not provided. The applicable rate is the approved Distribution Volumetric Rate of the applicable service class and is applied to gross metered demand or contracted amount, whichever is greater. A monthly administration charge of $200, for simple metering arrangements, or $500, for complex metering arrangements, will also be applied. | L1: Loss Factors | N1: Units | O1: Units1 | P1: Units2 | Z1: Account History | AA1: Account set up charge/change of occupancy charge (plus credit agency costs if applicable) | AB1: Total Loss Factor – Embedded Distributor – Hydro One Networks Inc. | AL1: Algoma Power Inc. | AM1: Algoma Power Inc. | AO1: DISTRIBUTED GENERATION [DGEN] | AP1: kW | AT1: Sub-Total: Delivery (Distribution and Retail Transmission)
A2: EMBEDDED DISTRIBUTOR | B2: General Service 3,000 to 4,999 kW | I2: Distribution Volumetric Rate | L2: Total Loss Factor – Primary Metered Customer | N2: $ | O2: $/kWh | P2: $ | Z2: Account set up charge/change of occupancy charge | AA2: Administrative Billing Charge | AB2: Total Loss Factor – Primary Metered Customer | AL2: Atikokan Hydro Inc. | AM2: Atikokan Hydro Inc. | AO2: EMBEDDED DISTRIBUTOR | AP2: kW | AT2: Wholesale Market Service Rate | AW2: =AU2*AV2 -> 0 | AX2: =AU2 -> 0 | AY2: 0 | AZ2: =AX2*AY2 -> 0 | BB2: =AZ2-AW2 -> 0 | BC2: =BB2/AW2 -> 
A3: EMBEDDED DISTRIBUTOR | B3: General Service 1,000 to 4,999 kW | I3: Distribution Volumetric Rate - $/kW of contracted amount | L3: Total Loss Factor – Primary Metered Customer < 5,000 kW | N3: $/kWh | O3: $/kW | P3: % | W3: MSC | Z3: Account set up charge/change of occupancy charge (plus credit agency costs if applicable – Residential) | AA3: Bell Canada Pole Rentals | AB3: Total Loss Factor – Primary Metered Customer < 5,000 kW | AL3: Attawapiskat Power Corp. | AM3: Attawapiskat Power Corp. | AO3: EMBEDDED DISTRIBUTOR | AP3: kW | AT3: Rural Rate Protection Charge | AW3: =AU3*AV3 -> 0 | AX3: 0 | AY3: 0 | AZ3: =AX3*AY3 -> 0 | BB3: =AZ3-AW3 -> 0 | BC3: =BB3/AW3 -> 
A4: FARMS - SINGLE PHASE ENERGY-BILLED [F1] | B4: General Service Equal To Or Greater Than 1,500 kW - Interval Metered | I4: Distribution Wheeling Service Rate | L4: Total Loss Factor – Primary Metered Customer > 5,000 kW | N4: $/kW | O4: $/kVA | W4: SM_Rate_Adder | Z4: Account set up charge/change of occupancy charge (plus credit agency costs if applicable) | AA4: Clearance Pole Attachment charge $/pole/year | AB4: Total Loss Factor – Primary Metered Customer > 5,000 kW | AL4: Bluewater Power Distribution Corporation | AM4: Bluewater Power Distribution Corporation | AO4: FARMS - SINGLE PHASE ENERGY-BILLED [F1] | AP4: kWh | AT4: Standard Supply Service – Administration Charge (if applicable) | AW4: =AU4*AV4 -> 0 | AX4: 0 | AY4: 0 | AZ4: =AX4*AY4 -> 0 | BB4: =AZ4-AW4 -> 0 | BC4: =BB4/AW4 -> 
A5: FARMS - THREE PHASE ENERGY-BILLED [F3] | I5: Electricity Rate | L5: Total Loss Factor – Secondary Metered Customer | N5: $/kVA | W5: MSC_Rate_Rider_ | Z5: Arrears certificate | AA5: Collection of account charge – no disconnection | AB5: Total Loss Factor – Secondary Metered Customer | AL5: Brant County Power Inc. | AM5: Brant County Power Inc. | AO5: FARMS - THREE PHASE ENERGY-BILLED [F3] | AP5: kWh | AT5: Sub-Total: Regulatory | AW5: =SUM(AW2:AW4) -> 0 | AZ5: =SUM(AZ2:BA4) -> 0 | BB5: =AZ5-AW5 -> 0 | BC5: =BB5/AW5 -> 
A6: GENERAL SERVICE - COMMERCIAL | I6: Electricity Rate - All Additional kWh | L6: Total Loss Factor – Secondary Metered Customer < 5,000 kW | W6: VC | Z6: Arrears certificate (credit reference) | AA6: Collection of account charge – no disconnection – after regular hours | AB6: Total Loss Factor – Secondary Metered Customer < 5,000 kW | AL6: Brantford Power Inc. | AM6: Brantford Power Inc. | AO6: GENERAL SERVICE - COMMERCIAL | AP6: kW | AT6: Debt Retirement Charge (DRC) | AW6: =AU6*AV6 -> 0 | AX6: =AU6 -> 0 | AY6: =AV6 -> 0 | AZ6: =AX6*AY6 -> 0 | BB6: =AZ6-AW6 -> 0 | BC6: =BB6/AW6 -> 
A7: GENERAL SERVICE - INSTITUTIONAL | I7: Electricity Rate - First 250 kWh | AL7: Burlington Hydro Inc. | AM7: Burlington Hydro Inc. | AO7: GENERAL SERVICE - INSTITUTIONAL | AP7: kW
A8: GENERAL SERVICE 1,000 TO 2,999 KW | I8: Electricity Rate -All Additional kWh | L8: Total Loss Factor – Secondary Metered Customer > 5,000 kW | W8: VC_Rate_Rider_ | Z8: Charge to certify cheque | AA8: Collection of account charge – no disconnection - during regular business hours | AB8: Total Loss Factor – Secondary Metered Customer > 5,000 kW | AL8: Cambridge and North Dumfries Hydro Inc. | AM8: Cambridge and North Dumfries Hydro Inc. | AO8: GENERAL SERVICE 1,000 TO 2,999 KW | AP8: kW | AT8: Total Bill on RPP (before taxes) | BB8: =AZ8-AW8 -> 0
A9: GENERAL SERVICE 1,000 TO 4,999 KW | I9: Electricity Rate First 1,000 kWh | L9: Distribution Loss Factor - Secondary Metered Customer < 5,000 kW | W9: VC_GA_Rate_Rider_kW_ | Z9: Collection of Account Charge – No Disconnection | AA9: Collection of account charge – no disconnection – during regular hours | AL9: Canadian Niagara Power Inc. | AM9: Canadian Niagara Power Inc. - Eastern Ontario Power | AO9: GENERAL SERVICE 1,000 TO 4,999 KW - INTERVAL METERS | AP9: kW | AT9: HST | AW9: =AV9*AW8 -> 0 | AY9: =AV9 -> 0 | AZ9: =AY9*AZ8 -> 0 | BB9: =AZ9-AW9 -> 0 | BC9: =BB9/AW9 -> 
A10: GENERAL SERVICE 1,000 TO 4,999 KW - INTERVAL METERS | I10: Electricity Rate First 25,000 kWh | L10: Distribution Loss Factor - Secondary Metered Customer > 5,000 kW | W10: VC_LV_Rate | Z10: Credit Card Convenience Charge | AA10: Collection/Disconnection/Load Limiter/Reconnection – if in Community | AL10: Centre Wellington Hydro Ltd. | AM10: Canadian Niagara Power Inc. - Fort Erie | AO10: GENERAL SERVICE 1,000 TO 4,999 KW (CO-GENERATION) | AP10: kW | AT10: Total Bill (including HST) | AW10: =AW9+AW8 -> 0 | AZ10: =AZ9+AZ8 -> 0 | BB10: =AZ10-AW10 -> 0 | BC10: =BB10/AW10 -> 
A11: GENERAL SERVICE 1,000 TO 4,999 KW (CO-GENERATION) | I11: Electricity Rate First 6,000 kWh | L11: Distribution Loss Factor - Primary Metered Customer < 5,000 kW | W11: RTSR_Network | Z11: Credit check (plus credit agency costs) | AA11: Credit Card Convenience Charge | AL11: Chapleau Public Utilities Corporation | AM11: Canadian Niagara Power Inc. - Port Colborne Hydro Inc. | AO11: GENERAL SERVICE 1,000 TO 4,999 KW | AP11: kW | AT11: Ontario Clean Energy Benefit (OCEB) | AW11: =-0.1*AW10 -> 0 | AY11: =AV11 -> 0 | AZ11: =-0.1*AZ10 -> 0 | BB11: =AZ11-AW11 -> 0 | BC11: =BB11/AW11 -> 
A12: GENERAL SERVICE 1,500 TO 4,999 KW | I12: Electricity Rate Next 1,500 kWh | L12: Distribution Loss Factor - Primary Metered Customer > 5,000 kW | W12: RTSR_Connection | Z12: Credit reference Letter | AA12: Disconnect/Reconnect at meter – after regular hours | AL12: Clinton Power Corporation | AM12: Centre Wellington Hydro Ltd. | AO12: GENERAL SERVICE 1,500 TO 4,999 KW | AP12: kW | AT12: Total Bill on RPP (including OCEB) | AW12: =AW10+AW11 -> 0 | AZ12: =AZ10+AZ11 -> 0 | BB12: =AZ12-AW12 -> 0 | BC12: =BB12/AW12 -> 
A13: GENERAL SERVICE 2,500 TO 4,999 KW | I13: General Service 1,500 to 4,999 kW customer | AL13: COLLUS Power Corporation | AM13: Chapleau Public Utilities Corporation | AO13: GENERAL SERVICE 2,500 TO 4,999 KW | AP13: kW
A14: GENERAL SERVICE 3,000 TO 4,999 KW | I14: General Service 50 to 1,499 kW customer | L14: Total Loss Factor - Embedded Distributor | W14: RTSR_Network_Interval | Z14: Credit reference/credit check (plus credit agency costs – General Service) | AA14: Disconnect/Reconnect at meter – during regular hours | AL14: Cooperative Hydro Embrun Inc. | AM14: Clinton Power Corporation | AO14: GENERAL SERVICE 3,000 TO 4,999 KW - INTERMEDIATE USE | AP14: kW | AT14: Total Bill on TOU (before taxes) | BB14: =AZ14-AW14 -> 0
A15: GENERAL SERVICE 3,000 TO 4,999 KW - INTERMEDIATE USE | I15: General Service Large Use customer | L15: Total Loss Factor – Embedded Distributor – Hydro One Networks Inc. | W15: RTSR_Connection_Interval | Z15: Credit Reference/credit check (plus credit agency costs) | AA15: Disconnect/Reconnect at pole – after regular hours | AL15: E.L.K. Energy Inc. | AM15: COLLUS Power Corporation | AO15: GENERAL SERVICE 3,000 TO 4,999 KW - INTERVAL METERED | AP15: kW | AT15: HST | AW15: =AV15*AW14 -> 0 | AY15: =AV15 -> 0 | AZ15: =AY15*AZ14 -> 0 | BB15: =AZ15-AW15 -> 0 | BC15: =BB15/AW15 -> 
A16: GENERAL SERVICE 3,000 TO 4,999 KW - INTERVAL METERED | I16: Green Energy Act Initiatives Funding Adder - effective until the date of the next cost of service-based rate order | W16: RTSR_Network_Interval_GR1000kW | Z16: Dispute Test – Commercial self contained -- MC | AA16: Disconnect/Reconnect at pole – during regular hours | AL16: Enersource Hydro Mississauga Inc. | AM16: Cooperative Hydro Embrun Inc. | AO16: GENERAL SERVICE 3,000 TO 4,999 KW - TIME OF USE | AP16: kW | AT16: Total Bill (including HST) | AW16: =AW15+AW14 -> 0 | AZ16: =AZ15+AZ14 -> 0 | BB16: =AZ16-AW16 -> 0 | BC16: =BB16/AW16 -> 
A17: GENERAL SERVICE 3,000 TO 4,999 KW - TIME OF USE | I17: Green Energy Act Plan Funding Adder | W17: RTSR_Connection_Interval_GR1000kW | Z17: Dispute Test – Commercial TT -- MC | AA17: Disconnect/Reconnect Charge – At Meter – After Hours | AL17: Entegrus Powerlines Inc. | AM17: E.L.K. Energy Inc. | AO17: GENERAL SERVICE 3,000 TO 4,999 KW | AP17: kW | AT17: Ontario Clean Energy Benefit (OCEB) | AW17: =-0.1*AW16 -> 0 | AY17: =AV17 -> 0 | AZ17: =-0.1*AZ16 -> 0 | BB17: =AZ17-AW17 -> 0 | BC17: =BB17/AW17 -> 
A18: GENERAL SERVICE 50 TO 1,000 KW | I18: Green Energy Act Plan Funding Adder - effective April 1, 2013 until March 31, 2014 | W18: RTSR_Line_Connection | Z18: Dispute Test – Residential | AA18: Disconnect/Reconnect Charge – At Meter – During Regular Hours | AL18: ENWIN Utilities Ltd. | AM18: Enersource Hydro Mississauga Inc. | AO18: GENERAL SERVICE 50 TO 1,000 KW - INTERVAL METERS | AP18: kW | AT18: Total Bill on TOU (including OCEB) | AW18: =AW16+AW17 -> 0 | AZ18: =AZ16+AZ17 -> 0 | BB18: =AZ18-AW18 -> 0 | BC18: =BB18/AW18 -> 
A19: GENERAL SERVICE 50 TO 1,000 KW - INTERVAL METERS | I19: Green Energy Act Plan Funding Adder - effective April 1, 2014 until March 31, 2015 | W19: RTSR_Transformer_Connection | Z19: Duplicate Invoices for previous billing | AA19: Disconnect/Reconnect Charge – At Pole – After Hours | AL19: Erie Thames Powerlines Corporation | AM19: Entegrus Powerlines Inc. - Chatham-Kent | AO19: GENERAL SERVICE 50 TO 1,000 KW - NON INTERVAL METERS | AP19: kW
A20: GENERAL SERVICE 50 TO 1,000 KW - NON INTERVAL METERS | I20: ICM Rate Rider (2014) - in effect until the effective date of the next cost of service rates | W20: WMSR | Z20: Easement Letter | AA20: Disconnect/Reconnect Charge – At Pole – During Regular Hours | AL20: Espanola Regional Hydro Distribution Corporation | AM20: Entegrus Powerlines Inc. - Dutton | AO20: GENERAL SERVICE 50 TO 1,000 KW | AP20: kW
A21: GENERAL SERVICE 50 TO 1,499 KW | I21: Low Voltage Service Charge | W21: RRRP | Z21: Income Tax Letter | AA21: Disconnect/Reconnect Charges for non payment of account - At Meter After Hours | AL21: Essex Powerlines Corporation | AM21: Entegrus Powerlines Inc. - Newbury | AO21: GENERAL SERVICE 50 TO 1,499 KW - INTERVAL METERED | AP21: kW
A22: GENERAL SERVICE 50 TO 1,499 KW - INTERVAL METERED | I22: Low Voltage Service Rate | W22: SPC | Z22: Interval Meter Interrogation | AA22: Disconnect/Reconnect charges for non payment of account – at meter after regular hours | AL22: Festival Hydro Inc. | AM22: Entegrus Powerlines Inc. - Strathroy, Mounth Brydges & Parkhill | AO22: GENERAL SERVICE 50 TO 1,499 KW | AP22: kW
A23: GENERAL SERVICE 50 TO 2,499 KW | I23: Low Voltage Volumetric Rate | W23: DRC | Z23: Interval meter request change | AA23: Disconnect/Reconnect Charges for non payment of account - At Meter During Regular Hours | AL23: Fort Albany Power Corporation | AM23: ENWIN Utilities Ltd. | AO23: GENERAL SERVICE 50 TO 2,499 KW | AP23: kW
A24: GENERAL SERVICE 50 TO 2,999 KW | I24: LRAM Rate Rider - Effective Until April 30, 2015 | W24: SSS | Z24: Legal letter | AA24: Disconnect/Reconnect charges for non payment of account – at meter during regular hours | AL24: Fort Frances Power Corporation | AM24: Erie Thames Powerlines Corporation | AO24: GENERAL SERVICE 50 TO 2,999 KW - INTERVAL METERED | AP24: kW
A25: GENERAL SERVICE 50 TO 2,999 KW - INTERVAL METERED | I25: Minimum Distribution Charge - per KW of maximum billing demand in the previous 11 months | W25: SFLF | Z25: Legal letter charge | AA25: Disconnect/Reconnect charges for non payment of account – at pole after regular hours | AL25: Greater Sudbury Hydro Inc. | AM25: Espanola Regional Hydro Distribution Corporation | AO25: GENERAL SERVICE 50 TO 2,999 KW - TIME OF USE | AP25: kW
A26: GENERAL SERVICE 50 TO 2,999 KW - TIME OF USE | B26: January | I26: Monthly Distribution Wheeling Service Rate - Dedicated LV Line | W26: DLF_Secondary_LT_5000kW | Z26: Meter dispute charge plus Measurement Canada fees (if meter found correct) | AA26: Disconnect/Reconnect charges for non payment of account – at pole during regular hours | AL26: Grimsby Power Inc. | AM26: Essex Powerlines Corporation | AO26: GENERAL SERVICE 50 TO 2,999 KW | AP26: kW
A27: GENERAL SERVICE 50 TO 4,999 KW | B27: February | I27: Monthly Distribution Wheeling Service Rate - Hydro One Networks | W27: DLF_Secondary_GT_5000kW | Z27: Notification charge | AA27: Disconnect/Reconnection for >300 volts - after regular hours | AL27: Guelph Hydro Electric Systems Inc. | AM27: Festival Hydro Inc. | AO27: GENERAL SERVICE 50 TO 4,999 KW - INTERVAL METERED | AP27: kW
A28: GENERAL SERVICE 50 TO 4,999 KW - INTERVAL METERED | B28: March | I28: Monthly Distribution Wheeling Service Rate - Shared LV Line | W28: DLF_Primary_LT_5000kW | Z28: Pulling Post Dated Cheques | AA28: Disconnect/Reconnection for >300 volts - during regular hours | AL28: Haldimand County Hydro Inc. | AM28: Festival Hydro Inc. - Hensall | AO28: GENERAL SERVICE 50 TO 4,999 KW - TIME OF USE | AP28: kW
A29: GENERAL SERVICE 50 TO 4,999 KW - TIME OF USE | B29: April | I29: Monthly Distribution Wheeling Service Rate - Waterloo North Hydro | W29: DLF_Primary_GT_5000kW | Z29: Request for other billing information | AA29: Disposal of Concrete Poles | AL29: Halton Hills Hydro Inc. | AM29: Fort Albany Power Corporation | AO29: GENERAL SERVICE 50 TO 4,999 KW (COGENERATION) | AP29: kW
A30: GENERAL SERVICE 50 TO 4,999 KW (COGENERATION) | B30: May | I30: Rate Rider for Application of Tax Change - effective until April 30, 2015 | W30: TLF_Secondary_LT_5000kW | Z30: Returned cheque (plus bank charges) | AA30: Dispute Test – Commercial TT -- MC | AL30: Hearst Power Distribution Company Limited | AM30: Fort Frances Power Corporation | AO30: GENERAL SERVICE 50 TO 4,999 KW (FORMERLY TIME OF USE) | AP30: kW
A31: GENERAL SERVICE 50 TO 4,999 KW (FORMERLY TIME OF USE) | B31: June | I31: Rate Rider for Application of Tax Change - effective until December 31, 2014 | W31: TLF_Secondary_GT_5000kW | Z31: Returned cheque charge (plus bank charges) | AA31: Install/Remove load control device – after regular hours | AL31: Horizon Utilities Corporation | AM31: Greater Sudbury Hydro Inc. | AO31: GENERAL SERVICE 50 TO 4,999 KW | AP31: kW
A32: GENERAL SERVICE 50 TO 499 KW | B32: July | I32: Rate Rider for Application of Tax Change (2014) - effective until April 30, 2015 | W32: TLF_Primary_LT_5000kW | Z32: Special Billing Service (aggregation) | AA32: Install/Remove load control device – during regular hours | AL32: Hydro 2000 Inc. | AM32: Grimsby Power Inc. | AO32: GENERAL SERVICE 50 TO 499 KW | AP32: kW
A33: GENERAL SERVICE 50 TO 699 KW | B33: August | I33: Rate Rider for Application of Tax Change (per connection) - effective until April 30, 2015 | W33: TLF_Primary_GT_5000kW | Z33: Special Billing Service (sub-metering charge per meter) | AA33: Interval Meter Interrogation | AL33: Hydro Hawkesbury Inc. | AM33: Guelph Hydro Electric Systems Inc. | AO33: GENERAL SERVICE 50 TO 699 KW | AP33: kW
A34: GENERAL SERVICE 50 TO 999 KW | B34: September | I34: Rate Rider for CGAAP Accounting Changes (2013) - effective until April 30, 2017 | W34: TLF_EmbeddedDistributor | Z34: Special meter reads | AA34: Interval Meter Load Management Tool Charge $/month | AL34: Hydro One Brampton Networks Inc. | AM34: Haldimand County Hydro Inc. | AO34: GENERAL SERVICE 50 TO 999 KW - INTERVAL METERED | AP34: kW
A35: GENERAL SERVICE 50 TO 999 KW - INTERVAL METERED | B35: October | I35: Rate Rider for Deferral/Variance Account (2012) - effective unitl April 30, 2016 | Z35: Statement of Account | AA35: Interval meter request change | AL35: Hydro One Networks Inc. | AM35: Halton Hills Hydro Inc. | AO35: GENERAL SERVICE 50 TO 999 KW | AP35: kW
A36: GENERAL SERVICE 500 TO 4,999 KW | B36: November | I36: Rate Rider for Deferral/Variance Account Disposition – effective until April 30, 2015 | Z36: Unprocessed Payment Charge (plus bank charges) | AA36: Late Payment – per annum | AL36: Hydro Ottawa Limited | AM36: Hearst Power Distribution Company Limited | AO36: GENERAL SERVICE 500 TO 4,999 KW | AP36: kW
A37: GENERAL SERVICE 700 TO 4,999 KW | B37: December | I37: Rate Rider for Deferral/Variance Account Disposition (2012) - effective until April 30, 2016 | AA37: Late Payment – per month | AL37: Innisfil Hydro Distribution Systems Limited | AM37: Horizon Utilities Corporation | AO37: GENERAL SERVICE 700 TO 4,999 KW | AP37: kW
A38: GENERAL SERVICE DEMAND BILLED (50 KW AND ABOVE) [GSD] | I38: Rate Rider for Deferral/Variance Account Disposition (2013) - effective until April 30, 2014 | AA38: Layout fees | AL38: Kashechewan Power Corporation | AM38: Hydro 2000 Inc. | AO38: GENERAL SERVICE DEMAND BILLED (50 KW AND ABOVE) [GSD] | AP38: kW
A39: GENERAL SERVICE ENERGY BILLED (LESS THAN 50 KW) [GSE-METERED] | I39: Rate Rider for Deferral/Variance Account Disposition (2014) - effective until April 28, 2016 | AA39: Meter dispute charge plus Measurement Canada fees (if meter found correct) | AL39: Kenora Hydro Electric Corporation Ltd. | AM39: Hydro Hawkesbury Inc. | AO39: GENERAL SERVICE ENERGY BILLED (LESS THAN 50 KW) [GSE-METERED] | AP39: kWh
A40: GENERAL SERVICE ENERGY BILLED (LESS THAN TO 50 KW) [GSE-UNMETERED] | I40: Rate Rider for Deferral/Variance Account Disposition (2014) - effective until April 30, 2015 | AA40: Meter Interrogation Charge | AL40: Kingston Hydro Corporation | AM40: Hydro One Brampton Networks Inc. | AO40: GENERAL SERVICE ENERGY BILLED (LESS THAN TO 50 KW) [GSE-UNMETERED] | AP40: kWh
A41: GENERAL SERVICE EQUAL TO OR GREATER THAN 1,500 KW | I41: Rate Rider for Deferral/Variance Account Disposition (2014) - effective until Decembeer 31, 2015 | AA41: Missed Service Appointment | AL41: Kitchener-Wilmot Hydro Inc. | AM41: Hydro One Networks Inc. | AO41: GENERAL SERVICE EQUAL TO OR GREATER THAN 1,500 KW - INTERVAL METERED | AP41: kW
A42: GENERAL SERVICE EQUAL TO OR GREATER THAN 1,500 KW - INTERVAL METERED | I42: Rate Rider for Deferral/Variance Account Disposition (2014) - effective until December 30, 2015 | AA42: Norfolk Pole Rentals – Billed | AL42: Lakefront Utilities Inc. | AM42: Hydro Ottawa Limited | AO42: GENERAL SERVICE EQUAL TO OR GREATER THAN 1,500 KW | AP42: kW
A43: GENERAL SERVICE GREATER THAN 1,000 KW | I43: Rate Rider for Deferral/Variance Account Disposition (2014) - effective until December 31, 2014 | AA43: Optional Interval/TOU Meter charge $/month | AL43: Lakeland Power Distribution Ltd. | AM43: Innisfil Hydro Distribution Systems Limited | AO43: GENERAL SERVICE GREATER THAN 1,000 KW | AP43: kW
A44: GENERAL SERVICE GREATER THAN 50 kW - WMP | I44: Rate Rider for Deferral/Variance Account Disposition (2014) - effective until December 31, 2015 | AA44: Overtime Locate | AL44: London Hydro Inc. | AM44: Kashechewan Power Corporation | AO44: GENERAL SERVICE INTERMEDIATE 1,000 TO 4,999 KW | AP44: kW
A45: GENERAL SERVICE INTERMEDIATE 1,000 TO 4,999 KW | I45: Rate Rider for Deferral/Variance Account Dispositon (2012) - effective until April 30, 2016 | AA45: Owner Requested Disconnection/Reconnection – after regular hours | AL45: Midland Power Utility Corporation | AM45: Kenora Hydro Electric Corporation Ltd. | AO45: GENERAL SERVICE INTERMEDIATE RATE CLASS 1,000 TO 4,999 KW (FORMERLY GENERAL SERVICE > 50 KW CUSTOMERS) | AP45: kW
A46: GENERAL SERVICE INTERMEDIATE RATE CLASS 1,000 TO 4,999 KW (FORMERLY GENERAL SERVICE > 50 KW CUSTOMERS) | I46: Rate Rider for Disposition of Accounting Changes Under CGAAP Account 1576 - effective until April 30, 2016 | AA46: Owner Requested Disconnection/Reconnection – during regular hours | AL46: Milton Hydro Distribution inc. | AM46: Kingston Hydro Corporation | AO46: GENERAL SERVICE INTERMEDIATE RATE CLASS 1,000 TO 4,999 KW (FORMERLY LARGE USE CUSTOMERS) | AP46: kW
A47: GENERAL SERVICE INTERMEDIATE RATE CLASS 1,000 TO 4,999 KW (FORMERLY LARGE USE CUSTOMERS) | I47: Rate Rider for Disposition of Deferral/Variance Accounts (2010) - effective until December 31, 2014 | AA47: Returned cheque (plus bank charges) | AL47: Newmarket - Tay Power Distribution Ltd. | AM47: Kitchener-Wilmot Hydro Inc. | AO47: GENERAL SERVICE LESS THAN 50 KW - SINGLE PHASE ENERGY-BILLED [G1] | AP47: kWh
A48: GENERAL SERVICE LESS THAN 50 KW | I48: Rate Rider for Disposition of Deferral/Variance Accounts (2011) - effective until April 30, 2015 | AA48: Rural system expansion / line connection fee | AL48: Niagara Peninsula Energy Inc. | AM48: Lakefront Utilities Inc. | AO48: GENERAL SERVICE LESS THAN 50 KW - THREE PHASE ENERGY-BILLED [G3] | AP48: kWh
A49: GENERAL SERVICE LESS THAN 50 KW - SINGLE PHASE ENERGY-BILLED [G1] | I49: Rate Rider for Disposition of Deferral/Variance Accounts (2011) - effective until April 30, 2016 | AA49: Same Day Open Trench | AL49: Niagara-on-the-Lake Hydro Inc. | AM49: Lakeland Power Distribution Ltd. | AO49: GENERAL SERVICE LESS THAN 50 KW - TRANSMISSION CLASS ENERGY-BILLED [T] | AP49: kWh
A50: GENERAL SERVICE LESS THAN 50 KW - THREE PHASE ENERGY-BILLED [G3] | I50: Rate Rider for Disposition of Deferral/Variance Accounts (2012) - effective until April 30, 2014 | AA50: Scheduled Day Open Trench | AL50: Norfolk Power Distribution Inc. | AM50: London Hydro Inc. | AO50: GENERAL SERVICE LESS THAN 50 KW - URBAN ENERGY-BILLED [UG] | AP50: kWh
A51: GENERAL SERVICE LESS THAN 50 KW - TRANSMISSION CLASS ENERGY-BILLED [T] | I51: Rate Rider for Disposition of Deferral/Variance Accounts (2012) - effective until April 30, 2015 | AA51: Service call – after regular hours | AL51: North Bay Hydro Distribution Limited | AM51: Midland Power Utility Corporation | AO51: GENERAL SERVICE LESS THAN 50 KW | AP51: kWh
A52: GENERAL SERVICE LESS THAN 50 KW - URBAN ENERGY-BILLED [UG] | I52: Rate Rider for Disposition of Deferral/Variance Accounts (2012) - effective until April 30, 2016 | AA52: Service call – customer owned equipment | AL52: Northern Ontario Wires Inc. | AM52: Milton Hydro Distribution inc. | AO52: GENERAL SERVICE SINGLE PHASE - G1 | AP52: kW
A53: GENERAL SERVICE SINGLE PHASE - G1 | I53: Rate Rider for Disposition of Deferral/Variance Accounts (2012) - effective until August 31, 2014 | AA53: Service Call – Customer-owned Equipment – After Regular Hours | AL53: Oakville Hydro Electricity Distribution Inc. | AM53: Newmarket - Tay Power Distribution Ltd. - Newmarket | AO53: GENERAL SERVICE THREE PHASE - G3 | AP53: kW
A54: GENERAL SERVICE THREE PHASE - G3 | I54: Rate Rider for Disposition of Deferral/Variance Accounts (2012) - effective until December 31, 2015 | AA54: Service Call – Customer-owned Equipment – During Regular Hours | AL54: Orangeville Hydro Limited | AM54: Newmarket - Tay Power Distribution Ltd. - Tay | AO54: INTERMEDIATE USERS | AP54: kW
A55: INTERMEDIATE USERS | I55: Rate Rider for Disposition of Deferral/Variance Accounts (2012) - effective until December 31, 2016 Applicable only in the former service area of Clinton Power | AA55: Service Charge for onsite interrogation of interval meter due to customer phone line failure - required weekly until line repaired $ 6 | AL55: Orillia Power Distribution Corporation | AM55: Niagara Peninsula Energy Inc. - Niagara Falls | AO55: INTERMEDIATE WITH SELF GENERATION | AP55: kW
A56: INTERMEDIATE WITH SELF GENERATION | I56: Rate Rider for Disposition of Deferral/Variance Accounts (2012) – effective until December 31, 2016 Applicable only in the former service area of Clinton Power | AA56: Service Layout - Commercial | AL56: Oshawa PUC Networks Inc. | AM56: Niagara Peninsula Energy Inc. - Peninsula West | AO56: LARGE USE - 3TS | AP56: kW
A57: LARGE USE | I57: Rate Rider for Disposition of Deferral/Variance Accounts (2012) - effective until January 31, 2014 | AA57: Service Layout - ResidentiaI | AL57: Ottawa River Power Corporation | AM57: Niagara-on-the-Lake Hydro Inc. | AO57: LARGE USE - FORD ANNEX | AP57: kW
A58: LARGE USE - 3TS | I58: Rate Rider for Disposition of Deferral/Variance Accounts (2012) - effective until June 30, 2014 | AA58: Special Billing Service (sub-metering charge per meter) | AL58: Parry Sound Power Corporation | AM58: Norfolk Power Distribution Inc. | AO58: LARGE USE - REGULAR | AP58: kW
A59: LARGE USE - FORD ANNEX | I59: Rate Rider for Disposition of Deferral/Variance Accounts (2013) - Applicable only to Wholesale Market Participants - effective until April 30, 2015 | AA59: Special meter reads | AL59: Peterborough Distribution Incorporated | AM59: North Bay Hydro Distribution Limited | AO59: LARGE USE > 5000 KW | AP59: kW
A60: LARGE USE - REGULAR | I60: Rate Rider for Disposition of Deferral/Variance Accounts (2013) - effective until April 30, 2014 | AA60: Specific Charge for Access to the Power Poles - $/pole/year | AL60: PowerStream Inc. | AM60: Northern Ontario Wires Inc. | AO60: LARGE USE | AP60: kW
A61: LARGE USE > 5000 KW | I61: Rate Rider for Disposition of Deferral/Variance Accounts (2013) - effective until April 30, 2015 | AA61: Specific Charge for Bell Canada Access to the Power Poles – per pole/year | AL61: PUC Distribution Inc. | AM61: Oakville Hydro Electricity Distribution Inc. | AO61: microFIT | AP61: $
A62: microFIT | I62: Rate Rider for Disposition of Deferral/Variance Accounts (2013) - effective until April 30, 2015, not applicable to Wholesale Market Participants | AA62: Switching for company maintenance – Charge based on Time and Materials | AL62: Renfrew Hydro Inc. | AM62: Orangeville Hydro Limited | AO62: RESIDENTIAL - HENSALL | AP62: kWh
A63: RESIDENTIAL | I63: Rate Rider for Disposition of Deferral/Variance Accounts (2013) - effective until April 30, 2017 | AA63: Temporary Service – Install & remove – overhead – no transformer | AL63: Rideau St. Lawrence Distribution Inc. | AM63: Orillia Power Distribution Corporation | AO63: RESIDENTIAL - HIGH DENSITY [R1] | AP63: kWh
A64: RESIDENTIAL - HENSALL | I64: Rate Rider for Disposition of Deferral/Variance Accounts (2013) - effective until August 31, 2014 | AA64: Temporary Service – Install & remove – overhead – with transformer | AL64: Sioux Lookout Hydro Inc. | AM64: Oshawa PUC Networks Inc. | AO64: RESIDENTIAL - LOW DENSITY [R2] | AP64: kWh
A65: RESIDENTIAL - HIGH DENSITY [R1] | I65: Rate Rider for Disposition of Deferral/Variance Accounts (2013) - effective until December 31, 2014 | AA65: Temporary Service – Install & remove – underground – no transformer | AL65: St. Thomas Energy Inc. | AM65: Ottawa River Power Corporation | AO65: RESIDENTIAL - MEDIUM DENSITY [R1] | AP65: kWh
A66: RESIDENTIAL - LOW DENSITY [R2] | I66: Rate Rider for Disposition of Deferral/Variance Accounts (2013) - effective until May 31, 2014 | AA66: Temporary service install & remove – overhead – no transformer | AL66: Thunder Bay Hydro Electricity Distribution Inc. | AM66: Parry Sound Power Corporation | AO66: RESIDENTIAL - NORMAL DENSITY [R2] | AP66: kWh
A67: RESIDENTIAL - MEDIUM DENSITY [R1] | I67: Rate Rider for Disposition of Deferred PILs Variance Account 1562 - effective until March 31, 2016 | AA67: Temporary Service Install & Remove – Overhead – With Transformer | AL67: Tillsonburg Hydro Inc. | AM67: Peterborough Distribution Incorporated | AO67: RESIDENTIAL - TIME OF USE | AP67: kWh
A68: RESIDENTIAL - NORMAL DENSITY [R2] | I68: Rate Rider for Disposition of Deferred PILs Variance Account 1562 (2012) - effective until April 30, 2015 | AA68: Temporary Service Install & Remove – Underground – No Transformer | AL68: Toronto Hydro-Electric System Limited | AM68: PowerStream Inc. - Barrie | AO68: RESIDENTIAL - URBAN [UR] | AP68: kWh
A69: RESIDENTIAL - TIME OF USE | I69: Rate Rider for Disposition of Deferred PILs Variance Account 1562 (2012) - effective until April 30, 2016 | AA69: Temporary service installation and removal – overhead – no transformer | AL69: Veridian Connections Inc. | AM69: PowerStream Inc. - South | AO69: RESIDENTIAL REGULAR | AP69: kWh
A70: RESIDENTIAL - URBAN [UR] | I70: Rate Rider for Disposition of Deferred PILs Variance Account 1562 (2nd Installment - 2012) - effective until April 30, 2016 | AA70: Temporary service installation and removal – overhead – with transformer | AL70: Wasaga Distribution Inc. | AM70: PUC Distribution Inc. | AO70: RESIDENTIAL | AP70: kWh
A71: RESIDENTIAL REGULAR | I71: Rate Rider for Disposition of Deferred PILs Variance Account 1562 (per connection) (2012) - effective until April 30, 2015 | AA71: Temporary service installation and removal – underground – no transformer | AL71: Waterloo North Hydro Inc. | AM71: Renfrew Hydro Inc. | AO71: RESIDENTIAL SUBURBAN SEASONAL | AP71: kWh
A72: RESIDENTIAL SUBURBAN | I72: Rate Rider for Disposition of Deferred PILs Variance Account 1562 (per connection) (2012) - effective until April 30, 2016 | AL72: Welland Hydro-Electric System Corp. | AM72: Rideau St. Lawrence Distribution Inc. | AO72: RESIDENTIAL SUBURBAN | AP72: kWh
A73: RESIDENTIAL SUBURBAN SEASONAL | I73: Rate Rider for Disposition of Global Adjustment Sub-Account (2011) - effective until April 30, 2015 Applicable only for Non-RPP Customers | AL73: Wellington North Power Inc. | AM73: Sioux Lookout Hydro Inc. | AO73: RESIDENTIAL SUBURBAN YEAR ROUND | AP73: kWh
A74: RESIDENTIAL SUBURBAN YEAR ROUND | I74: Rate Rider for Disposition of Global Adjustment Sub-Account (2011) - effective until April 30, 2016 Applicable only for Non-RPP Customers | AL74: West Coast Huron Energy Inc. | AM74: St. Thomas Energy Inc. | AO74: RESIDENTIAL URBAN | AP74: kWh
A75: RESIDENTIAL URBAN | I75: Rate Rider for Disposition of Global Adjustment Sub-Account (2012) - effective until April 30, 2014 Applicable only for Non-RPP Customers | AL75: West Perth Power Inc. | AM75: Thunder Bay Hydro Electricity Distribution Inc. | AO75: RESIDENTIAL URBAN YEAR-ROUND | AP75: kWh
A76: RESIDENTIAL URBAN YEAR-ROUND | I76: Rate Rider for Disposition of Global Adjustment Sub-Account (2012) - effective until April 30, 2015 Applicable only for Non-RPP Customers | AL76: Westario Power Inc. | AM76: Tillsonburg Hydro Inc. | AO76: SEASONAL RESIDENTIAL - HIGH DENSITY [R3] | AP76: kWh
A77: SEASONAL RESIDENTIAL | I77: Rate Rider for Disposition of Global Adjustment Sub-Account (2012) - effective until April 30, 2015 Applicatble only for Non-RPP Customers | AL77: Whitby Hydro Electric Corporation | AM77: Toronto Hydro-Electric System Limited | AO77: SEASONAL RESIDENTIAL - NORMAL DENSITY [R4] | AP77: kWh
A78: SEASONAL RESIDENTIAL - HIGH DENSITY [R3] | I78: Rate Rider for Disposition of Global Adjustment Sub-Account (2012) - effective until April 30, 2016 Applicable only for Non-RPP Customers | AL78: Woodstock Hydro Services Inc. | AM78: Veridian Connections Inc. | AO78: SEASONAL RESIDENTIAL | AP78: kWh
A79: SEASONAL RESIDENTIAL - NORMAL DENSITY [R4] | I79: Rate Rider for Disposition of Global Adjustment Sub-Account (2012) - effective until January 31, 2014. Applicable only for Non-RPP Customers | AM79: Veridian Connections Inc. - Gravenhurst | AO79: SENTINEL LIGHTING | AP79: kW
A80: SENTINEL LIGHTING | I80: Rate Rider for Disposition of Global Adjustment Sub-Account (2012) - effective until June 30, 2014 Applicable only for Non-RPP Customers | AM80: Wasaga Distribution Inc. | AO80: SMALL COMMERCIAL AND USL - PER CONNECTION | AP80: kW
A81: SMALL COMMERCIAL AND USL - PER CONNECTION | I81: Rate Rider for Disposition of Global Adjustment Sub-Account (2012) Applicable only for Non-RPP Customers - effective until August 31, 2014 | AM81: Waterloo North Hydro Inc. | AO81: SMALL COMMERCIAL AND USL - PER METER | AP81: kW
A82: SMALL COMMERCIAL AND USL - PER METER | I82: Rate Rider for Disposition of Global Adjustment Sub-Account (2012) Applicable only to Non-RPP Customers - effective until August 31, 2014 | AM82: Welland Hydro-Electric System Corp. | AO82: STANDARD A GENERAL SERVICE AIR ACCESS | AP82: kW
A83: STANDARD A GENERAL SERVICE AIR ACCESS | I83: Rate Rider for Disposition of Global Adjustment Sub-Account (2013) - effective until April 30, 2014 Applicable only for Non-RPP Customers | AM83: Wellington North Power Inc. | AO83: STANDARD A GENERAL SERVICE ROAD/RAIL | AP83: kW
A84: STANDARD A GENERAL SERVICE ROAD/RAIL | I84: Rate Rider for Disposition of Global Adjustment Sub-Account (2013) - effective until April 30, 2015 Applicable only for Non-RPP Customers | AM84: West Coast Huron Energy Inc. | AO84: STANDARD A RESIDENTIAL AIR ACCESS | AP84: kW
A85: STANDARD A GRID CONNECTED | I85: Rate Rider for Disposition of Global Adjustment Sub-Account (2013) - effective until April 30, 2015 Applicable only for Non-RPP Customers and excluding Wholesale Market Participants | AM85: West Perth Power Inc. | AO85: STANDARD A RESIDENTIAL ROAD/RAIL | AP85: kW
A86: STANDARD A RESIDENTIAL AIR ACCESS | I86: Rate Rider for Disposition of Global Adjustment Sub-Account (2013) - effective until April 30, 2017 Applicable only for Non-RPP Customers | AM86: Westario Power Inc. | AO86: STANDBY - GENERAL SERVICE 1,000 - 5,000 KW | AP86: kW
A87: STANDARD A RESIDENTIAL ROAD/RAIL | I87: Rate Rider For Disposition of Global Adjustment Sub-Account (2013) - effective until August 31, 2014 Applicable only for Non-RPP Customers | AM87: Whitby Hydro Electric Corporation | AO87: STANDBY - GENERAL SERVICE 50 - 1,000 KW | AP87: kW
A88: STANDBY - GENERAL SERVICE 1,000 - 5,000 KW | I88: Rate Rider for Disposition of Global Adjustment Sub-Account (2013) - effective until December 31, 2014 Applicable only for Non-RPP Customers | AM88: Woodstock Hydro Services Inc. | AO88: STANDBY - LARGE USE | AP88: kW
A89: STANDBY - GENERAL SERVICE 50 - 1,000 KW | I89: Rate Rider for Disposition of Global Adjustment Sub-Account (2013) - effective until May 31, 2014 Applicable only for Non-RPP Customers | AO89: STANDBY DISTRIBUTION SERVICE | AP89: kW
A90: STANDBY - LARGE USE | I90: Rate Rider for Disposition of Global Adjustment Sub-Account (2014) - effective until December 31, 2014. Applicable only for Non-RPP - Class B Customers | AO90: STANDBY POWER - APPROVED ON AN INTERIM BASIS | AP90: kW
A91: STANDBY DISTRIBUTION SERVICE | I91: Rate Rider for Disposition of Global Adjustment Sub-Account (2014) - effective until December 31, 2014. Applicable only for Non-RPP Customers | AO91: STANDBY POWER GENERAL SERVICE 1,500 TO 4,999 KW | AP91: kW
A92: STANDBY POWER | I92: Rate Rider for Disposition of Global Adjustment Sub-Account (2014) - effective until December 31, 2014. Applicable only for Non-RPP Customers - Class A Customers | AO92: STANDBY POWER GENERAL SERVICE 50 TO 1,499 KW | AP92: kW
A93: STANDBY POWER - APPROVED ON AN INTERIM BASIS | I93: Rate Rider for Disposition of Global Adjustment Sub-Account (2014) - effective until December 31, 2014. Applicable only for Non-RPP Customers - Interval Metered | AO93: STANDBY POWER GENERAL SERVICE LARGE USE | AP93: kW
A94: STANDBY POWER GENERAL SERVICE 1,500 TO 4,999 KW | I94: Rate Rider for Disposition of Global Adjustment Sub-Account (2014) - effective until December 31, 2014. Applicable only for Non-RPP Customers - Non Interval Metered | AO94: STANDBY POWER | AP94: kW
A95: STANDBY POWER GENERAL SERVICE 50 TO 1,499 KW | I95: Rate Rider for Disposition of Post Retirement Actuarial Gain - effective until March 31, 2025 | AO95: STREET LIGHTING | AP95: kWh
A96: STANDBY POWER GENERAL SERVICE LARGE USE | I96: Rate Rider for Disposition of Residual Hisotrical Smart Meter Costs - effective until April 30, 2015 | AO96: SUB TRANSMISSION [ST] | AP96: kW
A97: STREET LIGHTING | I97: Rate Rider for Disposition of Residual Hisotrical Smart Meter Costs - effective until April 30, 2017 | AO97: UNMETERED SCATTERED LOAD | AP97: kWh
A98: SUB TRANSMISSION [ST] | I98: Rate Rider for Disposition of Residual Historical Smart Meter Costs - effective until April 30, 2014 | AO98: URBAN GENERAL SERVICE DEMAND BILLED (50 KW AND ABOVE) [UGD] | AP98: kW
A99: UNMETERED SCATTERED LOAD | I99: Rate Rider for Disposition of Residual Historical Smart Meter Costs - effective until April 30, 2016 | AO99: URBAN GENERAL SERVICE ENERGY BILLED (LESS THAN 50 KW) [UGE] | AP99: kWh
A100: URBAN GENERAL SERVICE DEMAND BILLED (50 KW AND ABOVE) [UGD] | I100: Rate Rider for Disposition of Residual Historical Smart Meter Costs - effective until August 31, 2014 | AO100: WESTPORT SEWAGE TREATMENT PLANT | AP100: kW
A101: URBAN GENERAL SERVICE ENERGY BILLED (LESS THAN 50 KW) [UGE] | I101: Rate Rider for Disposition of Residual Historical Smart Meter Costs - effective until August 31, 2015 | AO101: YEAR-ROUND RESIDENTIAL - R2 | AP101: kWh
A102: WESTPORT SEWAGE TREATMENT PLANT | I102: Rate Rider for Disposition of Residual Historical Smart Meter Costs - effective until December 31, 2014
A103: YEAR-ROUND RESIDENTIAL - R2 | I103: Rate Rider for Disposition of Residual Historical Smart Meter Costs – effective until December 31, 2014
I104: Rate Rider for Disposition of Residual Historical Smart Meter Costs - effective until December 31, 2015
I105: Rate Rider for Disposition of Residual Historical Smart Meter Costs - effective until December 31, 2016
I106: Rate Rider for Disposition of Residual Historical Smart Meter Costs - effective until October 31, 2014
I107: Rate Rider for Disposition of Residual Historical Smart Meter Costs - effective until September 30, 2014
I108: Rate Rider for Disposition of Residual Historical Smart Meter Costs - Non-Interval Metered - effective until April 30, 2014
I109: Rate Rider for Disposition of Residual Historical Smart Meter Costs 2 - in effect until the effective date of the next cost of service-based rate order
I110: Rate Rider for Disposition of Residual Historical Smart Meter Costs 3 - in effect until the effective date of the next cost of service-based rate order
I111: Rate Rider for Disposition of Residual Incremental Historical Smart Meter Costs - effective until August 31, 2015
I112: Rate Rider for Disposition of Stranded Meter costs - effective until April 30, 2015
I113: Rate Rider for Disposition of Stranded Meter Costs - effective until April 30, 2016
I114: Rate Rider for Disposition of Stranded Meter Costs - effective until April 30, 2017
I115: Rate Rider for Global Adjustment Sub Account Disposition - effective until April 30, 2016 Applicable only for Non RPP Customers
I116: Rate Rider for Global Adjustment Sub-Account Disposition Applicable only for Non-RPP Customers – effective until April 30, 2015
I117: Rate Rider for Global Adjustment Sub-Account Disposition (2014) - effective until April 28, 2016 Applicable only for Non-RPP Customers
I118: Rate Rider for Global Adjustment Sub-Account Disposition (2014) - effective until April 30, 2015 Applicable only for Non-RPP Customers
I119: Rate Rider for Global Adjustment Sub-Account Disposition (2014) - effective until December 30, 2015 Applicable only for Non-RPP Customers
I120: Rate Rider for Global Adjustment Sub-Account Disposition (2014) - effective until December 31, 2014 Applicable only for Non-RPP Customers
I121: Rate Rider for Global Adjustment Sub-Account Disposition (2014) - effective until December 31, 2015 Applicable only for Non-RPP Customers
I122: Rate Rider for Global Adjustment Sub-Account Disposition (2014) - effective until December, 2015 Applicable only for Non-RPP Customers
I123: Rate Rider for Incremental Capital - Distribution Volumetric - effective until April 30, 2016
I124: Rate Rider for Incremental Capital - Service Charge - effective until April 30, 2016
I125: Rate Rider for Incremental Capital (2012) - effective until April 30, 2015
I126: Rate Rider for Lost Revenue Adjustment Mechanism Variance Account (LRAMVA) Recovery (2012 CDM Activities) - effective until April 30, 2015
I127: Rate Rider for Recover of Residual Historical Smart meter Costs - effective until June 30, 2014
I128: Rate Rider for Recovery of CGAAP/CWIP Differential - in effect until December 31, 2016
I129: Rate Rider for Recovery of Foregone Revenue - effective until April 30, 2015
I130: Rate Rider for Recovery of Forgone Revenue - effective until April 30, 2015
I131: Rate Rider for Recovery of Forgone Revenue - effective until December 31, 2014
I132: Rate Rider for Recovery of Green Energy Act related costs - effective until December 31, 2014
I133: Rate Rider for Recovery of Incremental Capital (2013) - in effect until the effective date of the next cost of service-based rate order
I134: Rate Rider for Recovery of Incremental Capital (2013) - in effect until the effective date of the next cost of service-based rate order
I135: Rate Rider for Recovery of Incremental Capital (2013) (per connection) - in effect until the effective date of the next cost of service-based rate order
I136: Rate Rider for Recovery of Incremental Capital (2013) (per connection)- in effect until the effective date of the next cost of service-based rate order
I137: Rate Rider for Recovery of Incremental Capital Costs
I138: Rate Rider for Recovery of Incremental Capital Costs - effective until April 30, 2015
I139: Rate Rider for Recovery of Lost Revenue Adjustment Mechanism ( LRAM)/Shared Savings Mechanism (SSM) (2012) - effective until August 31, 2014
I140: Rate Rider for Recovery of Lost Revenue Adjustment Mechanism (2013) - effective until December 31, 2014
I141: Rate Rider for Recovery of Lost Revenue Adjustment Mechanism (LRAM) - effective until April 30, 2016
I142: Rate Rider for Recovery of Lost Revenue Adjustment Mechanism (LRAM) (pre-2011 CDM Activities) - effective until April 30, 2015
I143: Rate Rider for Recovery of Lost Revenue Adjustment Mechanism (LRAM) (pre-2011 CDM Activities) (2013) - effective until April 30, 2015
I144: Rate Rider for Recovery of Lost Revenue Adjustment Mechanism (LRAM)/Shared Savings
I145: Rate Rider for Recovery of Lost Revenue Adjustment Mechanism (LRAM)/Shared Savings Mechanism (SSM) - effective until December 31, 2014 and applicable in the service area excluding the former service area of Clinton Power
I146: Rate Rider for Recovery of Lost Revenue Adjustment Mechanism (LRAM)/Shared Savings Mechanism (SSM) - effective until December 31, 2014 and applicable in the service area excluding the former service areas of Clinton Power and West Perth Power
I147: Rate Rider for Recovery of Lost Revenue Adjustment Mechanism (LRAM)/Shared Savings Mechanism (SSM) - effective until December 31, 2014 and applicable only in the former service area of Clinton Power
I148: Rate Rider for Recovery of Lost Revenue Adjustment Mechanism (LRAM)/Shared Savings Mechanism (SSM) - effective until December 31, 2014 and applicable only in the former service area of West Perth Power
I149: Rate Rider for Recovery of Lost Revenue Adjustment Mechanism (LRAM)/Shared Savings Mechanism (SSM) - effective until March 31, 2016
I150: Rate Rider for Recovery of Lost Revenue Adjustment Mechanism (LRAM)/Shared Savings Mechanism (SSM) (2012) - effective until August 31, 2014
I151: Rate Rider for Recovery of Lost Revenue Adjustment Mechanism (LRAM)/Shared Savings Mechanism (SSM) Recovery - effective until April 30, 2015
I152: Rate Rider for Recovery of Lost Revenue Adjustment Mechanism Variance Account (LRAMVA) (2014) - effective until April 30, 2015
I153: Rate Rider for Recovery of Residual Historical Smart Meter Costs - effective July 1, 2012 - April 30, 2016
I154: Rate Rider for Recovery of Smart Meter Incremental Revenue Requirement - effective until the date of the next cost of service-based rate order
I155: Rate Rider for Recovery of Smart Meter Incremental Revenue Requirement - effective until the effective date of the next cost of service-based rate order, or October 31, 2017, whichever occurs earlier
I156: Rate Rider for Recovery of Smart Meter Incremental Revenue Requirement - in effect until the effective date of the next cost of service-based rate order
I157: Rate Rider for Recovery of Smart Meter Incremental Revenue Requirement - Non-Interval Metered - in effect until the effective date of the next cost of service-based rate order
I158: Rate Rider for Recovery of Smart Meter Incremental Revenue Requirements - in effect until the effective date of the next cost of service application
I159: Rate Rider for Recovery of Smart Meter Stranded Assets - effective until April 30, 2016
I160: Rate Rider for Recovery of Storm Damage Costs - effective until August 31, 2017
I161: Rate Rider for Recovery of Stranded Assets - effective until April 30, 2016
I162: Rate Rider for Recovery of Stranded Meter Assets - effective July 1, 2012 - April 30, 2016
I163: Rate Rider for Recovery of Stranded Meter Assets – effective until April 30, 2015
I164: Rate Rider for Recovery of Stranded Meter Assets - effective until April 30, 2016
I165: Rate Rider for Recovery of Stranded Meter Assets - effective until April 30, 2017
I166: Rate Rider for Recovery of Stranded Meter Assets - effective until August 31, 2015
I167: Rate Rider for Recovery of Stranded Meter Assets - effective until August 31, 2017
I168: Rate Rider for Recovery of Stranded Meter Assets - effective until December 31, 2014
I169: Rate Rider for Recovery of Stranded Meter Assets - effective until December 31, 2015
I170: Rate Rider for Recovery of Stranded Meter Assets - effective until June 30, 2016
I171: Rate Rider for Recovery of Stranded Meter Assets - effective until March 31, 2016
I172: Rate Rider for Recovery of Stranded Meter Assets - effective until May 31, 2014
I173: Rate Rider for Reversal of Deferral/Variance Account Disposition (2011) - effective until April 30, 2015
I174: Rate Rider for Smart Meter Disposition - effective until April 30, 2016
I175: Rate Rider for Smart Meter Incremental Revenue Requirement - in effect until the effective date of the next cost of service-based rate order
I176: Rate Rider for Smart Metering Entity Charge - effective until October 31, 2018
I177: Rate Rider for Stranded Meter Cost Recovery - effective until April 30, 2017
I178: Rate Rider for Tax Change
I179: Rate Rider for Tax Change - effective until April 30, 2015
I180: Rate Rider for Tax Change (2014) - effective until April 30, 2015
I181: Retail Transmission Rate - Line and Transformation Connection Service Rate
I182: Retail Transmission Rate - Line and Transformation Connection Service Rate - (less than 1,000 kW)
I183: Retail Transmission Rate - Line and Transformation Connection Service Rate - Interval Metered
I184: Retail Transmission Rate - Line and Transformation Connection Service Rate - Interval Metered (1,000 to 4,999 kW)
I185: Retail Transmission Rate - Line and Transformation Connection Service Rate - Interval Metered (less than 1,000 kW)
I186: Retail Transmission Rate - Line and Transformation Connection Service Rate - Interval Metered < 1,000 kW
I187: Retail Transmission Rate - Line and Transformation Connection Service Rate - Interval Metered > 1,000 kW
I188: Retail Transmission Rate - Line and Transformation Connection Service Rate FOR ALL SERVICE AREAS EXCEPT HENSALL
I189: Retail Transmission Rate - Line Connection Service Rate
I190: Retail Transmission Rate - Network Service Rate
I191: Retail Transmission Rate - Network Service Rate - (less than 1,000 kW)
I192: Retail Transmission Rate - Network Service Rate - Interval Metered
I193: Retail Transmission Rate - Network Service Rate - Interval Metered (1,000 to 4,999 kW)
I194: Retail Transmission Rate - Network Service Rate - Interval Metered (less than 1,000 kW)
I195: Retail Transmission Rate - Network Service Rate - Interval Metered > 1,000 kW
I196: Retail Transmission Rate - Transformation Connection Service Rate
I197: Rider for Global Adjustment Sub-Account Disposition (2012) - effective until April 30, 2016 Applicable only for Non-RPP Customers
I198: Rural or Remote Electricity Rate Protection Charge (RRRP)
I199: Sentinel lights (dusk-to-dawn) connected to unmetered wires will have a flat rate monthly energy charge added to the regular customer bill. Further servicing details are available in the distributor’s Conditions of Service.
I200: Service Charge
... 12 more rows

Sheet lists2 (hidden)
A1: RESIDENTIAL Service Classification
A4: APPLICATION
A11: MONTHLY RATES AND CHARGES - Delivery Component
A44: MONTHLY RATES AND CHARGES - Regulatory Component
A46: Wholesale Market Service Rate | C46: $/kWh | D46: 0.0044
A47: Rural Rate Protection Charge | C47: $/kWh | D47: 0.0011
A48: Standard Supply Service - Administrative Charge (if applicable) | C48: $ | D48: 0.25
A53: ALLOWANCES
A55: Transformer Allowance for Ownership - per kW of billing demand/month
A58: Primary Metering Allowance for transformer losses – applied to measured demand and energy
A60: SPECIFIC SERVICE CHARGES
A62: APPLICATION
A64: The application of these rates and charges shall be in accordance with the Licence of the Distributor and any Code or Order of the Board, and amendments thereto as approved by the Board, which may be applicable to the administration of this schedule.
A66: No charges to meet the costs of any work or service done or furnished for the purpose of the distribution of electricity shall be made except as permitted by this schedule, unless required by the Distributor’s Licence or a Code or Order of the Board, and amendments thereto as approved by the Board, or as specified herein.
A68: It should be noted that this schedule does not list any charges, assessments or credits that are required by law to be invoiced by a distributor and that are not subject to Board approval, such as the Debt Retirement Charge, the Global Adjustment, the Ontario Clean Energy Benefit and the HST.
A70: Customer Administration
A108: Non-Payment of Account
A159: RETAIL SERVICE CHARGES (if applicable)
A161: The application of these rates and charges shall be in accordance with the Licence of the Distributor and any Code or Order of the Board, and amendments thereto as approved by the Board, which may be applicable to the administration of this schedule.
A163: No rates and charges for the distribution of electricity and charges to meet the costs of any work or service done or furnished for the purpose of the distribution of electricity shall be made except as permitted by this schedule, unless required by the Distributor’s Licence or a Code or Order of the Board, and amendments thereto as approved by the Board, or as specified herein.
A165: Unless specifically noted, this schedule does not contain any charges for the electricity commodity, be it under the Regulated Price Plan, a contract with a retailer or the wholesale market price, as applicable.
A167: It should be noted that this schedule does not list any charges, assessments or credits that are required by law to be invoiced by a distributor and that are not subject to Board approval, such as the Debt Retirement Charge, the Global Adjustment, the Ontario Clean Energy Benefit and the HST.
A169: Retail Service Charges refer to services provided by a distributor to retailers or customers related to the supply of competitive electricity.
A171: One-time charge, per retailer, to establish the service agreement between the distributor and the retailer | C171: $ | D171: 100
A172: Monthly Fixed Charge, per retailer | C172: $ | D172: 20
A173: Monthly Variable Charge, per customer, per retailer | C173: $/cust. | D173: 0.5
A174: Distributor-consolidated billing monthly charge, per customer, per retailer | C174: $/cust. | D174: 0.3
A175: Retailer-consolidated billing monthly credit, per customer, per retailer | C175: $/cust. | D175: -0.3
A176: Service Transaction Requests (STR)
A177: Request fee, per request, applied to the requesting party | C177: $ | D177: 0.25
A178: Processing fee, per request, applied to the requesting party | C178: $ | D178: 0.5
A179: Request for customer information as outlined in Section 10.6.3 and Chapter 11 of the Retail
A180: Settlement Code directly to retailers and customers, if not delivered electronically through the
A181: Electronic Business Transaction (EBT) system, applied to the requesting party
A182: Up to twice a year | C182: $ | D182: no charge
A183: More than twice a year, per request (plus incremental delivery costs) | C183: $ | D183: 2
A185: LOSS FACTORS
A187: If the distributor is not capable of prorating changed loss factors jointly with distribution rates, the revised loss factors will be implemented upon the first subsequent billing for each billing cycle.

Sheet Sheet19 (hidden)
B1: CGAAP | C1: CGAAP | D1: CGAAP | E1: MIFRS | F1: USGAAP | G1: ASPE | H1: ASPE | I1: ASPE
B2: N/A | C2: 2012 | D2: 2013 | G2: N/A | H2: 2012 | I2: 2013
A3: LDC Info | B3: x | C3: x | D3: x | E3: x | F3: x | G3: x | H3: x | I3: x
A4: Table of Contents | B4: x | C4: x | D4: x | E4: x | F4: x | G4: x | H4: x | I4: x
A5: COS Flowchart | B5: x | C5: x | D5: x | E5: x | F5: x | G5: x | H5: x | I5: x
A6: List of Key References | B6: x | C6: x | D6: x | E6: x | F6: x | G6: x | H6: x | I6: x
A7: App.2-AA_Capital Projects | B7: x | C7: x | D7: x | E7: x | F7: x | G7: x | H7: x | I7: x
A8: App.2-AB_Capital Expenditures | B8: x | C8: x | D8: x | E8: x | F8: x | G8: x | H8: x | I8: x
A9: App.2-BA1_Fix Asset Cont.CGAAP | B9: x | C9: x | D9: x | E9: n | F9: x | G9: x | H9: x | I9: x
A10: App.2-BA2_Fix Asset Cont.MIFRS | B10: n | C10: n | D10: n | E10: x | F10: n | G10: n | H10: n | I10: n
A11: Appendix 2-BB Service Life Comp | B11: x | C11: x | D11: x | E11: x | F11: x | G11: x | H11: x | I11: x
A12: Instruction for App. 2-C MIFRS | B12: n | C12: n | D12: n | E12: x | F12: n | G12: n | H12: n | I12: n
A13: App.2-CA_CGAAP_DepExp_2011 | B13: n | C13: n | D13: n | E13: x | F13: n | G13: n | H13: n | I13: n
A14: App.2-CB_MIFRS_DepExp_2011 | B14: n | C14: n | D14: n | E14: x | F14: n | G14: n | H14: n | I14: n
A15: App.2-CC_MIFRS_DepExp_2012 | B15: n | C15: n | D15: n | E15: x | F15: n | G15: n | H15: n | I15: n
A16: App.2-CD_MIFRS_DepExp_2013 | B16: n | C16: n | D16: n | E16: x | F16: n | G16: n | H16: n | I16: n
A17: App.2-CE_MIFRS_DepExp_2014 | B17: n | C17: n | D17: n | E17: x | F17: n | G17: n | H17: n | I17: n
A18: App.2-CF_CGAAP_DepExp_2012 | B18: n | C18: n | D18: n | E18: x | F18: n | G18: n | H18: n | I18: n
A19: App.2-CG_MIFRS_DepExp_2012 | B19: n | C19: n | D19: n | E19: x | F19: n | G19: n | H19: n | I19: n
A20: App.2-CH_MIFRS_DepExp_2013 | B20: n | C20: n | D20: n | E20: x | F20: n | G20: n | H20: n | I20: n
A21: App.2-CI_MIFRS_DepExp_2014 | B21: n | C21: n | D21: n | E21: x | F21: n | G21: n | H21: n | I21: n
A22: App.2-CJ_CGAAP_DepExp_2012 | B22: n | C22: n | D22: n | E22: x | F22: n | G22: n | H22: n | I22: n
A23: App.2-CK_CGAAP_DepExp_2013 | B23: n | C23: n | D23: n | E23: x | F23: n | G23: n | H23: n | I23: n
A24: App.2-CL_MIFRS_DepExp_2013 | B24: n | C24: n | D24: n | E24: x | F24: n | G24: n | H24: n | I24: n
A25: App.2-CM_MIFRS_DepExp_2014 | B25: n | C25: n | D25: n | E25: x | F25: n | G25: n | H25: n | I25: n
A26: Instruction for App. 2-C CGAAP | B26: x | C26: x | D26: x | E26: n | F26: n | G26: x | H26: x | I26: x
A27: App.2-CN_OldCGAAP_DepExp_2012 | B27: x | C27: x | D27: n | E27: n | F27: n | G27: x | H27: x | I27: n
A28: App.2-CO_NewCGAAP_DepExp_2012 | B28: x | C28: x | D28: n | E28: n | F28: n | G28: x | H28: x | I28: n
A29: App.2-CP_NewCGAAP_DepExp_2013 | B29: x | C29: x | D29: n | E29: n | F29: n | G29: x | H29: x | I29: n
A30: App.2-CQ NewCGAAP_DepExp_2014 | B30: x | C30: x | D30: n | E30: n | F30: n | G30: x | H30: x | I30: n
A31: App.2-CR_OldCGAAP_DepExp_2012 | B31: x | C31: n | D31: x | E31: n | F31: n | G31: x | H31: n | I31: x
A32: App.2-CS_OldCGAAP_DepExp_2013 | B32: x | C32: n | D32: x | E32: n | F32: n | G32: x | H32: n | I32: x
A33: App.2-CT_NewCGAAP_DepExp_2013 | B33: x | C33: n | D33: x | E33: n | F33: n | G33: x | H33: n | I33: x
A34: App.2-CU_NewCGAAP_DepExp_2014 | B34: x | C34: n | D34: x | E34: n | F34: n | G34: x | H34: n | I34: x
A35: App.2-CV_USGAAP_DepExp | B35: n | C35: n | D35: n | E35: n | F35: x | G35: n | H35: n | I35: n
A36: App.2-DA_Overhead | B36: n | C36: n | D36: n | E36: x | F36: n | G36: n | H36: n | I36: n
A37: App.2-DB_Overhead | B37: x | C37: x | D37: x | E37: n | F37: n | G37: x | H37: x | I37: x
A38: App.2-EA_PP&E Deferral Account | B38: n | C38: n | D38: n | E38: x | F38: x | G38: n | H38: n | I38: n
A39: App.2-EB_PP&E Deferral Account | B39: n | C39: n | D39: n | E39: x | F39: x | G39: n | H39: n | I39: n
A40: App.2-EC_PP&E Deferral Account | B40: n | C40: n | D40: n | E40: x | F40: x | G40: n | H40: n | I40: n
A41: App.2-ED_Account 1576 (2012) | B41: x | C41: x | D41: n | E41: x | F41: x | G41: x | H41: x | I41: n
A42: App.2-EE_Account 1576 (2013) | B42: x | C42: n | D42: x | E42: x | F42: x | G42: x | H42: n | I42: x
A43: App.2-FA Proposed REG Invest. | B43: o | C43: o | D43: o | E43: o | F43: o | G43: o | H43: o | I43: o
A44: App.2-FB Calc of REG Improvemnt | B44: o | C44: o | D44: o | E44: o | F44: o | G44: o | H44: o | I44: o
A45: App.2-FC Calc of REG Expansion | B45: o | C45: o | D45: o | E45: o | F45: o | G45: o | H45: o | I45: o
A46: App.2-G SQI | B46: x | C46: x | D46: x | E46: x | F46: x | G46: x | H46: x | I46: x
A47: App.2-H_Other_Oper_Rev | B47: x | C47: x | D47: x | E47: x | F47: x | G47: x | H47: x | I47: x
A48: App.2-I LF_CDM_WF | B48: x | C48: x | D48: x | E48: x | F48: x | G48: x | H48: x | I48: x
A49: App.2-JA_OM&A_Summary_Analys | B49: x | C49: x | D49: x | E49: x | F49: x | G49: x | H49: x | I49: x
A50: App.2-JB_OM&A_Cost _Drivers | B50: x | C50: x | D50: x | E50: x | F50: x | G50: x | H50: x | I50: x
A51: App.2-JC_OMA Programs | B51: x | C51: x | D51: x | E51: x | F51: x | G51: x | H51: x | I51: x
A52: App.2-K_Employee Costs | B52: x | C52: x | D52: x | E52: x | F52: x | G52: x | H52: x | I52: x
A53: App.2-L_OM&A_per_Cust_FTEE | B53: x | C53: x | D53: x | E53: x | F53: x | G53: x | H53: x | I53: x
A54: App.2-M_Regulatory_Costs | B54: x | C54: x | D54: x | E54: x | F54: x | G54: x | H54: x | I54: x
A55: App.2-N_Corp_Cost_Allocation | B55: x | C55: x | D55: x | E55: x | F55: x | G55: x | H55: x | I55: x
A56: App.2-OA Capital Structure | B56: x | C56: x | D56: x | E56: x | F56: x | G56: x | H56: x | I56: x
A57: App.2-OB_Debt Instruments | B57: x | C57: x | D57: x | E57: x | F57: x | G57: x | H57: x | I57: x
A58: App.2-P_Cost_Allocation | B58: x | C58: x | D58: x | E58: x | F58: x | G58: x | H58: x | I58: x
A59: App.2-Q_Cost of Serv. Emb. Dx | B59: e | C59: e | D59: e | E59: e | F59: e | G59: e | H59: e | I59: e
A60: App.2-R_Loss Factors | B60: x | C60: x | D60: x | E60: x | F60: x | G60: x | H60: x | I60: x
A61: App.2-S_Stranded Meters | B61: x | C61: x | D61: x | E61: x | F61: x | G61: x | H61: x | I61: x
A62: App.2-TA_1592_Tax_Variance | B62: x | C62: x | D62: x | E62: x | F62: x | G62: x | H62: x | I62: x
A63: App.2-TB_1592_HST-OVAT | B63: x | C63: x | D63: x | E63: x | F63: x | G63: x | H63: x | I63: x
A64: App.2-U_IFRS Transition Costs | B64: x | C64: x | D64: x | E64: x | F64: x | G64: x | H64: x | I64: x
A65: App.2-V_Rev_Reconciliation | B65: x | C65: x | D65: x | E65: x | F65: x | G65: x | H65: x | I65: x
A66: App.2-W_Bill Impacts | B66: x | C66: x | D66: x | E66: x | F66: x | G66: x | H66: x | I66: x
A67: App.2-YA_MIFRS Summary Impacts | B67: n | C67: n | D67: n | E67: x | F67: n | G67: n | H67: n | I67: n
A68: App. 2-YB_CGAAP Summary Impacts | B68: x | C68: x | D68: x | E68: n | F68: n | G68: x | H68: x | I68: x
A69: App. 2-Z_Tariff | B69: x | C69: x | D69: x | E69: x | F69: x | G69: x | H69: x | I69: x
A70: lists | B70: n | C70: n | D70: n | E70: n | F70: n | G70: n | H70: n | I70: n
A71: lists2 | B71: n | C71: n | D71: n | E71: n | F71: n | G71: n | H71: n | I71: n
A72: Sheet19 | B72: n | C72: n | D72: n | E72: n | F72: n | G72: n | H72: n | I72: n

Sheet Sheet1 (hidden)
